Workbook

Sheet zJohn A
A1: Copy and Paste Sheet for for each new employee add personal information and employee wages
A2: Name | B2: John B Doe
A3: Address | B3: 123 Payroll Lane
A4: Rate of pay | B4: $15.00
A5: SS | B5: **1234 | C5: 123-12-1234
A6: Status | B6: Married/4 | C6: 2
A7: Extra Ded/Allowances | B7: 4 | C7: 4
A11: Pay Period | B11: pay period | C11: Wage | D11: Overtime rate | E11: Reg hours | F11: OT Hours | G11: Total Reg Wage | H11: Total OT Wage | I11: Gross Pay | J11: Federal With | K11: SS.Withholding | L11: Medicare Witholding | M11: NE Withholding | N11: Other Ded | O11: Total Ded | P11: Net Pay | Q11: pay date | R11: SS. | S11: MED | T11: FUTA | U11: SUTA | V11: Total Employer
A12: 1 | B12: 1/1/2012-1/15/2012 | C12: $10.00 | D12: $12.00 | E12: 30.00 | F12: 30.00 | G12: =C12*E12 -> 300 | H12: =D12*F12 -> 360 | I12: =G12+H12 -> 660 | J12: =IF(C6=1,VLOOKUP(I12,Sigfed,C7+2),VLOOKUP(I12,marfed,C7+2)) -> $0.00 | K12: =I12*0.042 -> 27.72 | L12: =I12*0.0145 -> 9.57 | M12: =IF(C6=1,VLOOKUP(I12,Sine,C7+2),VLOOKUP(I12,marne,C7+2)) -> $2.53 | N12: $0.00 | O12: =J12+K12+L12+M12+N12 -> 39.82 | P12: =I12-O12 -> 620.18 | Q12: 2012-01-16 | R12: =I12*0.062 -> 40.92 | S12: =I12*0.0145 -> 9.57 | T12: =IF(I12<=7000,I12*0.062,0) -> 40.92 | U12: =IF(112<=9000,I12*0.0866,0) -> 57.156 | V12: =R12+S12+T12+U12 -> 148.566
A13: 2 | B13: 1/16/2012-1/31/2012 | C13: $10.50 | E13: 0.00 | G13: =C13*E13 -> 0 | H13: =D13*F13 -> 0 | I13: =G13+H13 -> 0 | J13: =IF(C6=1,VLOOKUP(I13,Sigfed,C7+2),VLOOKUP(I13,marfed,C7+2)) -> $0.00 | K13: =I13*0.042 -> 0 | L13: =I13*0.0145 -> 0 | M13: =IF(C6=1,VLOOKUP(I13,Sine,C7+2),VLOOKUP(I13,marne,C7+2)) -> $0.00 | N13: $0.00 | O13: =J13+K13+L13+M13+N13 -> 0 | P13: =I13-O13 -> 0 | Q13: 2012-02-01 | R13: =I13*0.062 -> 0 | S13: =I13*0.0145 -> 0 | T13: =IF(I13+I12<=7000,I13*0.062,0) -> 0 | U13: =IF(112+I13<=9000,I13*0.0866,0) -> 0 | V13: =R13+S13+T13+U13 -> 0
A14: 3 | B14: 2/1/2012-2/15/2012 | C14: $10.50 | E14: 0.00 | G14: =C14*E14 -> 0 | I14: =G14+H14 -> 0 | J14: =IF(C6=1,VLOOKUP(I14,Sigfed,C7+2),VLOOKUP(I14,marfed,C7+2)) -> $0.00 | K14: =I14*0.042 -> 0 | L14: =I14*0.0145 -> 0 | M14: =IF(C6=1,VLOOKUP(I14,Sine,C7+2),VLOOKUP(I14,marne,C7+2)) -> $0.00 | N14: $0.00 | O14: =J14+K14+L14+M14+N14 -> 0 | P14: =I14-O14 -> 0 | Q14: 2012-02-16 | R14: =I14*0.062 -> 0 | S14: =I14*0.0145 -> 0 | T14: =IF(I14+I13+I12<=7000,I14*0.062,0) -> 0 | U14: =IF(112+I13+I14<=9000,I14*0.0866,0) -> 0 | V14: =R14+S14+T14+U14 -> 0
A15: 4 | B15: 2/16/2012-2/28/2012 | C15: $10.50 | E15: 0.00 | G15: =C15*E15 -> 0 | I15: =G15+H15 -> 0 | J15: =IF(C6=1,VLOOKUP(I15,Sigfed,C7+2),VLOOKUP(I15,marfed,C7+2)) -> $0.00 | K15: =I15*0.042 -> 0 | L15: =I15*0.0145 -> 0 | M15: =IF(C6=1,VLOOKUP(I15,Sine,C7+2),VLOOKUP(I15,marne,C7+2)) -> $0.00 | N15: $0.00 | O15: =J15+K15+L15+M15+N15 -> 0 | P15: =I15-O15 -> 0 | Q15: 2012-03-01 | R15: =I15*0.062 -> 0 | S15: =I15*0.0145 -> 0 | T15: =IF(I15+I14+I13+I12<=7000,I15*0.062,0) -> 0 | U15: =IF(112+I13+I14+I15<=9000,I15*0.0866,0) -> 0 | V15: =R15+S15+T15+U15 -> 0
A16: 5 | B16: 3/1/2012-3/15/2012 | C16: $10.50 | E16: 0.00 | G16: =C16*E16 -> 0 | I16: =G16+H16 -> 0 | J16: =IF(C6=1,VLOOKUP(I16,Sigfed,C7+2),VLOOKUP(I16,marfed,C7+2)) -> $0.00 | K16: =I16*0.042 -> 0 | L16: =I16*0.0145 -> 0 | M16: =IF(C6=1,VLOOKUP(I16,Sine,C7+2),VLOOKUP(I16,marne,C7+2)) -> $0.00 | N16: $0.00 | O16: =J16+K16+L16+M16+N16 -> 0 | P16: =I16-O16 -> 0 | Q16: 2012-03-16 | R16: =I16*0.062 -> 0 | S16: =I16*0.0145 -> 0 | T16: =IF(I16+I15+I14+I13+I12<=7000,I16*0.062,0) -> 0 | U16: =IF(112+I13+I14+I15+I16<=9000,I16*0.0866,0) -> 0 | V16: =R16+S16+T16+U16 -> 0
A17: 6 | B17: 3/16/2012-3/31/2012 | C17: $10.50 | E17: 0.00 | G17: =C17*E17 -> 0 | I17: =G17+H17 -> 0 | J17: =IF(C6=1,VLOOKUP(I17,Sigfed,C7+2),VLOOKUP(I17,marfed,C7+2)) -> $0.00 | K17: =I17*0.042 -> 0 | L17: =I17*0.0145 -> 0 | M17: =IF(C6=1,VLOOKUP(I17,Sine,C7+2),VLOOKUP(I17,marne,C7+2)) -> $0.00 | N17: $0.00 | O17: =J17+K17+L17+M17+N17 -> 0 | P17: =I17-O17 -> 0 | Q17: 2012-04-01 | R17: =I17*0.062 -> 0 | S17: =I17*0.0145 -> 0 | T17: =IF(I17+I16+I15+I14+I13+I12<=7000,I17*0.062,0) -> 0 | U17: =IF(112+I13+I14+I15+I16+I17<=9000,I17*0.0866,0) -> 0 | V17: =R17+S17+T17+U17 -> 0
A18: 7 | B18: 4/1/2012-4/15/2012 | C18: $10.50 | E18: 0.00 | G18: =C18*E18 -> 0 | I18: =G18+H18 -> 0 | J18: =IF(C6=1,VLOOKUP(I18,Sigfed,C7+2),VLOOKUP(I18,marfed,C7+2)) -> $0.00 | K18: =I18*0.042 -> 0 | L18: =I18*0.0145 -> 0 | M18: =IF(C6=1,VLOOKUP(I18,Sine,C7+2),VLOOKUP(I18,marne,C7+2)) -> $0.00 | N18: $0.00 | O18: =J18+K18+L18+M18+N18 -> 0 | P18: =I18-O18 -> 0 | Q18: 2012-04-16 | R18: =I18*0.062 -> 0 | S18: =I18*0.0145 -> 0 | T18: =IF(I18+I17+I16+I15+I14+I13+I12<=7000,I18*0.062,0) -> 0 | U18: =IF(112+I13+I14+I15+I16+I17+I18<=9000,I18*0.0866,0) -> 0 | V18: =R18+S18+T18+U18 -> 0
A19: 8 | B19: 4/16/2012-4/30/2012 | C19: $10.50 | E19: 0.00 | G19: =C19*E19 -> 0 | I19: =G19+H19 -> 0 | J19: =IF(C6=1,VLOOKUP(I19,Sigfed,C7+2),VLOOKUP(I19,marfed,C7+2)) -> $0.00 | K19: =I19*0.042 -> 0 | L19: =I19*0.0145 -> 0 | M19: =IF(C6=1,VLOOKUP(I19,Sine,C7+2),VLOOKUP(I19,marne,C7+2)) -> $0.00 | N19: $0.00 | O19: =J19+K19+L19+M19+N19 -> 0 | P19: =I19-O19 -> 0 | Q19: 2012-05-01 | R19: =I19*0.062 -> 0 | S19: =I19*0.0145 -> 0 | T19: =IF(I19+I18+I17+I16+I15+I14+I13+I12<=7000,I19*0.062,0) -> 0 | U19: =IF(112+I13+I15+I16+I17+I18+I19<=9000,I19*0.0866,0) -> 0 | V19: =R19+S19+T19+U19 -> 0
A20: 9 | B20: 5/1/2012-5/15/2012 | C20: $10.50 | E20: 0.00 | G20: =C20*E20 -> 0 | I20: =G20+H20 -> 0 | J20: =IF(C6=1,VLOOKUP(I20,Sigfed,C7+2),VLOOKUP(I20,marfed,C7+2)) -> $0.00 | K20: =I20*0.042 -> 0 | L20: =I20*0.0145 -> 0 | M20: =IF(C6=1,VLOOKUP(I20,Sine,C7+2),VLOOKUP(I20,marne,C7+2)) -> $0.00 | N20: $0.00 | O20: =J20+K20+L20+M20+N20 -> 0 | P20: =I20-O20 -> 0 | Q20: 2012-05-16 | R20: =I20*0.062 -> 0 | S20: =I20*0.0145 -> 0 | T20: =IF(I20+I19+I18+I17+I16+I15+I14+I13+I12<=7000,I20*0.062,0) -> 0 | U20: =IF(112+I13+I14+I15+I16+I17+I18+I19+I20<=9000,I20*0.0866,0) -> 0 | V20: =R20+S20+T20+U20 -> 0
A21: 10 | B21: 05/16/2012-5/31/2012 | C21: $10.50 | E21: 0.00 | G21: =C21*E21 -> 0 | I21: =G21+H21 -> 0 | J21: =IF(C6=1,VLOOKUP(I21,Sigfed,C7+2),VLOOKUP(I21,marfed,C7+2)) -> $0.00 | K21: =I21*0.042 -> 0 | L21: =I21*0.0145 -> 0 | M21: =IF(C6=1,VLOOKUP(I21,Sine,C7+2),VLOOKUP(I21,marne,C7+2)) -> $0.00 | N21: $0.00 | O21: =J21+K21+L21+M21+N21 -> 0 | P21: =I21-O21 -> 0 | Q21: 2012-06-01 | R21: =I21*0.062 -> 0 | S21: =I21*0.0145 -> 0 | T21: =IF(I21+I20+I19+I18+I17+I16+I15+I14+I13+I12<=7000,I21*0.062,0) -> 0 | U21: =IF(112+I13+I14+I15+I16+I17+I18+I19+I20+I21<=9000,I21*0.0866,0) -> 0 | V21: =R21+S21+T21+U21 -> 0
A22: 11 | B22: 6/1/2012-6/15/2012 | C22: $10.50 | E22: 0.00 | G22: =C22*E22 -> 0 | I22: =G22+H22 -> 0 | J22: =IF(C6=1,VLOOKUP(I22,Sigfed,C7+2),VLOOKUP(I22,marfed,C7+2)) -> $0.00 | K22: =I22*0.042 -> 0 | L22: =I22*0.0145 -> 0 | M22: =IF(C6=1,VLOOKUP(I22,Sine,C7+2),VLOOKUP(I22,marne,C7+2)) -> $0.00 | N22: $0.00 | O22: =J22+K22+L22+M22+N22 -> 0 | P22: =I22-O22 -> 0 | Q22: 2012-06-16 | R22: =I22*0.062 -> 0 | S22: =I22*0.0145 -> 0 | T22: =IF(I22+I21+I20+I19+I18+I17+I16+I15+I14+I13+I12<=7000,I22*0.062,0) -> 0 | U22: =IF(112+I13+I14+I15+I16+I17+I18+I19+I20+I21+I22<=9000,I22*0.0866,0) -> 0 | V22: =R22+S22+T22+U22 -> 0
A23: 12 | B23: 6/16/2012-6/30/2012 | C23: $10.50 | E23: 0.00 | G23: =C23*E23 -> 0 | I23: =G23+H23 -> 0 | J23: =IF(C6=1,VLOOKUP(I23,Sigfed,C7+2),VLOOKUP(I23,marfed,C7+2)) -> $0.00 | K23: =I23*0.042 -> 0 | L23: =I23*0.0145 -> 0 | M23: =IF(C6=1,VLOOKUP(I23,Sine,C7+2),VLOOKUP(I23,marne,C7+2)) -> $0.00 | N23: $0.00 | O23: =J23+K23+L23+M23+N23 -> 0 | P23: =I23-O23 -> 0 | Q23: 2012-07-01 | R23: =I23*0.062 -> 0 | S23: =I23*0.0145 -> 0 | T23: =IF(I23+I22+I21+I20+I19+I18+I17+I16+I15+I14+I13+I12<=7000,I23*0.062,0) -> 0 | U23: =IF(112+I13+I14+I15+I16+I17+I18+I19+I20+I21+I22+I23<=9000,I23*0.0866,0) -> 0 | V23: =R23+S23+T23+U23 -> 0
A24: 13 | B24: 7/1/2012-7/15/2012 | C24: $15.00 | E24: 0.00 | G24: =C24*E24 -> 0 | I24: =G24+H24 -> 0 | J24: =IF(C6=1,VLOOKUP(I24,Sigfed,C7+2),VLOOKUP(I24,marfed,C7+2)) -> $0.00 | K24: =I24*0.042 -> 0 | L24: =I24*0.0145 -> 0 | M24: =IF(C6=1,VLOOKUP(I24,Sine,C7+2),VLOOKUP(I24,marne,C7+2)) -> $0.00 | O24: =J24+K24+L24+M24+N24 -> 0 | P24: =I24-O24 -> 0 | Q24: 2012-07-16 | R24: =I24*0.062 -> 0 | S24: =I24*0.0145 -> 0 | T24: =IF(I24+I23+I22+I21+I20+I19+I18+I17+I16+I15+I14+I13+I12<=7000,I24*0.062,0) -> 0 | U24: =IF(112+I13+I14+I15+I16+I17+I18+I19+I20+I21+I22+I23+I24<=9000,I24*0.0866,0) -> 0 | V24: =R24+S24+T24+U24 -> 0
A25: 14 | B25: 7/16/2012-7/31/2012 | C25: $15.00 | E25: 0.00 | G25: =C25*E25 -> 0 | I25: =G25+H25 -> 0 | J25: =IF(C6=1,VLOOKUP(I25,Sigfed,C7+2),VLOOKUP(I25,marfed,C7+2)) -> $0.00 | K25: =I25*0.042 -> 0 | L25: =I25*0.0145 -> 0 | M25: =IF(C6=1,VLOOKUP(I25,Sine,C7+2),VLOOKUP(I25,marne,C7+2)) -> $0.00 | O25: =J25+K25+L25+M25+N25 -> 0 | P25: =I25-O25 -> 0 | Q25: 2012-08-01 | R25: =I25*0.062 -> 0 | S25: =I25*0.0145 -> 0 | T25: =IF(I25+I24+I23+I22+I21+I20+I19+I18+I17+I16+I15+I14+I13+I12<=7000,I25*0.062,0) -> 0 | U25: =IF(112+I13+I14+I15+I16+I17+I18+I19+I20+I21+I22+I23+I24+I25<=9000,I25*0.0866,0) -> 0 | V25: =R25+S25+T25+U25 -> 0
A26: 15 | B26: 8/1/2012-8/15/2012 | C26: $15.00 | E26: 0.00 | G26: =C26*E26 -> 0 | I26: =G26+H26 -> 0 | J26: =IF(C6=1,VLOOKUP(I26,Sigfed,C7+2),VLOOKUP(I26,marfed,C7+2)) -> $0.00 | K26: =I26*0.042 -> 0 | L26: =I26*0.0145 -> 0 | M26: =IF(C6=1,VLOOKUP(I26,Sine,C7+2),VLOOKUP(I26,marne,C7+2)) -> $0.00 | O26: =J26+K26+L26+M26+N26 -> 0 | P26: =I26-O26 -> 0 | Q26: 2012-08-16 | R26: =I26*0.062 -> 0 | S26: =I26*0.0145 -> 0 | T26: =IF(I26+I25+I24+I23+I22+I21+I20+I19+I18+I17+I16+I15+I14+I13+I12<=7000,I26*0.062,0) -> 0 | U26: =IF(112+I13+I14+I15+I16+I17+I18+I19+I20+I21+I22+I23+I24+I25+I26<=9000,I26*0.0866,0) -> 0 | V26: =R26+S26+T26+U26 -> 0
A27: 16 | B27: 8/16/2012-8/31/2012 | C27: $15.00 | E27: 0.00 | G27: =C27*E27 -> 0 | I27: =G27+H27 -> 0 | J27: =IF(C6=1,VLOOKUP(I27,Sigfed,C7+2),VLOOKUP(I27,marfed,C7+2)) -> $0.00 | K27: =I27*0.042 -> 0 | L27: =I27*0.0145 -> 0 | M27: =IF(C6=1,VLOOKUP(I27,Sine,C7+2),VLOOKUP(I27,marne,C7+2)) -> $0.00 | O27: =J27+K27+L27+M27+N27 -> 0 | P27: =I27-O27 -> 0 | Q27: 2012-09-01 | R27: =I27*0.062 -> 0 | S27: =I27*0.0145 -> 0 | T27: =IF(I27+I26+I25+I24+I23+I22+I21+I20+I19+I18+I17+I16+I15+I14+I13+I12<=7000,I27*0.062,0) -> 0 | U27: =IF(112+I13+I14+I15+I16+I17+I18+I19+I20+I21+I22+I23+I24+I25+I26+I27<=9000,I27*0.0866,0) -> 0 | V27: =R27+S27+T27+U27 -> 0
A28: 17 | B28: 9/1/2012-9/15/2012 | C28: $15.00 | E28: 0.00 | G28: =C28*E28 -> 0 | I28: =G28+H28 -> 0 | J28: =IF(C6=1,VLOOKUP(I28,Sigfed,C7+2),VLOOKUP(I28,marfed,C7+2)) -> $0.00 | K28: =I28*0.042 -> 0 | L28: =I28*0.0145 -> 0 | M28: =IF(C6=1,VLOOKUP(I28,Sine,C7+2),VLOOKUP(I28,marne,C7+2)) -> $0.00 | O28: =J28+K28+L28+M28+N28 -> 0 | P28: =I28-O28 -> 0 | Q28: 2012-09-16 | R28: =I28*0.062 -> 0 | S28: =I28*0.0145 -> 0 | T28: =IF(I28+I27+I26+I25+I24+I23+I22+I21+I20+I19+I18+I17+I16+I15+I14+I13+I12<=7000,I28*0.062,0) -> 0 | U28: =IF(112+I13+I14+I15+I16+I17+I18+I19+I20+I21+I22+I23+I24+I25+I26+I27+I28<=9000,I28*0.0866,0) -> 0 | V28: =R28+S28+T28+U28 -> 0
A29: 18 | B29: 9/16/2012-9/30/2012 | C29: $15.00 | E29: 0.00 | G29: =C29*E29 -> 0 | I29: =G29+H29 -> 0 | J29: =IF(C6=1,VLOOKUP(I29,Sigfed,C7+2),VLOOKUP(I29,marfed,C7+2)) -> $0.00 | K29: =I29*0.042 -> 0 | L29: =I29*0.0145 -> 0 | M29: =IF(C6=1,VLOOKUP(I29,Sine,C7+2),VLOOKUP(I29,marne,C7+2)) -> $0.00 | O29: =J29+K29+L29+M29+N29 -> 0 | P29: =I29-O29 -> 0 | Q29: 2012-10-01 | R29: =I29*0.062 -> 0 | S29: =I29*0.0145 -> 0 | T29: =IF(I29+I28+I27+I26+I25+I24+I23+I22+I21+I20+I19+I18+I17+I16+I15+I14+I13+I12<=7000,I29*0.062,0) -> 0 | U29: =IF(112+I13+I14+I15+I16+I17+I18+I19+I20+I21+I22+I23+I24+I25+I26+I27+I28+I29<=9000,I29*0.0866,0) -> 0 | V29: =R29+S29+T29+U29 -> 0
A30: 19 | B30: 10/1/2012-10/15/2012 | C30: $15.00 | E30: 0.00 | G30: =C30*E30 -> 0 | I30: =G30+H30 -> 0 | J30: =IF(C6=1,VLOOKUP(I30,Sigfed,C7+2),VLOOKUP(I30,marfed,C7+2)) -> $0.00 | K30: =I30*0.042 -> 0 | L30: =I30*0.0145 -> 0 | M30: =IF(C6=1,VLOOKUP(I30,Sine,C7+2),VLOOKUP(I30,marne,C7+2)) -> $0.00 | O30: =J30+K30+L30+M30+N30 -> 0 | P30: =I30-O30 -> 0 | Q30: 2012-10-16 | R30: =I30*0.062 -> 0 | S30: =I30*0.0145 -> 0 | T30: =IF(I30+I29+I28+I27+I26+I25+I24+I23+I22+I21+I20+I19+I18+I17+I16+I15+I14+I13+I12<=7000,I30*0.062,0) -> 0 | U30: =IF(112+I13+I14+I15+I16+I17+I18+I19+I20+I21+I22+I23+I24+I25+I26+I27+I28+I29+I30<=9000,I30*0.0866,0) -> 0 | V30: =R30+S30+T30+U30 -> 0
A31: 20 | B31: 10/16/2012-10/31/2012 | C31: $15.00 | E31: 0.00 | G31: =C31*E31 -> 0 | I31: =G31+H31 -> 0 | J31: =IF(C6=1,VLOOKUP(I31,Sigfed,C7+2),VLOOKUP(I31,marfed,C7+2)) -> $0.00 | K31: =I31*0.042 -> 0 | L31: =I31*0.0145 -> 0 | M31: =IF(C6=1,VLOOKUP(I31,Sine,C7+2),VLOOKUP(I31,marne,C7+2)) -> $0.00 | O31: =J31+K31+L31+M31+N31 -> 0 | P31: =I31-O31 -> 0 | Q31: 2012-11-01 | R31: =I31*0.062 -> 0 | S31: =I31*0.0145 -> 0 | T31: =IF(I31+I30+I29+I28+I27+I26+I25+I24+I23+I22+I21+I20+I19+I18+I17+I16+I15+I14+I13+I12<=7000,I31*0.062,0) -> 0 | U31: =IF(112+I13+I14+I15+I16+I17+I18+I19+I20+I21+I22+I23+I24+I25+I26+I27+I28+I29+I30+I31<=9000,I31*0.0866,0) -> 0 | V31: =R31+S31+T31+U31 -> 0
A32: 21 | B32: 11/1/2012-11/15/2012 | C32: $14.50 | E32: 0.00 | G32: =C32*E32 -> 0 | I32: =G32+H32 -> 0 | J32: =IF(C6=1,VLOOKUP(I32,Sigfed,C7+2),VLOOKUP(I32,marfed,C7+2)) -> $0.00 | K32: =I32*0.042 -> 0 | L32: =I32*0.0145 -> 0 | M32: =IF(C6=1,VLOOKUP(I32,Sine,C7+2),VLOOKUP(I32,marne,C7+2)) -> $0.00 | O32: =J32+K32+L32+M32+N32 -> 0 | P32: =I32-O32 -> 0 | Q32: 2012-11-16 | R32: =I32*0.062 -> 0 | S32: =I32*0.0145 -> 0 | T32: =IF(I32+I31+I30+I29+I28+I27+I26+I25+I24+I23+I22+I21+I20+I19+I18+I17+I16+I15+I14+I13+I12<=7000,I32*0.062,0) -> 0 | U32: =IF(112+I13+I14+I15+I16+I17+I18+I19+I20+I21+I22+I23+I24+I25+I26+I27+I28+I29+I30+I31+I32<=9000,I32*0.0866,0) -> 0 | V32: =R32+S32+T32+U32 -> 0
A33: 22 | B33: 11/16/2012-11/30/2012 | C33: $14.50 | E33: 0.00 | G33: =C33*E33 -> 0 | I33: =G33+H33 -> 0 | J33: =IF(C6=1,VLOOKUP(I33,Sigfed,C7+2),VLOOKUP(I33,marfed,C7+2)) -> $0.00 | K33: =I33*0.042 -> 0 | L33: =I33*0.0145 -> 0 | M33: =IF(C6=1,VLOOKUP(I33,Sine,C7+2),VLOOKUP(I33,marne,C7+2)) -> $0.00 | O33: =J33+K33+L33+M33+N33 -> 0 | P33: =I33-O33 -> 0 | Q33: 2012-12-01 | R33: =I33*0.062 -> 0 | S33: =I33*0.0145 -> 0 | T33: =IF(I33+I32+I31+I30+I29+I28+I27+I26+I25+I24+I23+I22+I21+I20+I19+I18+I17+I16+I15+I14+I13+I12<=7000,I33*0.062,0) -> 0 | U33: =IF(112+I13+I14+I15+I16+I17+I18+I19+I20+I21+I22+I23+I24+I25+I26+I27+I28+I29+I30+I31+I32+I33<=9000,I33*0.0866,0) -> 0 | V33: =R33+S33+T33+U33 -> 0
A34: 23 | B34: 12/1/2012-12/15/2012 | C34: $14.50 | E34: 0.00 | G34: =C34*E34 -> 0 | I34: =G34+H34 -> 0 | J34: =IF(C6=1,VLOOKUP(I34,Sigfed,C7+2),VLOOKUP(I34,marfed,C7+2)) -> $0.00 | K34: =I34*0.042 -> 0 | L34: =I34*0.0145 -> 0 | M34: =IF(C6=1,VLOOKUP(I34,Sine,C7+2),VLOOKUP(I34,marne,C7+2)) -> $0.00 | O34: =J34+K34+L34+M34+N34 -> 0 | P34: =I34-O34 -> 0 | Q34: 2012-12-16 | R34: =I34*0.062 -> 0 | S34: =I34*0.0145 -> 0 | T34: =IF(I34+I33+I32+I31+I30+I29+I28+I27+I26+I25+I24+I23+I22+I21+I20+I19+I18+I17+I16+I15+I14+I13+I12<=7000,I34*0.062,0) -> 0 | U34: =IF(112+I13+I14+I15+I16+I17+I18+I19+I20+I21+I22+I23+I24+I25+I26+I27+I28+I29+I30+I31+I32+I33+I34<=9000,I34*0.0866,0) -> 0 | V34: =R34+S34+T34+U34 -> 0
A35: 24 | B35: 12/16/2012-12/31/2012 | C35: $14.50 | E35: 0.00 | G35: =C35*E35 -> 0 | I35: =G35+H35 -> 0 | J35: =IF(C6=1,VLOOKUP(I35,Sigfed,C6+2),VLOOKUP(I35,marfed,C7+2)) -> $0.00 | K35: =I35*0.042 -> 0 | L35: =I35*0.0145 -> 0 | M35: =IF(C6=1,VLOOKUP(I35,Sine,C7+2),VLOOKUP(I35,marne,C7+2)) -> $0.00 | O35: =J35+K35+L35+M35+N35 -> 0 | P35: =I35-O35 -> 0 | Q35: 2013-01-01 | R35: =I35*0.062 -> 0 | S35: =I35*0.0145 -> 0 | T35: =IF(I35+I34+I33+I32+I31+I30+I29+I28+I27+I26+I25+I24+I23+I22+I21+I20+I19+I18+I17+I16+I15+I14+I13+I12<=7000,I35*0.062,0) -> 0 | U35: =IF(112+I13+I14+I15+I16+I17+I18+I19+I20+I21+I22+I23+I24+I25+I26+I27+I28+I29+I30+I31+I32+I33+I34+I35<=9000,I35*0.0866,0) -> 0 | V35: =R35+S35+T35+U35 -> 0
A36: Totals | G36: =SUM(G12:G35) -> 300 | H36: =SUM(H12:H35) -> 360 | I36: =SUM(I12:I35) -> 660 | J36: =SUM(J12:J35) -> 0 | K36: =SUM(K12:K35) -> 27.72 | L36: =SUM(L12:L35) -> 9.57 | M36: =SUM(M12:M35) -> 2.53 | N36: =SUM(N12:N35) -> $0.00 | O36: =SUM(O12:O35) -> 39.82 | P36: =SUM(P12:P35) -> 620.18 | R36: =SUM(R12:R35) -> 40.92 | S36: =SUM(S12:S35) -> 9.57 | T36: =SUM(T12:T35) -> 40.92 | U36: =SUM(U12:U35) -> 57.156 | V36: =SUM(V12:V35) -> 148.566
A37: PP
A38: 1
A40: Payroll Company
A47: =B2 -> John B Doe
A48: =B3 -> 123 Payroll Lane
A52: Employee | C52: Pay Period | D52: Pay Date | E52: S.S. | F52: Status (Fed/State) | G52: Allowances /Extra
A53: =B2 -> John B Doe | C53: =VLOOKUP(A38,A12:V35,+2) -> 1/1/2012-1/15/2012 | D53: =VLOOKUP(A38,A12:V35,+17) -> 2012-01-16 | E53: =B5 -> **1234 | F53: =B6 -> Married/4 | G53: =B7 -> 4
A56: Earnings and Hours | C56: Qty | D56: Rate | E56: Current | F56: YTD Amount
A57: Hourly Wage | C57: =VLOOKUP(A38,A12:V35,+5) -> 30 | D57: =VLOOKUP(A38,A12:V35,+3) -> $10.00 | E57: =VLOOKUP(A38,A12:V35,+7) -> $300.00 | F57: =G36 -> $300.00
A58: Overtime Wage | C58: =VLOOKUP(A38,A12:V35,+6) -> 30 | D58: =VLOOKUP(A38,A12:V35,+4) -> $12.00 | E58: =VLOOKUP(A38,A12:V35,+8) -> $360.00 | F58: =H36 -> $360.00
D59: Gross Pay | E59: =VLOOKUP(A38,A12:V35,+9) -> $660.00 | F59: =I36 -> $660.00
A61: Taxes | E61: Current | F61: YTD Amount
A62: Federal Withholding | E62: =VLOOKUP(A38,A12:V35,+10) -> $0.00 | F62: =J36 -> $0.00
A63: Social Security | E63: =VLOOKUP(A38,A12:V35,+11) -> $27.72 | F63: =K36 -> $27.72
A64: Medicare Employee | E64: =VLOOKUP(A38,A12:V35,+12) -> $9.57 | F64: =L36 -> $9.57
A65: NE- Withholding | E65: =VLOOKUP(A38,A12:V35,+13) -> $2.53 | F65: =M36 -> $2.53
A66: Other Deductions | E66: =VLOOKUP(A38,A12:V35,+14) -> 0 | F66: =N36 -> 0
A69: Net Pay | E69: =VLOOKUP(A38,A12:V35,+16) -> $620.18 | F69: =P36 -> 620.18

Sheet QTR1Summary
A1: Summary 2012 Quarter 1
A2: Copy and Paste info from individual sheets
C3: Wage | D3: Overtime rate | E3: Reg hours | F3: OT Hours | G3: Total Reg Wage | H3: Total OT Wage | I3: Gross Pay | J3: Federal With | K3: SS.Withholding | L3: Medicare Witholding | N3: Other Ded | O3: Total Ded | P3: Net Pay | Q3: pay date | R3: SS. | S3: MED | T3: FUTA | U3: SUTA | V3: Total Employer
A4: 1/1/2012-1/15/2012 | B4: Employee 1 | C4: $10.00 | E4: 88.50 | G4: =C4*E4 -> 885 | H4: =D4*F4 -> 0 | I4: =G4+H4 -> 885 | J4: $56.00 | K4: =I4*0.042 -> 37.17 | L4: =I4*0.0145 -> 12.8325 | M4: $22.17 | N4: $40.00 | O4: =J4+K4+L4+M4+N4 -> 168.1725 | P4: =I4-O4 -> 716.8275 | Q4: 2012-01-16 | R4: =I4*0.062 -> 54.87 | S4: =I4*0.0145 -> 12.8325 | T4: =I4*0.062 -> 54.87 | U4: =I4*0.0649 -> 57.4365 | V4: =R4+S4+T4+U4 -> 180.009
B5: Employee 2 | C5: $11.25 | E5: 83.00 | G5: =C5*E5 -> 933.75 | H5: =D5*F5 -> 0 | I5: =G5+H5 -> 933.75 | J5: $45.00 | K5: =I5*0.042 -> 39.2175 | L5: =I5*0.0145 -> 13.539375 | M5: $18.48 | N5: $0.00 | O5: =J5+K5+L5+M5+N5 -> 116.236875 | P5: =I5-O5 -> 817.513125 | Q5: 2012-01-16 | R5: =I5*0.062 -> 57.8925 | S5: =I5*0.0145 -> 13.539375 | T5: =I5*0.062 -> 57.8925 | U5: =I5*0.0649 -> 60.600375 | V5: =R5+S5+T5+U5 -> 189.92475
A6: 12 Employees | B6: Employee 3 | C6: $10.50 | E6: 62.00 | G6: =C6*E6 -> 651 | H6: =D6*F6 -> 0 | I6: =G6+H6 -> 651 | J6: $32.00 | K6: =I6*0.042 -> 27.342 | L6: =I6*0.0145 -> 9.4395 | M6: $11.64 | N6: $0.00 | O6: =J6+K6+L6+M6+N6 -> 80.4215 | P6: =I6-O6 -> 570.5785 | Q6: 2012-01-16 | R6: =I6*0.062 -> 40.362 | S6: =I6*0.0145 -> 9.4395 | T6: =I6*0.062 -> 40.362 | U6: =I6*0.0649 -> 42.2499 | V6: =R6+S6+T6+U6 -> 132.4134
B7: Employee 4 | C7: $16.00 | E7: 110.00 | G7: =C7*E7 -> 1760 | H7: =D7*F7 -> 0 | I7: =G7+H7 -> 1760 | J7: $188.00 | K7: =I7*0.042 -> 73.92 | L7: =I7*0.0145 -> 25.52 | M7: $75.96 | N7: $0.00 | O7: =J7+K7+L7+M7+N7 -> 363.4 | P7: =I7-O7 -> 1396.6 | Q7: 2012-01-16 | R7: =I7*0.062 -> 109.12 | S7: =I7*0.0145 -> 25.52 | T7: =I7*0.062 -> 109.12 | U7: =I7*0.0649 -> 114.224 | V7: =R7+S7+T7+U7 -> 357.984
B8: Employee 5 | C8: $10.50 | E8: 90.00 | G8: =C8*E8 -> 945 | H8: =D8*F8 -> 0 | I8: =G8+H8 -> 945 | J8: $47.00 | K8: =I8*0.042 -> 39.69 | L8: =I8*0.0145 -> 13.7025 | M8: $18.48 | N8: $0.00 | O8: =J8+K8+L8+M8+N8 -> 118.8725 | P8: =I8-O8 -> 826.1275 | Q8: 2012-01-16 | R8: =I8*0.062 -> 58.59 | S8: =I8*0.0145 -> 13.7025 | T8: =IF(I32<=9000,I8*0.062,0) -> 58.59 | U8: =I8*0.0649 -> 61.3305 | V8: =R8+S8+T8+U8 -> 192.213
B9: Employee 6 | C9: $9.00 | E9: 62.00 | G9: =C9*E9 -> 558 | H9: =D9*F9 -> 0 | I9: =G9+H9 -> 558 | J9: $15.00 | K9: =I9*0.042 -> 23.436 | L9: =I9*0.0145 -> 8.091 | M9: $9.67 | N9: $0.00 | O9: =J9+K9+L9+M9+N9 -> 56.197 | P9: =I9-O9 -> 501.803 | Q9: 2012-01-16 | R9: =I9*0.062 -> 34.596 | S9: =I9*0.0145 -> 8.091 | T9: =I9*0.062 -> 34.596 | U9: =I9*0.0649 -> 36.2142 | V9: =R9+S9+T9+U9 -> 113.4972
B10: Employee 7 | C10: $9.00 | E10: 6.00 | G10: =C10*E10 -> 54 | H10: =D10*F10 -> 0 | I10: =G10+H10 -> 54 | J10: $0.00 | K10: =I10*0.042 -> 2.268 | L10: =I10*0.0145 -> 0.783 | M10: $0.00 | N10: $0.00 | O10: =J10+K10+L10+M10+N10 -> 3.051 | P10: =I10-O10 -> 50.949 | Q10: 2012-01-16 | R10: =I10*0.062 -> 3.348 | S10: =I10*0.0145 -> 0.783 | T10: =I10*0.062 -> 3.348 | U10: =I10*0.0649 -> 3.5046 | V10: =R10+S10+T10+U10 -> 10.9836
B11: Employee 8 | C11: $12.00 | E11: 79.50 | G11: =C11*E11 -> 954 | H11: =D11*F11 -> 0 | I11: =G11+H11 -> 954 | J11: $62.00 | K11: =I11*0.042 -> 40.068 | L11: =I11*0.0145 -> 13.833 | M11: $0.00 | N11: $0.00 | O11: =J11+K11+L11+M11+N11 -> 115.901 | P11: =I11-O11 -> 838.099 | Q11: 2012-01-16 | R11: =I11*0.062 -> 59.148 | S11: =I11*0.0145 -> 13.833 | T11: =I11*0.062 -> 59.148 | U11: =I11*0.0649 -> 61.9146 | V11: =R11+S11+T11+U11 -> 194.0436
B12: Employee 9 | C12: $10.00 | E12: 71.50 | G12: =C12*E12 -> 715 | H12: =D12*F12 -> 0 | I12: =G12+H12 -> 715 | J12: $0.00 | K12: =I12*0.042 -> 30.03 | L12: =I12*0.0145 -> 10.3675 | M12: $0.00 | N12: $0.00 | O12: =J12+K12+L12+M12+N12 -> 40.3975 | P12: =I12-O12 -> 674.6025 | Q12: 2012-01-16 | R12: =I12*0.062 -> 44.33 | S12: =I12*0.0145 -> 10.3675 | T12: =I12*0.062 -> 44.33 | U12: =I12*0.0649 -> 46.4035 | V12: =R12+S12+T12+U12 -> 145.431
B13: Employee 10 | C13: $10.50 | E13: 88.00 | G13: =C13*E13 -> 924 | H13: =D13*F13 -> 0 | I13: =G13+H13 -> 924 | J13: $86.00 | K13: =I13*0.042 -> 38.808 | L13: =I13*0.0145 -> 13.398 | M13: $0.00 | N13: $20.00 | O13: =J13+K13+L13+M13+N13 -> 158.206 | P13: =I13-O13 -> 765.794 | Q13: 2012-01-16 | R13: =I13*0.062 -> 57.288 | S13: =I13*0.0145 -> 13.398 | T13: =I13*0.062 -> 57.288 | U13: =I13*0.0649 -> 59.9676 | V13: =R13+S13+T13+U13 -> 187.9416
B14: Employee 11 | C14: $15.00 | E14: 89.00 | G14: =C14*E14 -> 1335 | H14: =D14*F14 -> 0 | I14: =G14+H14 -> 1335 | J14: $38.00 | K14: =I14*0.042 -> 56.07 | L14: =I14*0.0145 -> 19.3575 | M14: $0.00 | N14: $0.00 | O14: =J14+K14+L14+M14+N14 -> 113.4275 | P14: =I14-O14 -> 1221.5725 | Q14: 2012-01-16 | R14: =I14*0.062 -> 82.77 | S14: =I14*0.0145 -> 19.3575 | T14: =I14*0.062 -> 82.77 | U14: =I14*0.0649 -> 86.6415 | V14: =R14+S14+T14+U14 -> 271.539
B15: Employee 12 | C15: $12.00 | E15: 87.00 | G15: =C15*E15 -> 1044 | H15: =D15*F15 -> 0 | I15: =G15+H15 -> 1044 | J15: $80.00 | K15: =I15*0.042 -> 43.848 | L15: =I15*0.0145 -> 15.138 | M15: $0.00 | N15: $0.00 | O15: =J15+K15+L15+M15+N15 -> 138.986 | P15: =I15-O15 -> 905.014 | Q15: 2012-01-16 | R15: =I15*0.062 -> 64.728 | S15: =I15*0.0145 -> 15.138 | T15: =I15*0.062 -> 64.728 | U15: =I15*0.0649 -> 67.7556 | V15: =R15+S15+T15+U15 -> 212.3496
U16: =I16*0.0649 -> 0
A17: 1/16/2012-1/31/2012 | B17: Employee 1 | C17: $10.00 | E17: 83.50 | G17: =C17*E17 -> 835 | H17: =D17*F17 -> 0 | I17: =G17+H17 -> 835 | J17: $47.00 | K17: =I17*0.042 -> 35.07 | L17: =I17*0.0145 -> 12.1075 | M17: $0.00 | N17: $120.00 | O17: =J17+K17+L17+M17+N17 -> 214.1775 | P17: =I17-O17 -> 620.8225 | Q17: 2012-02-01 | R17: =I17*0.062 -> 51.77 | S17: =I17*0.0145 -> 12.1075 | T17: =I17*0.062 -> 51.77 | U17: =I17*0.0649 -> 54.1915 | V17: =R17+S17+T17+U17 -> 169.839
B18: Employee 2 | C18: $11.25 | E18: 73.00 | G18: =C18*E18 -> 821.25 | H18: =D18*F18 -> 0 | I18: =G18+H18 -> 821.25 | J18: $35.00 | K18: =I18*0.042 -> 34.4925 | L18: =I18*0.0145 -> 11.908125 | M18: $0.00 | O18: =J18+K18+L18+M18+N18 -> 81.400625 | P18: =I18-O18 -> 739.849375 | Q18: 2012-02-01 | R18: =I18*0.062 -> 50.9175 | S18: =I18*0.0145 -> 11.908125 | T18: =I18*0.062 -> 50.9175 | U18: =I18*0.0649 -> 53.299125 | V18: =R18+S18+T18+U18 -> 167.04225
B19: Employee 3 | C19: $10.50 | E19: 87.50 | G19: =C19*E19 -> 918.75 | H19: =D19*F19 -> 0 | I19: =G19+H19 -> 918.75 | J19: $58.00 | K19: =I19*0.042 -> 38.5875 | L19: =I19*0.0145 -> 13.321875 | M19: $0.00 | N19: $35.00 | O19: =J19+K19+L19+M19+N19 -> 144.909375 | P19: =I19-O19 -> 773.840625 | Q19: 2012-02-01 | R19: =I19*0.062 -> 56.9625 | S19: =I19*0.0145 -> 13.321875 | T19: =I19*0.062 -> 56.9625 | U19: =I19*0.0649 -> 59.626875 | V19: =R19+S19+T19+U19 -> 186.87375
B20: Employee 4 | C20: $16.00 | E20: 100.00 | G20: =C20*E20 -> 1600 | H20: =D20*F20 -> 0 | I20: =G20+H20 -> 1600 | J20: $164.00 | K20: =I20*0.042 -> 67.2 | L20: =I20*0.0145 -> 23.2 | M20: $0.00 | O20: =J20+K20+L20+M20+N20 -> 254.4 | P20: =I20-O20 -> 1345.6 | Q20: 2012-02-01 | R20: =I20*0.062 -> 99.2 | S20: =I20*0.0145 -> 23.2 | T20: =I20*0.062 -> 99.2 | U20: =I20*0.0649 -> 103.84 | V20: =R20+S20+T20+U20 -> 325.44
B21: Employee 5 | C21: $10.50 | E21: 90.00 | G21: =C21*E21 -> 945 | H21: =D21*F21 -> 0 | I21: =G21+H21 -> 945 | J21: $47.00 | K21: =I21*0.042 -> 39.69 | L21: =I21*0.0145 -> 13.7025 | M21: $0.00 | N21: $420.00 | O21: =J21+K21+L21+M21+N21 -> 520.3925 | P21: =I21-O21 -> 424.6075 | Q21: 2012-01-16 | R21: =I21*0.062 -> 58.59 | S21: =I21*0.0145 -> 13.7025 | T21: =IF(I45<=9000,I21*0.062,0) -> 58.59 | U21: =I21*0.0649 -> 61.3305 | V21: =R21+S21+T21+U21 -> 192.213
B22: Employee 6 | C22: $12.00 | E22: 72.50 | G22: =C22*E22 -> 870 | H22: =D22*F22 -> 0 | I22: =G22+H22 -> 870 | J22: $54.00 | K22: =I22*0.042 -> 36.54 | L22: =I22*0.0145 -> 12.615 | M22: $0.00 | N22: $280.00 | O22: =J22+K22+L22+M22+N22 -> 383.155 | P22: =I22-O22 -> 486.845 | Q22: 2012-02-01 | R22: =I22*0.062 -> 53.94 | S22: =I22*0.0145 -> 12.615 | T22: =I22*0.062 -> 53.94 | U22: =I22*0.0649 -> 56.463 | V22: =R22+S22+T22+U22 -> 176.958
B23: Employee 7 | C23: $10.00 | E23: 87.00 | G23: =C23*E23 -> 870 | H23: =D23*F23 -> 0 | I23: =G23+H23 -> 870 | J23: $0.00 | K23: =I23*0.042 -> 36.54 | L23: =I23*0.0145 -> 12.615 | M23: $0.00 | O23: =J23+K23+L23+M23+N23 -> 49.155 | P23: =I23-O23 -> 820.845 | Q23: 2012-02-01 | R23: =I23*0.062 -> 53.94 | S23: =I23*0.0145 -> 12.615 | T23: =I23*0.062 -> 53.94 | U23: =I23*0.0649 -> 56.463 | V23: =R23+S23+T23+U23 -> 176.958
B24: Employee 8 | C24: $10.50 | E24: 67.75 | G24: =C24*E24 -> 711.375 | H24: =D24*F24 -> 0 | I24: =G24+H24 -> 711.375 | J24: $53.00 | K24: =I24*0.042 -> 29.87775 | L24: =I24*0.0145 -> 10.3149375 | M24: $17.22 | N24: $20.00 | O24: =J24+K24+L24+M24+N24 -> 130.4126875 | P24: =I24-O24 -> 580.9623125 | Q24: 2012-02-01 | R24: =I24*0.062 -> 44.10525 | S24: =I24*0.0145 -> 10.3149375 | T24: =I24*0.062 -> 44.10525 | U24: =I24*0.0649 -> 46.1682375 | V24: =R24+S24+T24+U24 -> 144.693675
B25: Employee 9 | C25: $15.00 | E25: 109.00 | G25: =C25*E25 -> 1635 | H25: =D25*F25 -> 0 | I25: =G25+H25 -> 1635 | J25: $68.00 | K25: =I25*0.042 -> 68.67 | L25: =I25*0.0145 -> 23.7075 | M25: $0.00 | O25: =J25+K25+L25+M25+N25 -> 160.3775 | P25: =I25-O25 -> 1474.6225 | Q25: 2012-02-01 | R25: =I25*0.062 -> 101.37 | S25: =I25*0.0145 -> 23.7075 | T25: =I25*0.062 -> 101.37 | U25: =I25*0.0649 -> 106.1115 | V25: =R25+S25+T25+U25 -> 332.559
B26: Employee 10 | C26: $12.00 | E26: 90.00 | G26: =C26*E26 -> 1080 | H26: =D26*F26 -> 0 | I26: =G26+H26 -> 1080 | J26: $86.00 | K26: =I26*0.042 -> 45.36 | L26: =I26*0.0145 -> 15.66 | M26: $0.00 | O26: =J26+K26+L26+M26+N26 -> 147.02 | P26: =I26-O26 -> 932.98 | Q26: 2012-02-01 | R26: =I26*0.062 -> 66.96 | S26: =I26*0.0145 -> 15.66 | T26: =I26*0.062 -> 66.96 | U26: =I26*0.0649 -> 70.092 | V26: =R26+S26+T26+U26 -> 219.672
U27: =I27*0.0649 -> 0
A28: 2/1/2012-2/15/2012 | B28: Employee 1 | C28: $10.00 | E28: 66.25 | G28: =C28*E28 -> 662.5 | I28: =G28+H28 -> 662.5 | J28: $27.00 | K28: =I28*0.042 -> 27.825 | L28: =I28*0.0145 -> 9.60625 | M28: $0.00 | N28: 50 | O28: =J28+K28+L28+M28+N28 -> 114.43125 | P28: =I28-O28 -> 548.06875 | Q28: 2012-02-16 | R28: =I28*0.062 -> 41.075 | S28: =I28*0.0145 -> 9.60625 | T28: =I28*0.062 -> 41.075 | U28: =I28*0.0649 -> 42.99625 | V28: =R28+S28+T28+U28 -> 134.7525
A29: 8 Employees | B29: Employee 2 | C29: $11.25 | E29: 57.25 | G29: =C29*E29 -> 644.0625 | I29: =G29+H29 -> 644.0625 | J29: $17.00 | K29: =I29*0.042 -> 27.050625 | L29: =I29*0.0145 -> 9.33890625 | M29: $0.00 | O29: =J29+K29+L29+M29+N29 -> 53.38953125 | P29: =I29-O29 -> 590.6729687 | Q29: 2012-02-16 | R29: =I29*0.062 -> 39.931875 | S29: =I29*0.0145 -> 9.33890625 | T29: =I29*0.062 -> 39.931875 | U29: =I29*0.0649 -> 41.79965625 | V29: =R29+S29+T29+U29 -> 131.0023125
B30: Employee 3 | C30: $10.50 | E30: 55.50 | G30: =C30*E30 -> 582.75 | I30: =G30+H30 -> 582.75 | J30: $26.00 | K30: =I30*0.042 -> 24.4755 | L30: =I30*0.0145 -> 8.449875 | M30: $0.00 | N30: 45 | O30: =J30+K30+L30+M30+N30 -> 103.925375 | P30: =I30-O30 -> 478.824625 | Q30: 2012-02-16 | R30: =I30*0.062 -> 36.1305 | S30: =I30*0.0145 -> 8.449875 | T30: =I30*0.062 -> 36.1305 | U30: =I30*0.0649 -> 37.820475 | V30: =R30+S30+T30+U30 -> 118.53135
B31: Employee 4 | C31: $16.00 | E31: 77.00 | G31: =C31*E31 -> 1232 | I31: =G31+H31 -> 1232 | J31: $107.00 | K31: =I31*0.042 -> 51.744 | L31: =I31*0.0145 -> 17.864 | M31: $0.00 | O31: =J31+K31+L31+M31+N31 -> 176.608 | P31: =I31-O31 -> 1055.392 | Q31: 2012-02-16 | R31: =I31*0.062 -> 76.384 | S31: =I31*0.0145 -> 17.864 | T31: =I31*0.062 -> 76.384 | U31: =I31*0.0649 -> 79.9568 | V31: =R31+S31+T31+U31 -> 250.5888
B32: Employee 5 | C32: $10.50 | E32: 52.50 | G32: =C32*E32 -> 551.25 | I32: =G32+H32 -> 551.25 | J32: $7.00 | K32: =I32*0.042 -> 23.1525 | L32: =I32*0.0145 -> 7.993125 | M32: $0.00 | N32: 221.08 | O32: =J32+K32+L32+M32+N32 -> 259.225625 | P32: =I32-O32 -> 292.024375 | Q32: 2012-02-16 | R32: =I32*0.062 -> 34.1775 | S32: =I32*0.0145 -> 7.993125 | T32: =IF(I54<=9000,I32*0.062,0) -> 34.1775 | U32: =I32*0.0649 -> 35.776125 | V32: =R32+S32+T32+U32 -> 112.12425
B33: Employee 6 | C33: $12.00 | E33: 30.25 | G33: =C33*E33 -> 363 | I33: =G33+H33 -> 363 | J33: $4.00 | K33: =I33*0.042 -> 15.246 | L33: =I33*0.0145 -> 5.2635 | M33: $0.00 | N33: 140 | O33: =J33+K33+L33+M33+N33 -> 164.5095 | P33: =I33-O33 -> 198.4905 | Q33: 2012-02-16 | R33: =I33*0.062 -> 22.506 | S33: =I33*0.0145 -> 5.2635 | T33: =I33*0.062 -> 22.506 | U33: =I33*0.0649 -> 23.5587 | V33: =R33+S33+T33+U33 -> 73.8342
B34: Employee 7 | C34: $10.00 | E34: 55.00 | G34: =C34*E34 -> 550 | I34: =G34+H34 -> 550 | J34: $0.00 | K34: =I34*0.042 -> 23.1 | L34: =I34*0.0145 -> 7.975 | M34: $0.00 | O34: =J34+K34+L34+M34+N34 -> 31.075 | P34: =I34-O34 -> 518.925 | Q34: 2012-02-16 | R34: =I34*0.062 -> 34.1 | S34: =I34*0.0145 -> 7.975 | T34: =I34*0.062 -> 34.1 | U34: =I34*0.0649 -> 35.695 | V34: =R34+S34+T34+U34 -> 111.87
B35: Employee 8 | C35: $10.50 | E35: 48.50 | G35: =C35*E35 -> 509.25 | I35: =G35+H35 -> 509.25 | J35: $27.00 | K35: =I35*0.042 -> 21.3885 | L35: =I35*0.0145 -> 7.384125 | M35: $0.00 | O35: =J35+K35+L35+M35+N35 -> 55.772625 | P35: =I35-O35 -> 453.477375 | Q35: 2012-02-16 | R35: =I35*0.062 -> 31.5735 | S35: =I35*0.0145 -> 7.384125 | T35: =I35*0.062 -> 31.5735 | U35: =I35*0.0649 -> 33.050325 | V35: =R35+S35+T35+U35 -> 103.58145
U36: =I36*0.0649 -> 0
A37: 2/16/2012-2/28/2012 | B37: Employee 1 | C37: $10.00 | E37: 82.50 | G37: =C37*E37 -> 825 | I37: =G37+H37 -> 825 | J37: $47.00 | K37: =I37*0.042 -> 34.65 | L37: =I37*0.0145 -> 11.9625 | M37: $0.00 | N37: 340.2 | O37: =J37+K37+L37+M37+N37 -> 433.8125 | P37: =I37-O37 -> 391.1875 | Q37: 2012-03-01 | R37: =I37*0.062 -> 51.15 | S37: =I37*0.0145 -> 11.9625 | T37: =I37*0.062 -> 51.15 | U37: =I37*0.0649 -> 53.5425 | V37: =R37+S37+T37+U37 -> 167.805
B38: Employee 2 | C38: $11.25 | E38: 90.00 | G38: =C38*E38 -> 1012.5 | I38: =G38+H38 -> 1012.5 | J38: $53.00 | K38: =I38*0.042 -> 42.525 | L38: =I38*0.0145 -> 14.68125 | M38: $0.00 | O38: =J38+K38+L38+M38+N38 -> 110.20625 | P38: =I38-O38 -> 902.29375 | Q38: 2012-03-01 | R38: =I38*0.062 -> 62.775 | S38: =I38*0.0145 -> 14.68125 | T38: =I38*0.062 -> 62.775 | U38: =I38*0.0649 -> 65.71125 | V38: =R38+S38+T38+U38 -> 205.9425
B39: Employee 3 | C39: $10.50 | E39: 56.00 | G39: =C39*E39 -> 588 | I39: =G39+H39 -> 588 | J39: $26.00 | K39: =I39*0.042 -> 24.696 | L39: =I39*0.0145 -> 8.526 | M39: $0.00 | O39: =J39+K39+L39+M39+N39 -> 59.222 | P39: =I39-O39 -> 528.778 | Q39: 2012-03-01 | R39: =I39*0.062 -> 36.456 | S39: =I39*0.0145 -> 8.526 | T39: =I39*0.062 -> 36.456 | U39: =I39*0.0649 -> 38.1612 | V39: =R39+S39+T39+U39 -> 119.5992
B40: Employee 4 | C40: $16.00 | E40: 56.00 | G40: =C40*E40 -> 896 | I40: =G40+H40 -> 896 | J40: $56.00 | K40: =I40*0.042 -> 37.632 | L40: =I40*0.0145 -> 12.992 | M40: $0.00 | O40: =J40+K40+L40+M40+N40 -> 106.624 | P40: =I40-O40 -> 789.376 | Q40: 2012-03-01 | R40: =I40*0.062 -> 55.552 | S40: =I40*0.0145 -> 12.992 | T40: =I40*0.062 -> 55.552 | U40: =I40*0.0649 -> 58.1504 | V40: =R40+S40+T40+U40 -> 182.2464
B41: Employee 5 | C41: $10.50 | E41: 51.00 | G41: =C41*E41 -> 535.5 | I41: =G41+H41 -> 535.5 | J41: $5.00 | K41: =I41*0.042 -> 22.491 | L41: =I41*0.0145 -> 7.76475 | M41: $0.00 | N41: 0 | O41: =J41+K41+L41+M41+N41 -> 35.25575 | P41: =I41-O41 -> 500.24425 | Q41: 2012-03-01 | R41: =I41*0.062 -> 33.201 | S41: =I41*0.0145 -> 7.76475 | T41: =IF(I62<=9000,I41*0.062,0) -> 33.201 | U41: =I41*0.0649 -> 34.75395 | V41: =R41+S41+T41+U41 -> 108.9207
B42: Employee 6 | C42: $9.00 | E42: 37.50 | G42: =C42*E42 -> 337.5 | I42: =G42+H42 -> 337.5 | J42: $25.00 | K42: =I42*0.042 -> 14.175 | L42: =I42*0.0145 -> 4.89375 | M42: $0.00 | O42: =J42+K42+L42+M42+N42 -> 44.06875 | P42: =I42-O42 -> 293.43125 | Q42: 2012-03-01 | R42: =I42*0.062 -> 20.925 | S42: =I42*0.0145 -> 4.89375 | T42: =I42*0.062 -> 20.925 | U42: =I42*0.0649 -> 21.90375 | V42: =R42+S42+T42+U42 -> 68.6475
B43: Employee 7 | C43: $12.00 | E43: 21.00 | G43: =C43*E43 -> 252 | I43: =G43+H43 -> 252 | J43: $0.00 | K43: =I43*0.042 -> 10.584 | L43: =I43*0.0145 -> 3.654 | M43: $0.00 | O43: =J43+K43+L43+M43+N43 -> 14.238 | P43: =I43-O43 -> 237.762 | Q43: 2012-03-01 | R43: =I43*0.062 -> 15.624 | S43: =I43*0.0145 -> 3.654 | T43: =I43*0.062 -> 15.624 | U43: =I43*0.0649 -> 16.3548 | V43: =R43+S43+T43+U43 -> 51.2568
B44: Employee 8 | C44: $10.00 | E44: 44.50 | G44: =C44*E44 -> 445 | I44: =G44+H44 -> 445 | J44: $0.00 | K44: =I44*0.042 -> 18.69 | L44: =I44*0.0145 -> 6.4525 | M44: $0.00 | O44: =J44+K44+L44+M44+N44 -> 25.1425 | P44: =I44-O44 -> 419.8575 | Q44: 2012-03-01 | R44: =I44*0.062 -> 27.59 | S44: =I44*0.0145 -> 6.4525 | T44: =I44*0.062 -> 27.59 | U44: =I44*0.0649 -> 28.8805 | V44: =R44+S44+T44+U44 -> 90.513
U45: =I45*0.0649 -> 0
A46: 3/1/2012-3/15/2012 | B46: Employee 1 | C46: $10.00 | E46: 99.25 | G46: =C46*E46 -> 992.5 | I46: =G46+H46 -> 992.5 | J46: $71.00 | K46: =I46*0.042 -> 41.685 | L46: =I46*0.0145 -> 14.39125 | M46: $0.00 | O46: =J46+K46+L46+M46+N46 -> 127.07625 | P46: =I46-O46 -> 865.42375 | Q46: 2012-03-16 | R46: =I46*0.062 -> 61.535 | S46: =I46*0.0145 -> 14.39125 | T46: =I46*0.062 -> 61.535 | U46: =I46*0.0649 -> 64.41325 | V46: =R46+S46+T46+U46 -> 201.8745
A47: 7 Employees | B47: Employee 2 | C47: $11.25 | E47: 99.25 | G47: =C47*E47 -> 1116.5625 | I47: =G47+H47 -> 1116.5625 | J47: $63.00 | K47: =I47*0.042 -> 46.895625 | L47: =I47*0.0145 -> 16.19015625 | M47: $0.00 | O47: =J47+K47+L47+M47+N47 -> 126.0857812 | P47: =I47-O47 -> 990.4767188 | Q47: 2012-03-16 | R47: =I47*0.062 -> 69.226875 | S47: =I47*0.0145 -> 16.19015625 | T47: =I47*0.062 -> 69.226875 | U47: =I47*0.0649 -> 72.46490625 | V47: =R47+S47+T47+U47 -> 227.1088125
B48: Employee 3 | C48: $10.50 | E48: 75.50 | G48: =C48*E48 -> 792.75 | I48: =G48+H48 -> 792.75 | J48: $46.00 | K48: =I48*0.042 -> 33.2955 | L48: =I48*0.0145 -> 11.494875 | M48: $0.00 | O48: =J48+K48+L48+M48+N48 -> 90.790375 | P48: =I48-O48 -> 701.959625 | Q48: 2012-03-16 | R48: =I48*0.062 -> 49.1505 | S48: =I48*0.0145 -> 11.494875 | T48: =I48*0.062 -> 49.1505 | U48: =I48*0.0649 -> 51.449475 | V48: =R48+S48+T48+U48 -> 161.24535
B49: Employee 4 | C49: $16.00 | E49: 80.00 | G49: =C49*E49 -> 1280 | I49: =G49+H49 -> 1280 | J49: $116.00 | K49: =I49*0.042 -> 53.76 | L49: =I49*0.0145 -> 18.56 | M49: $0.00 | O49: =J49+K49+L49+M49+N49 -> 188.32 | P49: =I49-O49 -> 1091.68 | Q49: 2012-03-16 | R49: =I49*0.062 -> 79.36 | S49: =I49*0.0145 -> 18.56 | T49: =I49*0.062 -> 79.36 | U49: =I49*0.0649 -> 83.072 | V49: =R49+S49+T49+U49 -> 260.352
B50: Employee 5 | C50: $10.50 | E50: 99.25 | G50: =C50*E50 -> 1042.125 | I50: =G50+H50 -> 1042.125 | J50: =IF(C40=1,VLOOKUP(I50,Sigfed,C41+2),VLOOKUP(I50,marfed,C41+2)) -> $0.00 | K50: =I50*0.042 -> 43.76925 | L50: =I50*0.0145 -> 15.1108125 | M50: $0.00 | N50: 421 | O50: =J50+K50+L50+M50+N50 -> 479.8800625 | P50: =I50-O50 -> 562.2449375 | Q50: 2012-03-16 | R50: =I50*0.062 -> 64.61175 | S50: =I50*0.0145 -> 15.1108125 | T50: =IF(I70<=9000,I50*0.062,0) -> 64.61175 | U50: =I50*0.0649 -> 67.6339125 | V50: =R50+S50+T50+U50 -> 211.968225
B51: Employee 6 | C51: $9.00 | E51: 105.00 | G51: =C51*E51 -> 945 | I51: =G51+H51 -> 945 | J51: $112.00 | K51: =I51*0.042 -> 39.69 | L51: =I51*0.0145 -> 13.7025 | M51: $0.00 | O51: =J51+K51+L51+M51+N51 -> 165.3925 | P51: =I51-O51 -> 779.6075 | Q51: 2012-03-16 | R51: =I51*0.062 -> 58.59 | S51: =I51*0.0145 -> 13.7025 | T51: =I51*0.062 -> 58.59 | U51: =I51*0.0649 -> 61.3305 | V51: =R51+S51+T51+U51 -> 192.213
B52: Employee 7 | C52: $12.00 | E52: 34.00 | G52: =C52*E52 -> 408 | I52: =G52+H52 -> 408 | J52: $8.00 | K52: =I52*0.042 -> 17.136 | L52: =I52*0.0145 -> 5.916 | M52: $0.00 | O52: =J52+K52+L52+M52+N52 -> 31.052 | P52: =I52-O52 -> 376.948 | Q52: 2012-03-16 | R52: =I52*0.062 -> 25.296 | S52: =I52*0.0145 -> 5.916 | T52: =I52*0.062 -> 25.296 | U52: =I52*0.0649 -> 26.4792 | V52: =R52+S52+T52+U52 -> 82.9872
U53: =I53*0.0649 -> 0
A54: 3/16/2012-3/31/2012 | B54: Employee 1 | C54: $10.00 | E54: 116.50 | G54: =C54*E54 -> 1165 | I54: =G54+H54 -> 1165 | J54: $98.00 | K54: =I54*0.042 -> 48.93 | L54: =I54*0.0145 -> 16.8925 | M54: $0.00 | O54: =J54+K54+L54+M54+N54 -> 163.8225 | P54: =I54-O54 -> 1001.1775 | Q54: 2012-04-01 | R54: =I54*0.062 -> 72.23 | S54: =I54*0.0145 -> 16.8925 | T54: =I54*0.062 -> 72.23 | U54: =I54*0.0649 -> 75.6085 | V54: =R54+S54+T54+U54 -> 236.961
B55: Employee 2 | C55: $11.25 | E55: 116.50 | G55: =C55*E55 -> 1310.625 | I55: =G55+H55 -> 1310.625 | J55: $89.00 | K55: =I55*0.042 -> 55.04625 | L55: =I55*0.0145 -> 19.0040625 | M55: $0.00 | O55: =J55+K55+L55+M55+N55 -> 163.0503125 | P55: =I55-O55 -> 1147.574687 | Q55: 2012-04-01 | R55: =I55*0.062 -> 81.25875 | S55: =I55*0.0145 -> 19.0040625 | T55: =I55*0.062 -> 81.25875 | U55: =I55*0.0649 -> 85.0595625 | V55: =R55+S55+T55+U55 -> 266.581125
B56: Employee 3 | C56: $10.50 | E56: 107.50 | G56: =C56*E56 -> 1128.75 | I56: =G56+H56 -> 1128.75 | J56: $85.00 | K56: =I56*0.042 -> 47.4075 | L56: =I56*0.0145 -> 16.366875 | M56: $0.00 | O56: =J56+K56+L56+M56+N56 -> 148.774375 | P56: =I56-O56 -> 979.975625 | Q56: 2012-04-01 | R56: =I56*0.062 -> 69.9825 | S56: =I56*0.0145 -> 16.366875 | T56: =I56*0.062 -> 69.9825 | U56: =I56*0.0649 -> 73.255875 | V56: =R56+S56+T56+U56 -> 229.58775
B57: Employee 4 | C57: $16.00 | E57: 80.00 | G57: =C57*E57 -> 1280 | I57: =G57+H57 -> 1280 | J57: $116.00 | K57: =I57*0.042 -> 53.76 | L57: =I57*0.0145 -> 18.56 | M57: $0.00 | O57: =J57+K57+L57+M57+N57 -> 188.32 | P57: =I57-O57 -> 1091.68 | Q57: 2012-04-01 | R57: =I57*0.062 -> 79.36 | S57: =I57*0.0145 -> 18.56 | T57: 14.38 | U57: =I57*0.0649 -> 83.072 | V57: =R57+S57+T57+U57 -> 195.372
B58: Employee 5 | C58: $10.50 | E58: 107.50 | G58: =C58*E58 -> 1128.75 | I58: =G58+H58 -> 1128.75 | J58: $65.00 | K58: =I58*0.042 -> 47.4075 | L58: =I58*0.0145 -> 16.366875 | M58: $0.00 | N58: 421 | O58: =J58+K58+L58+M58+N58 -> 549.774375 | P58: =I58-O58 -> 578.975625 | Q58: 2012-04-01 | R58: =I58*0.062 -> 69.9825 | S58: =I58*0.0145 -> 16.366875 | T58: =IF(I77<=9000,I58*0.062,0) -> 69.9825 | U58: =I58*0.0649 -> 73.255875 | V58: =R58+S58+T58+U58 -> 229.58775
B59: Employee 6 | C59: $9.00 | E59: 93.50 | G59: =C59*E59 -> 841.5 | I59: =G59+H59 -> 841.5 | J59: $97.00 | K59: =I59*0.042 -> 35.343 | L59: =I59*0.0145 -> 12.20175 | M59: $0.00 | O59: =J59+K59+L59+M59+N59 -> 144.54475 | P59: =I59-O59 -> 696.95525 | Q59: 2012-04-01 | R59: =I59*0.062 -> 52.173 | S59: =I59*0.0145 -> 12.20175 | T59: =I59*0.062 -> 52.173 | U59: =I59*0.0649 -> 54.61335 | V59: =R59+S59+T59+U59 -> 171.1611
E60: =SUM(E4:E59) -> 3871.25 | F60: =SUM(F4:F59) -> 0 | G60: =SUM(G4:G59) -> 44463 | H60: =SUM(H4:H59) -> 0 | I60: =SUM(I4:I59) -> 44463 | J60: =SUM(J4:J59) -> 2654 | K60: =SUM(K4:K59) -> 1867.446 | L60: =SUM(L4:L59) -> 644.7135 | M60: =SUM(M4:M59) -> $173.62 | N60: =SUM(N4:N59) -> 2573.28 | O60: =SUM(O4:O59) -> 7913.0595 | P60: =SUM(P4:P59) -> 36549.9405 | R60: =SUM(R4:R59) -> 2756.706 | S60: =SUM(S4:S59) -> 644.7135 | T60: =SUM(T4:T59) -> 2691.726 | U60: =SUM(U4:U59) -> 2885.6487 | V60: =SUM(V4:V59) -> 8978.7942
A62: Employee | B62: SS Number | C62: Total Wages 1st quarter | H62: SUMMARY BY MONTH -Federal Taxes
A63: Employee 1 | B63: 000-00-0000 | C63: $5,365.00 | G63: Wages | H63: Federal Withholding | I63: SS employee | J63: Medicare Employee | K63: SS Employer | L63: Medicare Employer
A64: Employee 2 | B64: 000-00-0000 | C64: $5,838.75 | F64: January | G64: =SUM(G4:G26) -> 21045.125 | H64: =SUM(J4:J26) -> 1261 | I64: =+SUM(K4:K26) -> 883.89525 | J64: =+SUM(L4:L26) -> 305.1543125 | K64: =+SUM(R4:R26) -> 1304.79775 | L64: =+SUM(S4:S26) -> 305.1543125 | M64: =SUM(H64:L64) -> 4060.001625
A65: Employee 3 | B65: 000-00-0000 | C65: $4,662.00 | F65: February | G65: =SUM(G28:G44) -> 9986.3125 | H65: =SUM(J28:J44) -> 427 | I65: =SUM(K28:K44) -> 419.425125 | J65: =SUM(L28:L44) -> 144.8015313 | K65: =SUM(R28:R44) -> 619.151375 | L65: =SUM(S28:S44) -> 144.8015313 | M65: =SUM(H65:L65) -> 1755.179562
A66: Employee 4 | B66: 000-00-0000 | C66: $8,048.00 | F66: March | G66: =SUM(G46:G59) -> 13431.5625 | H66: =SUM(J46:J59) -> 966 | I66: =SUM(K46:K59) -> 564.125625 | J66: =SUM(L46:L59) -> 194.7576562 | K66: =SUM(R46:R59) -> 832.756875 | L66: =SUM(S46:S59) -> 194.7576562 | M66: =SUM(H66:L66) -> 2752.397812
A67: Employee 5 | B67: 000-00-0000 | C67: $5,147.63 | F67: Totals= | G67: =SUM(G64:G66) -> 44463 | H67: =SUM(H64:H66) -> 2654 | I67: =SUM(I64:I66) -> 1867.446 | J67: =SUM(J64:J66) -> 644.7135 | K67: =SUM(K64:K66) -> 2756.706 | L67: =SUM(L64:L66) -> 644.7135 | M67: =SUM(M64:M66) -> 8567.579
A68: Employee 6 | B68: 000-00-0000 | C68: $558.00 | H68: Total SS | I68: =I67+K67 -> 4624.152 | J68: =J67+L67 -> 1289.427 | K68: Total Medicare
A69: Employee 7 | B69: 000-00-0000 | C69: $54.00
A70: Employee 8 | B70: 000-00-0000 | C70: $2,847.00
A71: Employee 9 | B71: 000-00-0000 | C71: $2,580.00
A72: Employee 10 | B72: 000-00-0000 | C72: $2,144.63 | G72: Payroll Construction | I72: FED ID
A73: Employee 11 | B73: 000-00-0000 | C73: $2,970.00 | G73: 0000 Payroll Ave | I73: 0
A74: Employee 12 | B74: 000-00-0000 | C74: $2,124.00 | G74: Nowhere, US
A75: Employee 13 | B75: 000-00-0000 | C75: $2,124.00 | G75: 0 | I75: State ID
I76: US 00000000
B77: Total Wages | C77: =SUM(C63:C76) -> 44463.01

Sheet MarriedFED (hidden)
A1: MARRIED | B1: Persons—SEMIMONTHLY | C1: Payroll | D1: Period
A2: (For | B2: Wages | C2: Paid | D2: through | E2: December | F2: 2012)
A3: And | B3: the | C3: wages | D3: And | E3: the | F3: number | G3: of | H3: withholding | I3: allowances | J3: claimed | K3: is—
A4: are–
A5: At | B5: 0 | C5: 1 | D5: 2 | E5: 3 | F5: 4 | G5: 5 | H5: 6 | I5: 7 | J5: 8 | K5: 9 | L5: 10
A6: than
A7: The | B7: of | C7: income | D7: tax | E7: to | F7: be | G7: withheld | H7: is—
A8: $0.00 | B8: $0.00 | C8: $0.00 | D8: $0.00 | E8: $0.00 | F8: $0.00 | G8: $0.00 | H8: $0.00 | I8: $0.00 | J8: $0.00 | K8: $0.00 | L8: $0.00
A9: $330.00 | B9: $0.00 | C9: $0.00 | D9: $0.00 | E9: $0.00 | F9: $0.00 | G9: $0.00 | H9: $0.00 | I9: $0.00 | J9: $0.00 | K9: $0.00 | L9: $0.00
A10: $340.00 | B10: $1.00 | C10: $0.00 | D10: $0.00 | E10: $0.00 | F10: $0.00 | G10: $0.00 | H10: $0.00 | I10: $0.00 | J10: $0.00 | K10: $0.00 | L10: $0.00
A11: $350.00 | B11: $2.00 | C11: $0.00 | D11: $0.00 | E11: $0.00 | F11: $0.00 | G11: $0.00 | H11: $0.00 | I11: $0.00 | J11: $0.00 | K11: $0.00 | L11: $0.00
A12: $360.00 | B12: $3.00 | C12: $0.00 | D12: $0.00 | E12: $0.00 | F12: $0.00 | G12: $0.00 | H12: $0.00 | I12: $0.00 | J12: $0.00 | K12: $0.00 | L12: $0.00
A13: $370.00 | B13: $4.00 | C13: $0.00 | D13: $0.00 | E13: $0.00 | F13: $0.00 | G13: $0.00 | H13: $0.00 | I13: $0.00 | J13: $0.00 | K13: $0.00 | L13: $0.00
A14: $380.00 | B14: $5.00 | C14: $0.00 | D14: $0.00 | E14: $0.00 | F14: $0.00 | G14: $0.00 | H14: $0.00 | I14: $0.00 | J14: $0.00 | K14: $0.00 | L14: $0.00
A15: $390.00 | B15: $6.00 | C15: $0.00 | D15: $0.00 | E15: $0.00 | F15: $0.00 | G15: $0.00 | H15: $0.00 | I15: $0.00 | J15: $0.00 | K15: $0.00 | L15: $0.00
A16: $400.00 | B16: $7.00 | C16: $0.00 | D16: $0.00 | E16: $0.00 | F16: $0.00 | G16: $0.00 | H16: $0.00 | I16: $0.00 | J16: $0.00 | K16: $0.00 | L16: $0.00
A17: $410.00 | B17: $8.00 | C17: $0.00 | D17: $0.00 | E17: $0.00 | F17: $0.00 | G17: $0.00 | H17: $0.00 | I17: $0.00 | J17: $0.00 | K17: $0.00 | L17: $0.00
A18: $420.00 | B18: $9.00 | C18: $0.00 | D18: $0.00 | E18: $0.00 | F18: $0.00 | G18: $0.00 | H18: $0.00 | I18: $0.00 | J18: $0.00 | K18: $0.00 | L18: $0.00
A19: $430.00 | B19: $10.00 | C19: $0.00 | D19: $0.00 | E19: $0.00 | F19: $0.00 | G19: $0.00 | H19: $0.00 | I19: $0.00 | J19: $0.00 | K19: $0.00 | L19: $0.00
A20: $440.00 | B20: $11.00 | C20: $0.00 | D20: $0.00 | E20: $0.00 | F20: $0.00 | G20: $0.00 | H20: $0.00 | I20: $0.00 | J20: $0.00 | K20: $0.00 | L20: $0.00
A21: $450.00 | B21: $12.00 | C21: $0.00 | D21: $0.00 | E21: $0.00 | F21: $0.00 | G21: $0.00 | H21: $0.00 | I21: $0.00 | J21: $0.00 | K21: $0.00 | L21: $0.00
A22: $460.00 | B22: $13.00 | C22: $0.00 | D22: $0.00 | E22: $0.00 | F22: $0.00 | G22: $0.00 | H22: $0.00 | I22: $0.00 | J22: $0.00 | K22: $0.00 | L22: $0.00
A23: $470.00 | B23: $14.00 | C23: $0.00 | D23: $0.00 | E23: $0.00 | F23: $0.00 | G23: $0.00 | H23: $0.00 | I23: $0.00 | J23: $0.00 | K23: $0.00 | L23: $0.00
A24: $480.00 | B24: $15.00 | C24: $0.00 | D24: $0.00 | E24: $0.00 | F24: $0.00 | G24: $0.00 | H24: $0.00 | I24: $0.00 | J24: $0.00 | K24: $0.00 | L24: $0.00
A25: $490.00 | B25: $16.00 | C25: $0.00 | D25: $0.00 | E25: $0.00 | F25: $0.00 | G25: $0.00 | H25: $0.00 | I25: $0.00 | J25: $0.00 | K25: $0.00 | L25: $0.00
A26: $500.00 | B26: $17.00 | C26: $1.00 | D26: $0.00 | E26: $0.00 | F26: $0.00 | G26: $0.00 | H26: $0.00 | I26: $0.00 | J26: $0.00 | K26: $0.00 | L26: $0.00
A27: $520.00 | B27: $19.00 | C27: $3.00 | D27: $0.00 | E27: $0.00 | F27: $0.00 | G27: $0.00 | H27: $0.00 | I27: $0.00 | J27: $0.00 | K27: $0.00 | L27: $0.00
A28: $540.00 | B28: $21.00 | C28: $5.00 | D28: $0.00 | E28: $0.00 | F28: $0.00 | G28: $0.00 | H28: $0.00 | I28: $0.00 | J28: $0.00 | K28: $0.00 | L28: $0.00
A29: $560.00 | B29: $23.00 | C29: $7.00 | D29: $0.00 | E29: $0.00 | F29: $0.00 | G29: $0.00 | H29: $0.00 | I29: $0.00 | J29: $0.00 | K29: $0.00 | L29: $0.00
A30: $580.00 | B30: $25.00 | C30: $9.00 | D30: $0.00 | E30: $0.00 | F30: $0.00 | G30: $0.00 | H30: $0.00 | I30: $0.00 | J30: $0.00 | K30: $0.00 | L30: $0.00
A31: $600.00 | B31: $27.00 | C31: $11.00 | D31: $0.00 | E31: $0.00 | F31: $0.00 | G31: $0.00 | H31: $0.00 | I31: $0.00 | J31: $0.00 | K31: $0.00 | L31: $0.00
A32: $620.00 | B32: $29.00 | C32: $13.00 | D32: $0.00 | E32: $0.00 | F32: $0.00 | G32: $0.00 | H32: $0.00 | I32: $0.00 | J32: $0.00 | K32: $0.00 | L32: $0.00
A33: $640.00 | B33: $31.00 | C33: $15.00 | D33: $0.00 | E33: $0.00 | F33: $0.00 | G33: $0.00 | H33: $0.00 | I33: $0.00 | J33: $0.00 | K33: $0.00 | L33: $0.00
A34: $660.00 | B34: $33.00 | C34: $17.00 | D34: $2.00 | E34: $0.00 | F34: $0.00 | G34: $0.00 | H34: $0.00 | I34: $0.00 | J34: $0.00 | K34: $0.00 | L34: $0.00
A35: $680.00 | B35: $35.00 | C35: $19.00 | D35: $4.00 | E35: $0.00 | F35: $0.00 | G35: $0.00 | H35: $0.00 | I35: $0.00 | J35: $0.00 | K35: $0.00 | L35: $0.00
A36: $700.00 | B36: $37.00 | C36: $21.00 | D36: $6.00 | E36: $0.00 | F36: $0.00 | G36: $0.00 | H36: $0.00 | I36: $0.00 | J36: $0.00 | K36: $0.00 | L36: $0.00
A37: $720.00 | B37: $39.00 | C37: $23.00 | D37: $8.00 | E37: $0.00 | F37: $0.00 | G37: $0.00 | H37: $0.00 | I37: $0.00 | J37: $0.00 | K37: $0.00 | L37: $0.00
A38: $740.00 | B38: $41.00 | C38: $25.00 | D38: $10.00 | E38: $0.00 | F38: $0.00 | G38: $0.00 | H38: $0.00 | I38: $0.00 | J38: $0.00 | K38: $0.00 | L38: $0.00
A39: $760.00 | B39: $43.00 | C39: $27.00 | D39: $12.00 | E39: $0.00 | F39: $0.00 | G39: $0.00 | H39: $0.00 | I39: $0.00 | J39: $0.00 | K39: $0.00 | L39: $0.00
A40: $780.00 | B40: $45.00 | C40: $29.00 | D40: $14.00 | E40: $0.00 | F40: $0.00 | G40: $0.00 | H40: $0.00 | I40: $0.00 | J40: $0.00 | K40: $0.00 | L40: $0.00
A41: $800.00 | B41: $47.00 | C41: $31.00 | D41: $16.00 | E41: $0.00 | F41: $0.00 | G41: $0.00 | H41: $0.00 | I41: $0.00 | J41: $0.00 | K41: $0.00 | L41: $0.00
A42: $820.00 | B42: $49.00 | C42: $33.00 | D42: $18.00 | E42: $2.00 | F42: $0.00 | G42: $0.00 | H42: $0.00 | I42: $0.00 | J42: $0.00 | K42: $0.00 | L42: $0.00
A43: $840.00 | B43: $51.00 | C43: $35.00 | D43: $20.00 | E43: $4.00 | F43: $0.00 | G43: $0.00 | H43: $0.00 | I43: $0.00 | J43: $0.00 | K43: $0.00 | L43: $0.00
A44: $860.00 | B44: $53.00 | C44: $37.00 | D44: $22.00 | E44: $6.00 | F44: $0.00 | G44: $0.00 | H44: $0.00 | I44: $0.00 | J44: $0.00 | K44: $0.00 | L44: $0.00
A45: $880.00 | B45: $55.00 | C45: $39.00 | D45: $24.00 | E45: $8.00 | F45: $0.00 | G45: $0.00 | H45: $0.00 | I45: $0.00 | J45: $0.00 | K45: $0.00 | L45: $0.00
A46: $900.00 | B46: $57.00 | C46: $41.00 | D46: $26.00 | E46: $10.00 | F46: $0.00 | G46: $0.00 | H46: $0.00 | I46: $0.00 | J46: $0.00 | K46: $0.00 | L46: $0.00
A47: $920.00 | B47: $59.00 | C47: $43.00 | D47: $28.00 | E47: $12.00 | F47: $0.00 | G47: $0.00 | H47: $0.00 | I47: $0.00 | J47: $0.00 | K47: $0.00 | L47: $0.00
A48: $940.00 | B48: $61.00 | C48: $45.00 | D48: $30.00 | E48: $14.00 | F48: $0.00 | G48: $0.00 | H48: $0.00 | I48: $0.00 | J48: $0.00 | K48: $0.00 | L48: $0.00
A49: $960.00 | B49: $63.00 | C49: $47.00 | D49: $32.00 | E49: $16.00 | F49: $0.00 | G49: $0.00 | H49: $0.00 | I49: $0.00 | J49: $0.00 | K49: $0.00 | L49: $0.00
A50: $980.00 | B50: $65.00 | C50: $49.00 | D50: $34.00 | E50: $18.00 | F50: $2.00 | G50: $0.00 | H50: $0.00 | I50: $0.00 | J50: $0.00 | K50: $0.00 | L50: $0.00
A51: $1,000.00 | B51: $67.00 | C51: $51.00 | D51: $36.00 | E51: $20.00 | F51: $4.00 | G51: $0.00 | H51: $0.00 | I51: $0.00 | J51: $0.00 | K51: $0.00 | L51: $0.00
A52: $1,020.00 | B52: $69.00 | C52: $53.00 | D52: $38.00 | E52: $22.00 | F52: $6.00 | G52: $0.00 | H52: $0.00 | I52: $0.00 | J52: $0.00 | K52: $0.00 | L52: $0.00
A53: $1,040.00 | B53: $71.00 | C53: $55.00 | D53: $40.00 | E53: $24.00 | F53: $8.00 | G53: $0.00 | H53: $0.00 | I53: $0.00 | J53: $0.00 | K53: $0.00 | L53: $0.00
A54: $1,060.00 | B54: $74.00 | C54: $57.00 | D54: $42.00 | E54: $26.00 | F54: $10.00 | G54: $0.00 | H54: $0.00 | I54: $0.00 | J54: $0.00 | K54: $0.00 | L54: $0.00
A55: $1,080.00 | B55: $77.00 | C55: $59.00 | D55: $44.00 | E55: $28.00 | F55: $12.00 | G55: $0.00 | H55: $0.00 | I55: $0.00 | J55: $0.00 | K55: $0.00 | L55: $0.00
A56: $1,100.00 | B56: $80.00 | C56: $61.00 | D56: $46.00 | E56: $30.00 | F56: $14.00 | G56: $0.00 | H56: $0.00 | I56: $0.00 | J56: $0.00 | K56: $0.00 | L56: $0.00
A57: $1,120.00 | B57: $83.00 | C57: $63.00 | D57: $48.00 | E57: $32.00 | F57: $16.00 | G57: $0.00 | H57: $0.00 | I57: $0.00 | J57: $0.00 | K57: $0.00 | L57: $0.00
A58: $1,140.00 | B58: $86.00 | C58: $65.00 | D58: $50.00 | E58: $34.00 | F58: $18.00 | G58: $2.00 | H58: $0.00 | I58: $0.00 | J58: $0.00 | K58: $0.00 | L58: $0.00
A59: $1,160.00 | B59: $89.00 | C59: $67.00 | D59: $52.00 | E59: $36.00 | F59: $20.00 | G59: $4.00 | H59: $0.00 | I59: $0.00 | J59: $0.00 | K59: $0.00 | L59: $0.00
A60: $1,180.00 | B60: $92.00 | C60: $69.00 | D60: $54.00 | E60: $38.00 | F60: $22.00 | G60: $6.00 | H60: $0.00 | I60: $0.00 | J60: $0.00 | K60: $0.00 | L60: $0.00
A61: $1,200.00 | B61: $95.00 | C61: $71.00 | D61: $56.00 | E61: $40.00 | F61: $24.00 | G61: $8.00 | H61: $0.00 | I61: $0.00 | J61: $0.00 | K61: $0.00 | L61: $0.00
A62: $1,220.00 | B62: $98.00 | C62: $74.00 | D62: $58.00 | E62: $42.00 | F62: $26.00 | G62: $10.00 | H62: $0.00 | I62: $0.00 | J62: $0.00 | K62: $0.00 | L62: $0.00
A63: $1,240.00 | B63: $101.00 | C63: $77.00 | D63: $60.00 | E63: $44.00 | F63: $28.00 | G63: $12.00 | H63: $0.00 | I63: $0.00 | J63: $0.00 | K63: $0.00 | L63: $0.00
A64: $1,260.00 | B64: $104.00 | C64: $80.00 | D64: $62.00 | E64: $46.00 | F64: $30.00 | G64: $14.00 | H64: $0.00 | I64: $0.00 | J64: $0.00 | K64: $0.00 | L64: $0.00
A65: $1,280.00 | B65: $107.00 | C65: $83.00 | D65: $64.00 | E65: $48.00 | F65: $32.00 | G65: $16.00 | H65: $0.00 | I65: $0.00 | J65: $0.00 | K65: $0.00 | L65: $0.00
A66: $1,300.00 | B66: $110.00 | C66: $86.00 | D66: $66.00 | E66: $50.00 | F66: $34.00 | G66: $18.00 | H66: $2.00 | I66: $0.00 | J66: $0.00 | K66: $0.00 | L66: $0.00
A67: $1,320.00 | B67: $113.00 | C67: $89.00 | D67: $68.00 | E67: $52.00 | F67: $36.00 | G67: $20.00 | H67: $4.00 | I67: $0.00 | J67: $0.00 | K67: $0.00 | L67: $0.00
A68: $1,340.00 | B68: $116.00 | C68: $92.00 | D68: $70.00 | E68: $54.00 | F68: $38.00 | G68: $22.00 | H68: $6.00 | I68: $0.00 | J68: $0.00 | K68: $0.00 | L68: $0.00
A69: $1,360.00 | B69: $119.00 | C69: $95.00 | D69: $72.00 | E69: $56.00 | F69: $40.00 | G69: $24.00 | H69: $8.00 | I69: $0.00 | J69: $0.00 | K69: $0.00 | L69: $0.00
A70: $1,380.00 | B70: $122.00 | C70: $98.00 | D70: $74.00 | E70: $58.00 | F70: $42.00 | G70: $26.00 | H70: $10.00 | I70: $0.00 | J70: $0.00 | K70: $0.00 | L70: $0.00
A71: $1,400.00 | B71: $125.00 | C71: $101.00 | D71: $77.00 | E71: $60.00 | F71: $44.00 | G71: $28.00 | H71: $12.00 | I71: $0.00 | J71: $0.00 | K71: $0.00 | L71: $0.00
A72: $1,420.00 | B72: $128.00 | C72: $104.00 | D72: $80.00 | E72: $62.00 | F72: $46.00 | G72: $30.00 | H72: $14.00 | I72: $0.00 | J72: $0.00 | K72: $0.00 | L72: $0.00
A73: $1,440.00 | B73: $131.00 | C73: $107.00 | D73: $83.00 | E73: $64.00 | F73: $48.00 | G73: $32.00 | H73: $16.00 | I73: $0.00 | J73: $0.00 | K73: $0.00 | L73: $0.00
A74: $1,460.00 | B74: $134.00 | C74: $110.00 | D74: $86.00 | E74: $66.00 | F74: $50.00 | G74: $34.00 | H74: $18.00 | I74: $2.00 | J74: $0.00 | K74: $0.00 | L74: $0.00
A75: $1,480.00 | B75: $137.00 | C75: $113.00 | D75: $89.00 | E75: $68.00 | F75: $52.00 | G75: $36.00 | H75: $20.00 | I75: $4.00 | J75: $0.00 | K75: $0.00 | L75: $0.00
A76: $1,500.00 | B76: $140.00 | C76: $116.00 | D76: $92.00 | E76: $70.00 | F76: $54.00 | G76: $38.00 | H76: $22.00 | I76: $6.00 | J76: $0.00 | K76: $0.00 | L76: $0.00
A77: $1,520.00 | B77: $143.00 | C77: $119.00 | D77: $95.00 | E77: $72.00 | F77: $56.00 | G77: $40.00 | H77: $24.00 | I77: $8.00 | J77: $0.00 | K77: $0.00 | L77: $0.00
A78: $1,540.00 | B78: $146.00 | C78: $122.00 | D78: $98.00 | E78: $74.00 | F78: $58.00 | G78: $42.00 | H78: $26.00 | I78: $10.00 | J78: $0.00 | K78: $0.00 | L78: $0.00
A79: $1,560.00 | B79: $149.00 | C79: $125.00 | D79: $101.00 | E79: $77.00 | F79: $60.00 | G79: $44.00 | H79: $28.00 | I79: $12.00 | J79: $0.00 | K79: $0.00 | L79: $0.00
A80: $1,580.00 | B80: $152.00 | C80: $128.00 | D80: $104.00 | E80: $80.00 | F80: $62.00 | G80: $46.00 | H80: $30.00 | I80: $14.00 | J80: $0.00 | K80: $0.00 | L80: $0.00
A81: $1,600.00 | B81: $155.00 | C81: $131.00 | D81: $107.00 | E81: $83.00 | F81: $64.00 | G81: $48.00 | H81: $32.00 | I81: $16.00 | J81: $1.00 | K81: $0.00 | L81: $0.00
A82: $1,620.00 | B82: $158.00 | C82: $134.00 | D82: $110.00 | E82: $86.00 | F82: $66.00 | G82: $50.00 | H82: $34.00 | I82: $18.00 | J82: $3.00 | K82: $0.00 | L82: $0.00
A83: $1,640.00 | B83: $161.00 | C83: $137.00 | D83: $113.00 | E83: $89.00 | F83: $68.00 | G83: $52.00 | H83: $36.00 | I83: $20.00 | J83: $5.00 | K83: $0.00 | L83: $0.00
A84: $1,660.00 | B84: $164.00 | C84: $140.00 | D84: $116.00 | E84: $92.00 | F84: $70.00 | G84: $54.00 | H84: $38.00 | I84: $22.00 | J84: $7.00 | K84: $0.00 | L84: $0.00
A85: $1,680.00 | B85: $167.00 | C85: $143.00 | D85: $119.00 | E85: $95.00 | F85: $72.00 | G85: $56.00 | H85: $40.00 | I85: $24.00 | J85: $9.00 | K85: $0.00 | L85: $0.00
A86: $1,700.00 | B86: $170.00 | C86: $146.00 | D86: $122.00 | E86: $98.00 | F86: $75.00 | G86: $58.00 | H86: $42.00 | I86: $26.00 | J86: $11.00 | K86: $0.00 | L86: $0.00
A87: $1,720.00 | B87: $173.00 | C87: $149.00 | D87: $125.00 | E87: $101.00 | F87: $78.00 | G87: $60.00 | H87: $44.00 | I87: $28.00 | J87: $13.00 | K87: $0.00 | L87: $0.00
A88: $1,740.00 | B88: $176.00 | C88: $152.00 | D88: $128.00 | E88: $104.00 | F88: $81.00 | G88: $62.00 | H88: $46.00 | I88: $30.00 | J88: $15.00 | K88: $0.00 | L88: $0.00
A89: $1,760.00 | B89: $179.00 | C89: $155.00 | D89: $131.00 | E89: $107.00 | F89: $84.00 | G89: $64.00 | H89: $48.00 | I89: $32.00 | J89: $17.00 | K89: $1.00 | L89: $0.00
A90: $1,780.00 | B90: $182.00 | C90: $158.00 | D90: $134.00 | E90: $110.00 | F90: $87.00 | G90: $66.00 | H90: $50.00 | I90: $34.00 | J90: $19.00 | K90: $3.00 | L90: $0.00
A91: $1,800.00 | B91: $185.00 | C91: $161.00 | D91: $137.00 | E91: $113.00 | F91: $90.00 | G91: $68.00 | H91: $52.00 | I91: $36.00 | J91: $21.00 | K91: $5.00 | L91: $0.00
A92: $1,820.00 | B92: $188.00 | C92: $164.00 | D92: $140.00 | E92: $116.00 | F92: $93.00 | G92: $70.00 | H92: $54.00 | I92: $38.00 | J92: $23.00 | K92: $7.00 | L92: $0.00
A93: $1,840.00 | B93: $191.00 | C93: $167.00 | D93: $143.00 | E93: $119.00 | F93: $96.00 | G93: $72.00 | H93: $56.00 | I93: $40.00 | J93: $25.00 | K93: $9.00 | L93: $0.00
A94: $1,860.00 | B94: $194.00 | C94: $170.00 | D94: $146.00 | E94: $122.00 | F94: $99.00 | G94: $75.00 | H94: $58.00 | I94: $42.00 | J94: $27.00 | K94: $11.00 | L94: $0.00
A95: $1,880.00 | B95: $197.00 | C95: $173.00 | D95: $149.00 | E95: $125.00 | F95: $102.00 | G95: $78.00 | H95: $60.00 | I95: $44.00 | J95: $29.00 | K95: $13.00 | L95: $0.00
A96: $1,900.00 | B96: $200.00 | C96: $176.00 | D96: $152.00 | E96: $128.00 | F96: $105.00 | G96: $81.00 | H96: $62.00 | I96: $46.00 | J96: $31.00 | K96: $15.00 | L96: $0.00
A97: $1,920.00 | B97: $203.00 | C97: $179.00 | D97: $155.00 | E97: $131.00 | F97: $108.00 | G97: $84.00 | H97: $64.00 | I97: $48.00 | J97: $33.00 | K97: $17.00 | L97: $1.00
A98: $1,940.00 | B98: $206.00 | C98: $182.00 | D98: $158.00 | E98: $134.00 | F98: $111.00 | G98: $87.00 | H98: $66.00 | I98: $50.00 | J98: $35.00 | K98: $19.00 | L98: $3.00
A99: $1,960.00 | B99: $209.00 | C99: $185.00 | D99: $161.00 | E99: $137.00 | F99: $114.00 | G99: $90.00 | H99: $68.00 | I99: $52.00 | J99: $37.00 | K99: $21.00 | L99: $5.00
A100: $1,980.00 | B100: $212.00 | C100: $188.00 | D100: $164.00 | E100: $140.00 | F100: $117.00 | G100: $93.00 | H100: $70.00 | I100: $54.00 | J100: $39.00 | K100: $23.00 | L100: $7.00
A101: $2,000.00 | B101: $215.00 | C101: $191.00 | D101: $167.00 | E101: $143.00 | F101: $120.00 | G101: $96.00 | H101: $72.00 | I101: $56.00 | J101: $41.00 | K101: $25.00 | L101: $9.00
A102: $2,020.00 | B102: $218.00 | C102: $194.00 | D102: $170.00 | E102: $146.00 | F102: $123.00 | G102: $99.00 | H102: $75.00 | I102: $58.00 | J102: $43.00 | K102: $27.00 | L102: $11.00
A103: $2,040.00 | B103: $221.00 | C103: $197.00 | D103: $173.00 | E103: $149.00 | F103: $126.00 | G103: $102.00 | H103: $78.00 | I103: $60.00 | J103: $45.00 | K103: $29.00 | L103: $13.00
A104: $2,060.00 | B104: $224.00 | C104: $200.00 | D104: $176.00 | E104: $152.00 | F104: $129.00 | G104: $105.00 | H104: $81.00 | I104: $62.00 | J104: $47.00 | K104: $31.00 | L104: $15.00
A105: $2,080.00 | B105: $227.00 | C105: $203.00 | D105: $179.00 | E105: $155.00 | F105: $132.00 | G105: $108.00 | H105: $84.00 | I105: $64.00 | J105: $49.00 | K105: $33.00 | L105: $17.00
A106: $2,100.00 | B106: $230.00 | C106: $206.00 | D106: $182.00 | E106: $158.00 | F106: $135.00 | G106: $111.00 | H106: $87.00 | I106: $66.00 | J106: $51.00 | K106: $35.00 | L106: $19.00
A107: $2,120.00 | B107: $233.00 | C107: $209.00 | D107: $185.00 | E107: $161.00 | F107: $138.00 | G107: $114.00 | H107: $90.00 | I107: $68.00 | J107: $53.00 | K107: $37.00 | L107: $21.00
A108: $2,140.00 | B108: $236.00 | C108: $212.00 | D108: $188.00 | E108: $164.00 | F108: $141.00 | G108: $117.00 | H108: $93.00 | I108: $70.00 | J108: $55.00 | K108: $39.00 | L108: $23.00
A109: $2,160.00 | B109: $239.00 | C109: $215.00 | D109: $191.00 | E109: $167.00 | F109: $144.00 | G109: $120.00 | H109: $96.00 | I109: $72.00 | J109: $57.00 | K109: $41.00 | L109: $25.00
A110: $2,180.00 | B110: $242.00 | C110: $218.00 | D110: $194.00 | E110: $170.00 | F110: $147.00 | G110: $123.00 | H110: $99.00 | I110: $75.00 | J110: $59.00 | K110: $43.00 | L110: $27.00
A111: $2,200.00 | B111: $245.00 | C111: $221.00 | D111: $197.00 | E111: $173.00 | F111: $150.00 | G111: $126.00 | H111: $102.00 | I111: $78.00 | J111: $61.00 | K111: $45.00 | L111: $29.00
A112: $2,220.00 | B112: $248.00 | C112: $224.00 | D112: $200.00 | E112: $176.00 | F112: $153.00 | G112: $129.00 | H112: $105.00 | I112: $81.00 | J112: $63.00 | K112: $47.00 | L112: $31.00
A113: $2,240.00 | B113: $251.00 | C113: $227.00 | D113: $203.00 | E113: $179.00 | F113: $156.00 | G113: $132.00 | H113: $108.00 | I113: $84.00 | J113: $65.00 | K113: $49.00 | L113: $33.00
A114: $2,260.00 | B114: $254.00 | C114: $230.00 | D114: $206.00 | E114: $182.00 | F114: $159.00 | G114: $135.00 | H114: $111.00 | I114: $87.00 | J114: $67.00 | K114: $51.00 | L114: $35.00
A115: $2,280.00 | B115: $257.00 | C115: $233.00 | D115: $209.00 | E115: $185.00 | F115: $162.00 | G115: $138.00 | H115: $114.00 | I115: $90.00 | J115: $69.00 | K115: $53.00 | L115: $37.00
A116: $2,300.00 | B116: $260.00 | C116: $236.00 | D116: $212.00 | E116: $188.00 | F116: $165.00 | G116: $141.00 | H116: $117.00 | I116: $93.00 | J116: $71.00 | K116: $55.00 | L116: $39.00
A117: $2,320.00 | B117: $263.00 | C117: $239.00 | D117: $215.00 | E117: $191.00 | F117: $168.00 | G117: $144.00 | H117: $120.00 | I117: $96.00 | J117: $73.00 | K117: $57.00 | L117: $41.00
A118: $2,340.00 | B118: $266.00 | C118: $242.00 | D118: $218.00 | E118: $194.00 | F118: $171.00 | G118: $147.00 | H118: $123.00 | I118: $99.00 | J118: $76.00 | K118: $59.00 | L118: $43.00
A119: $2,360.00 | B119: $269.00 | C119: $245.00 | D119: $221.00 | E119: $197.00 | F119: $174.00 | G119: $150.00 | H119: $126.00 | I119: $102.00 | J119: $79.00 | K119: $61.00 | L119: $45.00
A120: $2,380.00 | B120: $272.00 | C120: $248.00 | D120: $224.00 | E120: $200.00 | F120: $177.00 | G120: $153.00 | H120: $129.00 | I120: $105.00 | J120: $82.00 | K120: $63.00 | L120: $47.00
A121: $2,400.00 | B121: $275.00 | C121: $251.00 | D121: $227.00 | E121: $203.00 | F121: $180.00 | G121: $156.00 | H121: $132.00 | I121: $108.00 | J121: $85.00 | K121: $65.00 | L121: $49.00
A122: $2,420.00 | B122: $278.00 | C122: $254.00 | D122: $230.00 | E122: $206.00 | F122: $183.00 | G122: $159.00 | H122: $135.00 | I122: $111.00 | J122: $88.00 | K122: $67.00 | L122: $51.00
A123: $2,440.00 | B123: $281.00 | C123: $257.00 | D123: $233.00 | E123: $209.00 | F123: $186.00 | G123: $162.00 | H123: $138.00 | I123: $114.00 | J123: $91.00 | K123: $69.00 | L123: $53.00
A124: $2,460.00 | B124: $284.00 | C124: $260.00 | D124: $236.00 | E124: $212.00 | F124: $189.00 | G124: $165.00 | H124: $141.00 | I124: $117.00 | J124: $94.00 | K124: $71.00 | L124: $55.00
A125: $2,480.00 | B125: $287.00 | C125: $263.00 | D125: $239.00 | E125: $215.00 | F125: $192.00 | G125: $168.00 | H125: $144.00 | I125: $120.00 | J125: $97.00 | K125: $73.00 | L125: $57.00
A126: $2,500.00 | B126: $290.00 | C126: $266.00 | D126: $242.00 | E126: $218.00 | F126: $195.00 | G126: $171.00 | H126: $147.00 | I126: $123.00 | J126: $100.00 | K126: $76.00 | L126: $59.00
A127: $2,520.00 | B127: $293.00 | C127: $269.00 | D127: $245.00 | E127: $221.00 | F127: $198.00 | G127: $174.00 | H127: $150.00 | I127: $126.00 | J127: $103.00 | K127: $79.00 | L127: $61.00
A128: $2,540.00 | B128: $296.00 | C128: $272.00 | D128: $248.00 | E128: $224.00 | F128: $201.00 | G128: $177.00 | H128: $153.00 | I128: $129.00 | J128: $106.00 | K128: $82.00 | L128: $63.00
A129: $2,560.00 | B129: $299.00 | C129: $275.00 | D129: $251.00 | E129: $227.00 | F129: $204.00 | G129: $180.00 | H129: $156.00 | I129: $132.00 | J129: $109.00 | K129: $85.00 | L129: $65.00
A130: $2,580.00 | B130: $302.00 | C130: $278.00 | D130: $254.00 | E130: $230.00 | F130: $207.00 | G130: $183.00 | H130: $159.00 | I130: $135.00 | J130: $112.00 | K130: $88.00 | L130: $67.00
A131: $2,600.00 | B131: $305.00 | C131: $281.00 | D131: $257.00 | E131: $233.00 | F131: $210.00 | G131: $186.00 | H131: $162.00 | I131: $138.00 | J131: $115.00 | K131: $91.00 | L131: $69.00
A132: $2,620.00 | B132: $308.00 | C132: $284.00 | D132: $260.00 | E132: $236.00 | F132: $213.00 | G132: $189.00 | H132: $165.00 | I132: $141.00 | J132: $118.00 | K132: $94.00 | L132: $71.00
A133: $2,640.00 | B133: $311.00 | C133: $287.00 | D133: $263.00 | E133: $239.00 | F133: $216.00 | G133: $192.00 | H133: $168.00 | I133: $144.00 | J133: $121.00 | K133: $97.00 | L133: $73.00
A134: $2,660.00 | B134: $314.00 | C134: $290.00 | D134: $266.00 | E134: $242.00 | F134: $219.00 | G134: $195.00 | H134: $171.00 | I134: $147.00 | J134: $124.00 | K134: $100.00 | L134: $76.00
A135: $2,680.00 | B135: $317.00 | C135: $293.00 | D135: $269.00 | E135: $245.00 | F135: $222.00 | G135: $198.00 | H135: $174.00 | I135: $150.00 | J135: $127.00 | K135: $103.00 | L135: $79.00
A136: $2,700.00 | B136: $320.00 | C136: $296.00 | D136: $272.00 | E136: $248.00 | F136: $225.00 | G136: $201.00 | H136: $177.00 | I136: $153.00 | J136: $130.00 | K136: $106.00 | L136: $82.00
A137: $2,720.00 | B137: $323.00 | C137: $299.00 | D137: $275.00 | E137: $251.00 | F137: $228.00 | G137: $204.00 | H137: $180.00 | I137: $156.00 | J137: $133.00 | K137: $109.00 | L137: $85.00
A138: $2,740.00 | B138: over | C138: Use | D138: Table | E138: 3(b) | F138: for | G138: a | H138: MARRIED | I138: person | J138: on | K138: page | L138: $36.00 | M138: Also | N138: see | O138: the | P138: instructions | Q138: on | R138: page | S138: 35
A139: Publication

Sheet Single Fed (hidden)
A1: SINGLE Persons—SEMIMONTHLY Payroll Period
A2: (For Wages Paid through December 2012)
A3: And the wages And the number of withholding allowances claimed is—
A4: are–
B7: 0 | C7: 1 | D7: 2 | E7: 3 | F7: 4 | G7: 5 | H7: 6 | I7: 7 | J7: 8 | K7: 9 | L7: 10
A8: 0 | B8: 0 | C8: 0 | D8: 0 | E8: 0 | F8: 0 | G8: 0 | H8: 0 | I8: 0 | J8: 0 | K8: 0 | L8: 0
A9: 115 | B9: 3 | C9: 0 | D9: 0 | E9: 0 | F9: 0 | G9: 0 | H9: 0 | I9: 0 | J9: 0 | K9: 0 | L9: 0
A10: 120 | B10: 4 | C10: 0 | D10: 0 | E10: 0 | F10: 0 | G10: 0 | H10: 0 | I10: 0 | J10: 0 | K10: 0 | L10: 0
A11: 125 | B11: 4 | C11: 0 | D11: 0 | E11: 0 | F11: 0 | G11: 0 | H11: 0 | I11: 0 | J11: 0 | K11: 0 | L11: 0
A12: 130 | B12: 5 | C12: 0 | D12: 0 | E12: 0 | F12: 0 | G12: 0 | H12: 0 | I12: 0 | J12: 0 | K12: 0 | L12: 0
A13: 135 | B13: 5 | C13: 0 | D13: 0 | E13: 0 | F13: 0 | G13: 0 | H13: 0 | I13: 0 | J13: 0 | K13: 0 | L13: 0
A14: 140 | B14: 6 | C14: 0 | D14: 0 | E14: 0 | F14: 0 | G14: 0 | H14: 0 | I14: 0 | J14: 0 | K14: 0 | L14: 0
A15: 145 | B15: 6 | C15: 0 | D15: 0 | E15: 0 | F15: 0 | G15: 0 | H15: 0 | I15: 0 | J15: 0 | K15: 0 | L15: 0
A16: 150 | B16: 7 | C16: 0 | D16: 0 | E16: 0 | F16: 0 | G16: 0 | H16: 0 | I16: 0 | J16: 0 | K16: 0 | L16: 0
A17: 155 | B17: 7 | C17: 0 | D17: 0 | E17: 0 | F17: 0 | G17: 0 | H17: 0 | I17: 0 | J17: 0 | K17: 0 | L17: 0
A18: 160 | B18: 8 | C18: 0 | D18: 0 | E18: 0 | F18: 0 | G18: 0 | H18: 0 | I18: 0 | J18: 0 | K18: 0 | L18: 0
A19: 165 | B19: 8 | C19: 0 | D19: 0 | E19: 0 | F19: 0 | G19: 0 | H19: 0 | I19: 0 | J19: 0 | K19: 0 | L19: 0
A20: 170 | B20: 9 | C20: 0 | D20: 0 | E20: 0 | F20: 0 | G20: 0 | H20: 0 | I20: 0 | J20: 0 | K20: 0 | L20: 0
A21: 175 | B21: 9 | C21: 0 | D21: 0 | E21: 0 | F21: 0 | G21: 0 | H21: 0 | I21: 0 | J21: 0 | K21: 0 | L21: 0
A22: 180 | B22: 10 | C22: 0 | D22: 0 | E22: 0 | F22: 0 | G22: 0 | H22: 0 | I22: 0 | J22: 0 | K22: 0 | L22: 0
A23: 185 | B23: 10 | C23: 0 | D23: 0 | E23: 0 | F23: 0 | G23: 0 | H23: 0 | I23: 0 | J23: 0 | K23: 0 | L23: 0
A24: 190 | B24: 11 | C24: 0 | D24: 0 | E24: 0 | F24: 0 | G24: 0 | H24: 0 | I24: 0 | J24: 0 | K24: 0 | L24: 0
A25: 195 | B25: 11 | C25: 0 | D25: 0 | E25: 0 | F25: 0 | G25: 0 | H25: 0 | I25: 0 | J25: 0 | K25: 0 | L25: 0
A26: 200 | B26: 12 | C26: 0 | D26: 0 | E26: 0 | F26: 0 | G26: 0 | H26: 0 | I26: 0 | J26: 0 | K26: 0 | L26: 0
A27: 205 | B27: 12 | C27: 0 | D27: 0 | E27: 0 | F27: 0 | G27: 0 | H27: 0 | I27: 0 | J27: 0 | K27: 0 | L27: 0
A28: 210 | B28: 13 | C28: 0 | D28: 0 | E28: 0 | F28: 0 | G28: 0 | H28: 0 | I28: 0 | J28: 0 | K28: 0 | L28: 0
A29: 215 | B29: 13 | C29: 0 | D29: 0 | E29: 0 | F29: 0 | G29: 0 | H29: 0 | I29: 0 | J29: 0 | K29: 0 | L29: 0
A30: 220 | B30: 14 | C30: 0 | D30: 0 | E30: 0 | F30: 0 | G30: 0 | H30: 0 | I30: 0 | J30: 0 | K30: 0 | L30: 0
A31: 225 | B31: 14 | C31: 0 | D31: 0 | E31: 0 | F31: 0 | G31: 0 | H31: 0 | I31: 0 | J31: 0 | K31: 0 | L31: 0
A32: 230 | B32: 15 | C32: 0 | D32: 0 | E32: 0 | F32: 0 | G32: 0 | H32: 0 | I32: 0 | J32: 0 | K32: 0 | L32: 0
A33: 235 | B33: 15 | C33: 0 | D33: 0 | E33: 0 | F33: 0 | G33: 0 | H33: 0 | I33: 0 | J33: 0 | K33: 0 | L33: 0
A34: 240 | B34: 16 | C34: 0 | D34: 0 | E34: 0 | F34: 0 | G34: 0 | H34: 0 | I34: 0 | J34: 0 | K34: 0 | L34: 0
A35: 245 | B35: 16 | C35: 1 | D35: 0 | E35: 0 | F35: 0 | G35: 0 | H35: 0 | I35: 0 | J35: 0 | K35: 0 | L35: 0
A36: 250 | B36: 17 | C36: 1 | D36: 0 | E36: 0 | F36: 0 | G36: 0 | H36: 0 | I36: 0 | J36: 0 | K36: 0 | L36: 0
A37: 260 | B37: 18 | C37: 2 | D37: 0 | E37: 0 | F37: 0 | G37: 0 | H37: 0 | I37: 0 | J37: 0 | K37: 0 | L37: 0
A38: 270 | B38: 19 | C38: 3 | D38: 0 | E38: 0 | F38: 0 | G38: 0 | H38: 0 | I38: 0 | J38: 0 | K38: 0 | L38: 0
A39: 280 | B39: 20 | C39: 4 | D39: 0 | E39: 0 | F39: 0 | G39: 0 | H39: 0 | I39: 0 | J39: 0 | K39: 0 | L39: 0
A40: 290 | B40: 21 | C40: 5 | D40: 0 | E40: 0 | F40: 0 | G40: 0 | H40: 0 | I40: 0 | J40: 0 | K40: 0 | L40: 0
A41: 300 | B41: 22 | C41: 6 | D41: 0 | E41: 0 | F41: 0 | G41: 0 | H41: 0 | I41: 0 | J41: 0 | K41: 0 | L41: 0
A42: 310 | B42: 23 | C42: 7 | D42: 0 | E42: 0 | F42: 0 | G42: 0 | H42: 0 | I42: 0 | J42: 0 | K42: 0 | L42: 0
A43: 320 | B43: 24 | C43: 8 | D43: 0 | E43: 0 | F43: 0 | G43: 0 | H43: 0 | I43: 0 | J43: 0 | K43: 0 | L43: 0
A44: 330 | B44: 25 | C44: 9 | D44: 0 | E44: 0 | F44: 0 | G44: 0 | H44: 0 | I44: 0 | J44: 0 | K44: 0 | L44: 0
A45: 340 | B45: 26 | C45: 10 | D45: 0 | E45: 0 | F45: 0 | G45: 0 | H45: 0 | I45: 0 | J45: 0 | K45: 0 | L45: 0
A46: 350 | B46: 27 | C46: 11 | D46: 0 | E46: 0 | F46: 0 | G46: 0 | H46: 0 | I46: 0 | J46: 0 | K46: 0 | L46: 0
A47: 360 | B47: 28 | C47: 12 | D47: 0 | E47: 0 | F47: 0 | G47: 0 | H47: 0 | I47: 0 | J47: 0 | K47: 0 | L47: 0
A48: 370 | B48: 29 | C48: 13 | D48: 0 | E48: 0 | F48: 0 | G48: 0 | H48: 0 | I48: 0 | J48: 0 | K48: 0 | L48: 0
A49: 380 | B49: 30 | C49: 14 | D49: 0 | E49: 0 | F49: 0 | G49: 0 | H49: 0 | I49: 0 | J49: 0 | K49: 0 | L49: 0
A50: 390 | B50: 31 | C50: 15 | D50: 0 | E50: 0 | F50: 0 | G50: 0 | H50: 0 | I50: 0 | J50: 0 | K50: 0 | L50: 0
A51: 400 | B51: 32 | C51: 16 | D51: 1 | E51: 0 | F51: 0 | G51: 0 | H51: 0 | I51: 0 | J51: 0 | K51: 0 | L51: 0
A52: 410 | B52: 33 | C52: 17 | D52: 2 | E52: 0 | F52: 0 | G52: 0 | H52: 0 | I52: 0 | J52: 0 | K52: 0 | L52: 0
A53: 420 | B53: 34 | C53: 18 | D53: 3 | E53: 0 | F53: 0 | G53: 0 | H53: 0 | I53: 0 | J53: 0 | K53: 0 | L53: 0
A54: 430 | B54: 35 | C54: 19 | D54: 4 | E54: 0 | F54: 0 | G54: 0 | H54: 0 | I54: 0 | J54: 0 | K54: 0 | L54: 0
A55: 440 | B55: 36 | C55: 20 | D55: 5 | E55: 0 | F55: 0 | G55: 0 | H55: 0 | I55: 0 | J55: 0 | K55: 0 | L55: 0
A56: 450 | B56: 37 | C56: 21 | D56: 6 | E56: 0 | F56: 0 | G56: 0 | H56: 0 | I56: 0 | J56: 0 | K56: 0 | L56: 0
A57: 460 | B57: 39 | C57: 22 | D57: 7 | E57: 0 | F57: 0 | G57: 0 | H57: 0 | I57: 0 | J57: 0 | K57: 0 | L57: 0
A58: 470 | B58: 40 | C58: 23 | D58: 8 | E58: 0 | F58: 0 | G58: 0 | H58: 0 | I58: 0 | J58: 0 | K58: 0 | L58: 0
A59: 480 | B59: 42 | C59: 24 | D59: 9 | E59: 0 | F59: 0 | G59: 0 | H59: 0 | I59: 0 | J59: 0 | K59: 0 | L59: 0
A60: 490 | B60: 43 | C60: 25 | D60: 10 | E60: 0 | F60: 0 | G60: 0 | H60: 0 | I60: 0 | J60: 0 | K60: 0 | L60: 0
A61: 500 | B61: 46 | C61: 27 | D61: 11 | E61: 0 | F61: 0 | G61: 0 | H61: 0 | I61: 0 | J61: 0 | K61: 0 | L61: 0
A62: 520 | B62: 49 | C62: 29 | D62: 13 | E62: 0 | F62: 0 | G62: 0 | H62: 0 | I62: 0 | J62: 0 | K62: 0 | L62: 0
A63: 540 | B63: 52 | C63: 31 | D63: 15 | E63: 0 | F63: 0 | G63: 0 | H63: 0 | I63: 0 | J63: 0 | K63: 0 | L63: 0
A64: 560 | B64: 55 | C64: 33 | D64: 17 | E64: 2 | F64: 0 | G64: 0 | H64: 0 | I64: 0 | J64: 0 | K64: 0 | L64: 0
A65: 580 | B65: 58 | C65: 35 | D65: 19 | E65: 4 | F65: 0 | G65: 0 | H65: 0 | I65: 0 | J65: 0 | K65: 0 | L65: 0
A66: 600 | B66: 61 | C66: 38 | D66: 21 | E66: 6 | F66: 0 | G66: 0 | H66: 0 | I66: 0 | J66: 0 | K66: 0 | L66: 0
A67: 620 | B67: 64 | C67: 41 | D67: 23 | E67: 8 | F67: 0 | G67: 0 | H67: 0 | I67: 0 | J67: 0 | K67: 0 | L67: 0
A68: 640 | B68: 67 | C68: 44 | D68: 25 | E68: 10 | F68: 0 | G68: 0 | H68: 0 | I68: 0 | J68: 0 | K68: 0 | L68: 0
A69: 660 | B69: 70 | C69: 47 | D69: 27 | E69: 12 | F69: 0 | G69: 0 | H69: 0 | I69: 0 | J69: 0 | K69: 0 | L69: 0
A70: 680 | B70: 73 | C70: 50 | D70: 29 | E70: 14 | F70: 0 | G70: 0 | H70: 0 | I70: 0 | J70: 0 | K70: 0 | L70: 0
A71: 700 | B71: 76 | C71: 53 | D71: 31 | E71: 16 | F71: 1 | G71: 0 | H71: 0 | I71: 0 | J71: 0 | K71: 0 | L71: 0
A72: 720 | B72: 79 | C72: 56 | D72: 33 | E72: 18 | F72: 3 | G72: 0 | H72: 0 | I72: 0 | J72: 0 | K72: 0 | L72: 0
A73: 740 | B73: 82 | C73: 59 | D73: 35 | E73: 20 | F73: 5 | G73: 0 | H73: 0 | I73: 0 | J73: 0 | K73: 0 | L73: 0
A74: 760 | B74: 85 | C74: 62 | D74: 38 | E74: 22 | F74: 7 | G74: 0 | H74: 0 | I74: 0 | J74: 0 | K74: 0 | L74: 0
A75: 780 | B75: 88 | C75: 65 | D75: 41 | E75: 24 | F75: 9 | G75: 0 | H75: 0 | I75: 0 | J75: 0 | K75: 0 | L75: 0
A76: $800.00 | B76: $91.00 | C76: $68.00 | D76: $44.00 | E76: $26.00 | F76: $11.00 | G76: $0.00 | H76: $0.00 | I76: $0.00 | J76: $0.00 | K76: $0.00 | L76: $0.00
A77: 820 | B77: 94 | C77: 71 | D77: 47 | E77: 28 | F77: 13 | G77: 0 | H77: 0 | I77: 0 | J77: 0 | K77: 0 | L77: 0
A78: 840 | B78: 97 | C78: 74 | D78: 50 | E78: 30 | F78: 15 | G78: 0 | H78: 0 | I78: 0 | J78: 0 | K78: 0 | L78: 0
A79: 860 | B79: 100 | C79: 77 | D79: 53 | E79: 32 | F79: 17 | G79: 1 | H79: 0 | I79: 0 | J79: 0 | K79: 0 | L79: 0
A80: 880 | B80: 103 | C80: 80 | D80: 56 | E80: 34 | F80: 19 | G80: 3 | H80: 0 | I80: 0 | J80: 0 | K80: 0 | L80: 0
A81: 900 | B81: 106 | C81: 83 | D81: 59 | E81: 36 | F81: 21 | G81: 5 | H81: 0 | I81: 0 | J81: 0 | K81: 0 | L81: 0
A82: 920 | B82: 109 | C82: 86 | D82: 62 | E82: 39 | F82: 23 | G82: 7 | H82: 0 | I82: 0 | J82: 0 | K82: 0 | L82: 0
A83: 940 | B83: 112 | C83: 89 | D83: 65 | E83: 42 | F83: 25 | G83: 9 | H83: 0 | I83: 0 | J83: 0 | K83: 0 | L83: 0
A84: 960 | B84: 115 | C84: 92 | D84: 68 | E84: 45 | F84: 27 | G84: 11 | H84: 0 | I84: 0 | J84: 0 | K84: 0 | L84: 0
A85: 980 | B85: 118 | C85: 95 | D85: 71 | E85: 48 | F85: 29 | G85: 13 | H85: 0 | I85: 0 | J85: 0 | K85: 0 | L85: 0
A86: 1000 | B86: 121 | C86: 98 | D86: 74 | E86: 51 | F86: 31 | G86: 15 | H86: 0 | I86: 0 | J86: 0 | K86: 0 | L86: 0
A87: 1020 | B87: 124 | C87: 101 | D87: 77 | E87: 54 | F87: 33 | G87: 17 | H87: 2 | I87: 0 | J87: 0 | K87: 0 | L87: 0
A88: 1040 | B88: 127 | C88: 104 | D88: 80 | E88: 57 | F88: 35 | G88: 19 | H88: 4 | I88: 0 | J88: 0 | K88: 0 | L88: 0
A89: 1060 | B89: 130 | C89: 107 | D89: 83 | E89: 60 | F89: 37 | G89: 21 | H89: 6 | I89: 0 | J89: 0 | K89: 0 | L89: 0
A90: 1080 | B90: 133 | C90: 110 | D90: 86 | E90: 63 | F90: 40 | G90: 23 | H90: 8 | I90: 0 | J90: 0 | K90: 0 | L90: 0
A91: 1100 | B91: 136 | C91: 113 | D91: 89 | E91: 66 | F91: 43 | G91: 25 | H91: 10 | I91: 0 | J91: 0 | K91: 0 | L91: 0
A92: 1120 | B92: 139 | C92: 116 | D92: 92 | E92: 69 | F92: 46 | G92: 27 | H92: 12 | I92: 0 | J92: 0 | K92: 0 | L92: 0
A93: 1140 | B93: 142 | C93: 119 | D93: 95 | E93: 72 | F93: 49 | G93: 29 | H93: 14 | I93: 0 | J93: 0 | K93: 0 | L93: 0
A94: 1160 | B94: 145 | C94: 122 | D94: 98 | E94: 75 | F94: 52 | G94: 31 | H94: 16 | I94: 0 | J94: 0 | K94: 0 | L94: 0
A95: 1180 | B95: 148 | C95: 125 | D95: 101 | E95: 78 | F95: 55 | G95: 33 | H95: 18 | I95: 2 | J95: 0 | K95: 0 | L95: 0
A96: 1200 | B96: 151 | C96: 128 | D96: 104 | E96: 81 | F96: 58 | G96: 35 | H96: 20 | I96: 4 | J96: 0 | K96: 0 | L96: 0
A97: 1220 | B97: 154 | C97: 131 | D97: 107 | E97: 84 | F97: 61 | G97: 38 | H97: 22 | I97: 6 | J97: 0 | K97: 0 | L97: 0
A98: 1240 | B98: 157 | C98: 134 | D98: 110 | E98: 87 | F98: 64 | G98: 41 | H98: 24 | I98: 8 | J98: 0 | K98: 0 | L98: 0
A99: 1260 | B99: 160 | C99: 137 | D99: 113 | E99: 90 | F99: 67 | G99: 44 | H99: 26 | I99: 10 | J99: 0 | K99: 0 | L99: 0
A100: 1280 | B100: 163 | C100: 140 | D100: 116 | E100: 93 | F100: 70 | G100: 47 | H100: 28 | I100: 12 | J100: 0 | K100: 0 | L100: 0
A101: 1300 | B101: 166 | C101: 143 | D101: 119 | E101: 96 | F101: 73 | G101: 50 | H101: 30 | I101: 14 | J101: 0 | K101: 0 | L101: 0
A102: 1320 | B102: 169 | C102: 146 | D102: 122 | E102: 99 | F102: 76 | G102: 53 | H102: 32 | I102: 16 | J102: 1 | K102: 0 | L102: 0
A103: 1340 | B103: 172 | C103: 149 | D103: 125 | E103: 102 | F103: 79 | G103: 56 | H103: 34 | I103: 18 | J103: 3 | K103: 0 | L103: 0
A104: 1360 | B104: 175 | C104: 152 | D104: 128 | E104: 105 | F104: 82 | G104: 59 | H104: 36 | I104: 20 | J104: 5 | K104: 0 | L104: 0
A105: 1380 | B105: 178 | C105: 155 | D105: 131 | E105: 108 | F105: 85 | G105: 62 | H105: 39 | I105: 22 | J105: 7 | K105: 0 | L105: 0
A106: 1400 | B106: 181 | C106: 158 | D106: 134 | E106: 111 | F106: 88 | G106: 65 | H106: 42 | I106: 24 | J106: 9 | K106: 0 | L106: 0
A107: 1420 | B107: 184 | C107: 161 | D107: 137 | E107: 114 | F107: 91 | G107: 68 | H107: 45 | I107: 26 | J107: 11 | K107: 0 | L107: 0
A108: 1440 | B108: 187 | C108: 164 | D108: 140 | E108: 117 | F108: 94 | G108: 71 | H108: 48 | I108: 28 | J108: 13 | K108: 0 | L108: 0
A109: 1460 | B109: 190 | C109: 167 | D109: 143 | E109: 120 | F109: 97 | G109: 74 | H109: 51 | I109: 30 | J109: 15 | K109: 0 | L109: 0
A110: 1480 | B110: 193 | C110: 170 | D110: 146 | E110: 123 | F110: 100 | G110: 77 | H110: 54 | I110: 32 | J110: 17 | K110: 2 | L110: 0
A111: 1500 | B111: 196 | C111: 173 | D111: 149 | E111: 126 | F111: 103 | G111: 80 | H111: 57 | I111: 34 | J111: 19 | K111: 4 | L111: 0
A112: 1520 | B112: 199 | C112: 176 | D112: 152 | E112: 129 | F112: 106 | G112: 83 | H112: 60 | I112: 37 | J112: 21 | K112: 6 | L112: 0
A113: 1540 | B113: 204 | C113: 179 | D113: 155 | E113: 132 | F113: 109 | G113: 86 | H113: 63 | I113: 40 | J113: 23 | K113: 8 | L113: 0
A114: 1560 | B114: 209 | C114: 182 | D114: 158 | E114: 135 | F114: 112 | G114: 89 | H114: 66 | I114: 43 | J114: 25 | K114: 10 | L114: 0
A115: 1580 | B115: 214 | C115: 185 | D115: 161 | E115: 138 | F115: 115 | G115: 92 | H115: 69 | I115: 46 | J115: 27 | K115: 12 | L115: 0
A116: 1600 | B116: 219 | C116: 188 | D116: 164 | E116: 141 | F116: 118 | G116: 95 | H116: 72 | I116: 49 | J116: 29 | K116: 14 | L116: 0
A117: 1620 | B117: 224 | C117: 191 | D117: 167 | E117: 144 | F117: 121 | G117: 98 | H117: 75 | I117: 52 | J117: 31 | K117: 16 | L117: 0
A118: 1640 | B118: 229 | C118: 194 | D118: 170 | E118: 147 | F118: 124 | G118: 101 | H118: 78 | I118: 55 | J118: 33 | K118: 18 | L118: 2
A119: 1660 | B119: 234 | C119: 197 | D119: 173 | E119: 150 | F119: 127 | G119: 104 | H119: 81 | I119: 58 | J119: 35 | K119: 20 | L119: 4
A120: 1680 | B120: 239 | C120: 201 | D120: 176 | E120: 153 | F120: 130 | G120: 107 | H120: 84 | I120: 61 | J120: 38 | K120: 22 | L120: 6
A121: 1700 | B121: 244 | C121: 206 | D121: 179 | E121: 156 | F121: 133 | G121: 110 | H121: 87 | I121: 64 | J121: 41 | K121: 24 | L121: 8
A122: 1720 | B122: 249 | C122: 211 | D122: 182 | E122: 159 | F122: 136 | G122: 113 | H122: 90 | I122: 67 | J122: 44 | K122: 26 | L122: 10
A123: 1740 | B123: 254 | C123: 216 | D123: 185 | E123: 162 | F123: 139 | G123: 116 | H123: 93 | I123: 70 | J123: 47 | K123: 28 | L123: 12
A124: 1760 | B124: 259 | C124: 221 | D124: 188 | E124: 165 | F124: 142 | G124: 119 | H124: 96 | I124: 73 | J124: 50 | K124: 30 | L124: 14
A125: 1780 | B125: 264 | C125: 226 | D125: 191 | E125: 168 | F125: 145 | G125: 122 | H125: 99 | I125: 76 | J125: 53 | K125: 32 | L125: 16
A126: 1800 | B126: 269 | C126: 231 | D126: 194 | E126: 171 | F126: 148 | G126: 125 | H126: 102 | I126: 79 | J126: 56 | K126: 34 | L126: 18
A127: 1820 | B127: 274 | C127: 236 | D127: 197 | E127: 174 | F127: 151 | G127: 128 | H127: 105 | I127: 82 | J127: 59 | K127: 36 | L127: 20
A128: 1840 | B128: 279 | C128: 241 | D128: 202 | E128: 177 | F128: 154 | G128: 131 | H128: 108 | I128: 85 | J128: 62 | K128: 39 | L128: 22
A129: 1860 | B129: 284 | C129: 246 | D129: 207 | E129: 180 | F129: 157 | G129: 134 | H129: 111 | I129: 88 | J129: 65 | K129: 42 | L129: 24
A130: 1880 | B130: 289 | C130: 251 | D130: 212 | E130: 183 | F130: 160 | G130: 137 | H130: 114 | I130: 91 | J130: 68 | K130: 45 | L130: 26
A131: 1900 | B131: 294 | C131: 256 | D131: 217 | E131: 186 | F131: 163 | G131: 140 | H131: 117 | I131: 94 | J131: 71 | K131: 48 | L131: 28
A132: 1920 | B132: 299 | C132: 261 | D132: 222 | E132: 189 | F132: 166 | G132: 143 | H132: 120 | I132: 97 | J132: 74 | K132: 51 | L132: 30
A133: 1940 | B133: 304 | C133: 266 | D133: 227 | E133: 192 | F133: 169 | G133: 146 | H133: 123 | I133: 100 | J133: 77 | K133: 54 | L133: 32
A134: 1960 | B134: 309 | C134: 271 | D134: 232 | E134: 195 | F134: 172 | G134: 149 | H134: 126 | I134: 103 | J134: 80 | K134: 57 | L134: 34
A135: 1980 | B135: 314 | C135: 276 | D135: 237 | E135: 199 | F135: 175 | G135: 152 | H135: 129 | I135: 106 | J135: 83 | K135: 60 | L135: 36
A136: 2000 | B136: 319 | C136: 281 | D136: 242 | E136: 204 | F136: 178 | G136: 155 | H136: 132 | I136: 109 | J136: 86 | K136: 63 | L136: 39
A137: 2020 | B137: 324 | C137: 286 | D137: 247 | E137: 209 | F137: 181 | G137: 158 | H137: 135 | I137: 112 | J137: 89 | K137: 66 | L137: 42
A138: 2040 | B138: 329 | C138: 291 | D138: 252 | E138: 214 | F138: 184 | G138: 161 | H138: 138 | I138: 115 | J138: 92 | K138: 69 | L138: 45
A139: 2060 | B139: 334 | C139: 296 | D139: 257 | E139: 219 | F139: 187 | G139: 164 | H139: 141 | I139: 118 | J139: 95 | K139: 72 | L139: 48
A140: 2080 | B140: 339 | C140: 301 | D140: 262 | E140: 224 | F140: 190 | G140: 167 | H140: 144 | I140: 121 | J140: 98 | K140: 75 | L140: 51
A141: 2100 | B141: 344 | C141: 306 | D141: 267 | E141: 229 | F141: 193 | G141: 170 | H141: 147 | I141: 124 | J141: 101 | K141: 78 | L141: 54
A142: 2120 | B142: 349 | C142: 311 | D142: 272 | E142: 234 | F142: 196 | G142: 173 | H142: 150 | I142: 127 | J142: 104 | K142: 81 | L142: 57
A143: 2140 | D143: 277
A144: 2160 | D144: 282
A145: 2180 | D145: 287
A146: 2200 | D146: 292
A147: 2220 | D147: 297
A148: 2240 | D148: 302
A149: 2260 | D149: 307
A150: 2280 | D150: 312
A151: 2300 | D151: 317
A152: 2320 | D152: 322
A153: 2340 | D153: 327

Sheet married ne (hidden)
A1: Nebraska | B1: Income | C1: Tax | D1: Withholding*
A2: (FOR | B2: WAGES | C2: PAID | D2: ON | E2: OR | F2: AFTER | G2: JANUARY | H2: 1, | I2: 2011)
A3: And | B3: the | C3: number | D3: of | E3: withholding | F3: allowances | G3: claimed | H3: is | I3: —
A4: If | B4: the | C4: wages | D4: are | E4: —
A5: At | B5: least
A6: But | B6: less | C6: than
A7: The | B7: amount | C7: of | D7: Nebraska | E7: income | F7: tax | G7: to | H7: be | I7: withheld | J7: shall | K7: be | L7: —
A8: Nebraska
A9: *See | B9: page | C9: 2 | D9: for | E9: important | F9: information | G9: about | H9: the | I9: shaded | J9: areas.
A10: MARRIED | B10: — | C10: SEMIMONTHLY | D10: PAYROLL | E10: PERIOD
B11: 0 | C11: 1 | D11: 2 | E11: 3 | F11: 4 | G11: 5 | H11: 6 | I11: 7 | J11: 8 | K11: 9 | L11: 10
A12: 0 | B12: 0 | C12: 0 | D12: 0 | E12: 0 | F12: 0 | G12: 0 | H12: 0 | I12: 0 | J12: 0 | K12: 0 | L12: 0
A13: 230 | B13: 0 | C13: 0 | D13: 0 | E13: 0 | F13: 0 | G13: 0 | H13: 0 | I13: 0 | J13: 0 | K13: 0 | L13: 0
A14: 250 | B14: 0 | C14: 0 | D14: 0 | E14: 0 | F14: 0 | G14: 0 | H14: 0 | I14: 0 | J14: 0 | K14: 0 | L14: 0
A15: 270 | B15: 0 | C15: 0 | D15: 0 | E15: 0 | F15: 0 | G15: 0 | H15: 0 | I15: 0 | J15: 0 | K15: 0 | L15: 0
A16: 290 | B16: 0.73 | C16: 0 | D16: 0 | E16: 0 | F16: 0 | G16: 0 | H16: 0 | I16: 0 | J16: 0 | K16: 0 | L16: 0
A17: 310 | B17: 1.2 | C17: 0 | D17: 0 | E17: 0 | F17: 0 | G17: 0 | H17: 0 | I17: 0 | J17: 0 | K17: 0 | L17: 0
A18: 330 | B18: 1.67 | C18: 0 | D18: 0 | E18: 0 | F18: 0 | G18: 0 | H18: 0 | I18: 0 | J18: 0 | K18: 0 | L18: 0
A19: 350 | B19: 2.14 | C19: 0 | D19: 0 | E19: 0 | F19: 0 | G19: 0 | H19: 0 | I19: 0 | J19: 0 | K19: 0 | L19: 0
A20: 370 | B20: 2.61 | C20: 0.94 | D20: 0 | E20: 0 | F20: 0 | G20: 0 | H20: 0 | I20: 0 | J20: 0 | K20: 0 | L20: 0
A21: 390 | B21: 3.14 | C21: 1.41 | D21: 0 | E21: 0 | F21: 0 | G21: 0 | H21: 0 | I21: 0 | J21: 0 | K21: 0 | L21: 0
A22: 410 | B22: 3.79 | C22: 1.88 | D22: 0 | E22: 0 | F22: 0 | G22: 0 | H22: 0 | I22: 0 | J22: 0 | K22: 0 | L22: 0
A23: 430 | B23: 4.44 | C23: 2.35 | D23: 0.69 | E23: 0 | F23: 0 | G23: 0 | H23: 0 | I23: 0 | J23: 0 | K23: 0 | L23: 0
A24: 450 | B24: 5.1 | C24: 2.82 | D24: 1.16 | E24: 0 | F24: 0 | G24: 0 | H24: 0 | I24: 0 | J24: 0 | K24: 0 | L24: 0
A25: 470 | B25: 5.75 | C25: 3.44 | D25: 1.63 | E25: 0 | F25: 0 | G25: 0 | H25: 0 | I25: 0 | J25: 0 | K25: 0 | L25: 0
A26: 490 | B26: 6.41 | C26: 4.09 | D26: 2.1 | E26: 0 | F26: 0 | G26: 0 | H26: 0 | I26: 0 | J26: 0 | K26: 0 | L26: 0
A27: 510 | B27: 7.06 | C27: 4.74 | D27: 2.57 | E27: 0.9 | F27: 0 | G27: 0 | H27: 0 | I27: 0 | J27: 0 | K27: 0 | L27: 0
A28: 530 | B28: 7.71 | C28: 5.4 | D28: 3.08 | E28: 1.37 | F28: 0 | G28: 0 | H28: 0 | I28: 0 | J28: 0 | K28: 0 | L28: 0
A29: 550 | B29: 8.37 | C29: 6.05 | D29: 3.74 | E29: 1.84 | F29: 0 | G29: 0 | H29: 0 | I29: 0 | J29: 0 | K29: 0 | L29: 0
A30: 570 | B30: 9.02 | C30: 6.71 | D30: 4.39 | E30: 2.31 | F30: 0.65 | G30: 0 | H30: 0 | I30: 0 | J30: 0 | K30: 0 | L30: 0
A31: 590 | B31: 9.68 | C31: 7.36 | D31: 5.04 | E31: 2.78 | F31: 1.12 | G31: 0 | H31: 0 | I31: 0 | J31: 0 | K31: 0 | L31: 0
A32: 610 | B32: 10.33 | C32: 8.01 | D32: 5.7 | E32: 3.38 | F32: 1.59 | G32: 0 | H32: 0 | I32: 0 | J32: 0 | K32: 0 | L32: 0
A33: 630 | B33: 10.98 | C33: 8.67 | D33: 6.35 | E33: 4.04 | F33: 2.06 | G33: 0 | H33: 0 | I33: 0 | J33: 0 | K33: 0 | L33: 0
A34: 650 | B34: 11.64 | C34: 9.32 | D34: 7.01 | E34: 4.69 | F34: 2.53 | G34: 0.87 | H34: 0 | I34: 0 | J34: 0 | K34: 0 | L34: 0
A35: 670 | B35: 12.29 | C35: 9.98 | D35: 7.66 | E35: 5.34 | F35: 3.03 | G35: 1.34 | H35: 0 | I35: 0 | J35: 0 | K35: 0 | L35: 0
A36: 690 | B36: 12.95 | C36: 10.63 | D36: 8.31 | E36: 6 | F36: 3.68 | G36: 1.81 | H36: 0 | I36: 0 | J36: 0 | K36: 0 | L36: 0
A37: 710 | B37: 13.6 | C37: 11.28 | D37: 8.97 | E37: 6.65 | F37: 4.34 | G37: 2.28 | H37: 0.61 | I37: 0 | J37: 0 | K37: 0 | L37: 0
A38: 730 | B38: 14.25 | C38: 11.94 | D38: 9.62 | E38: 7.31 | F38: 4.99 | G38: 2.75 | H38: 1.08 | I38: 0 | J38: 0 | K38: 0 | L38: 0
A39: 750 | B39: 14.91 | C39: 12.59 | D39: 10.28 | E39: 7.96 | F39: 5.64 | G39: 3.33 | H39: 1.55 | I39: 0 | J39: 0 | K39: 0 | L39: 0
A40: 770 | B40: 15.56 | C40: 13.25 | D40: 10.93 | E40: 8.61 | F40: 6.3 | G40: 3.98 | H40: 2.02 | I40: 0 | J40: 0 | K40: 0 | L40: 0
A41: 790 | B41: 16.22 | C41: 13.9 | D41: 11.58 | E41: 9.27 | F41: 6.95 | G41: 4.64 | H41: 2.49 | I41: 0.83 | J41: 0 | K41: 0 | L41: 0
A42: 810 | B42: 16.87 | C42: 14.55 | D42: 12.24 | E42: 9.92 | F42: 7.61 | G42: 5.29 | H42: 2.97 | I42: 1.3 | J42: 0 | K42: 0 | L42: 0
A43: 830 | B43: 17.52 | C43: 15.21 | D43: 12.89 | E43: 10.58 | F43: 8.26 | G43: 5.94 | H43: 3.63 | I43: 1.77 | J43: 0 | K43: 0 | L43: 0
A44: 850 | B44: 18.18 | C44: 15.86 | D44: 13.55 | E44: 11.23 | F44: 8.91 | G44: 6.6 | H44: 4.28 | I44: 2.24 | J44: 0.57 | K44: 0 | L44: 0
A45: 870 | B45: 18.83 | C45: 16.52 | D45: 14.2 | E45: 11.88 | F45: 9.57 | G45: 7.25 | H45: 4.94 | I45: 2.71 | J45: 1.04 | K45: 0 | L45: 0
A46: 890 | B46: 19.49 | C46: 17.17 | D46: 14.85 | E46: 12.54 | F46: 10.22 | G46: 7.91 | H46: 5.59 | I46: 3.27 | J46: 1.51 | K46: 0 | L46: 0
A47: 910 | B47: 20.14 | C47: 17.82 | D47: 15.51 | E47: 13.19 | F47: 10.88 | G47: 8.56 | H47: 6.24 | I47: 3.93 | J47: 1.98 | K47: 0 | L47: 0
A48: 930 | B48: 20.79 | C48: 18.48 | D48: 16.16 | E48: 13.85 | F48: 11.53 | G48: 9.21 | H48: 6.9 | I48: 4.58 | J48: 2.45 | K48: 0.79 | L48: 0
A49: 950 | B49: 21.45 | C49: 19.13 | D49: 16.82 | E49: 14.5 | F49: 12.18 | G49: 9.87 | H49: 7.55 | I49: 5.24 | J49: 2.92 | K49: 1.26 | L49: 0
A50: 970 | B50: 22.1 | C50: 19.79 | D50: 17.47 | E50: 15.15 | F50: 12.84 | G50: 10.52 | H50: 8.21 | I50: 5.89 | J50: 3.57 | K50: 1.73 | L50: 0
A51: 990 | B51: 22.93 | C51: 20.44 | D51: 18.12 | E51: 15.81 | F51: 13.49 | G51: 11.18 | H51: 8.86 | I51: 6.54 | J51: 4.23 | K51: 2.2 | L51: 0.53
A52: 1010 | B52: 23.94 | C52: 21.09 | D52: 18.78 | E52: 16.46 | F52: 14.15 | G52: 11.83 | H52: 9.51 | I52: 7.2 | J52: 4.88 | K52: 2.67 | L52: 1
A53: 1030 | B53: 24.94 | C53: 21.75 | D53: 19.43 | E53: 17.12 | F53: 14.8 | G53: 12.48 | H53: 10.17 | I53: 7.85 | J53: 5.54 | K53: 3.22 | L53: 1.47
A54: 1050 | B54: 25.94 | C54: 22.4 | D54: 20.09 | E54: 17.77 | F54: 15.45 | G54: 13.14 | H54: 10.82 | I54: 8.51 | J54: 6.19 | K54: 3.87 | L54: 1.94
A55: 1070 | B55: 26.95 | C55: 23.39 | D55: 20.74 | E55: 18.42 | F55: 16.11 | G55: 13.79 | H55: 11.48 | I55: 9.16 | J55: 6.84 | K55: 4.53 | L55: 2.41
A56: 1090 | B56: 27.95 | C56: 24.4 | D56: 21.39 | E56: 19.08 | F56: 16.76 | G56: 14.45 | H56: 12.13 | I56: 9.81 | J56: 7.5 | K56: 5.18 | L56: 2.88
A57: 1110 | B57: 28.96 | C57: 25.4 | D57: 22.05 | E57: 19.73 | F57: 17.42 | G57: 15.1 | H57: 12.78 | I57: 10.47 | J57: 8.15 | K57: 5.83 | L57: 3.52
A58: 1130 | B58: 29.96 | C58: 26.4 | D58: 22.85 | E58: 20.39 | F58: 18.07 | G58: 15.75 | H58: 13.44 | I58: 11.12 | J58: 8.81 | K58: 6.49 | L58: 4.17
A59: 1150 | B59: 30.96 | C59: 27.41 | D59: 23.85 | E59: 21.04 | F59: 18.72 | G59: 16.41 | H59: 14.09 | I59: 11.78 | J59: 9.46 | K59: 7.14 | L59: 4.83
A60: 1170 | B60: 31.97 | C60: 28.41 | D60: 24.86 | E60: 21.69 | F60: 19.38 | G60: 17.06 | H60: 14.75 | I60: 12.43 | J60: 10.11 | K60: 7.8 | L60: 5.48
A61: 1190 | B61: 32.97 | C61: 29.42 | D61: 25.86 | E61: 22.35 | F61: 20.03 | G61: 17.72 | H61: 15.4 | I61: 13.08 | J61: 10.77 | K61: 8.45 | L61: 6.13
A62: 1210 | B62: 33.98 | C62: 30.42 | D62: 26.86 | E62: 23.31 | F62: 20.69 | G62: 18.37 | H62: 16.05 | I62: 13.74 | J62: 11.42 | K62: 9.1 | L62: 6.79
A63: 1230 | B63: 34.98 | C63: 31.42 | D63: 27.87 | E63: 24.31 | F63: 21.34 | G63: 19.02 | H63: 16.71 | I63: 14.39 | J63: 12.08 | K63: 9.76 | L63: 7.44
A64: 1250 | B64: 35.98 | C64: 32.43 | D64: 28.87 | E64: 25.32 | F64: 21.99 | G64: 19.68 | H64: 17.36 | I64: 15.05 | J64: 12.73 | K64: 10.41 | L64: 8.1
A65: 1270 | B65: 36.99 | C65: 33.43 | D65: 29.88 | E65: 26.32 | F65: 22.77 | G65: 20.33 | H65: 18.02 | I65: 15.7 | J65: 13.38 | K65: 11.07 | L65: 8.75
A66: 1290 | B66: 37.99 | C66: 34.44 | D66: 30.88 | E66: 27.33 | F66: 23.77 | G66: 20.99 | H66: 18.67 | I66: 16.35 | J66: 14.04 | K66: 11.72 | L66: 9.4
A67: 1310 | B67: 39 | C67: 35.44 | D67: 31.88 | E67: 28.33 | F67: 24.77 | G67: 21.64 | H67: 19.32 | I67: 17.01 | J67: 14.69 | K67: 12.37 | L67: 10.06
A68: 1330 | B68: 40 | C68: 36.44 | D68: 32.89 | E68: 29.33 | F68: 25.78 | G68: 22.29 | H68: 19.98 | I68: 17.66 | J68: 15.35 | K68: 13.03 | L68: 10.71
A69: 1350 | B69: 41 | C69: 37.45 | D69: 33.89 | E69: 30.34 | F69: 26.78 | G69: 23.23 | H69: 20.63 | I69: 18.32 | J69: 16 | K69: 13.68 | L69: 11.37
A70: 1370 | B70: 42.01 | C70: 38.45 | D70: 34.9 | E70: 31.34 | F70: 27.79 | G70: 24.23 | H70: 21.29 | I70: 18.97 | J70: 16.65 | K70: 14.34 | L70: 12.02
A71: 1390 | B71: 43.01 | C71: 39.46 | D71: 35.9 | E71: 32.35 | F71: 28.79 | G71: 25.23 | H71: 21.94 | I71: 19.62 | J71: 17.31 | K71: 14.99 | L71: 12.67
A72: 1410 | B72: 44.02 | C72: 40.46 | D72: 36.9 | E72: 33.35 | F72: 29.79 | G72: 26.24 | H72: 22.68 | I72: 20.28 | J72: 17.96 | K72: 15.64 | L72: 13.33
A73: 1430 | B73: 45.02 | C73: 41.46 | D73: 37.91 | E73: 34.35 | F73: 30.8 | G73: 27.24 | H73: 23.69 | I73: 20.93 | J73: 18.62 | K73: 16.3 | L73: 13.98
A74: 1450 | B74: 46.02 | C74: 42.47 | D74: 38.91 | E74: 35.36 | F74: 31.8 | G74: 28.25 | H74: 24.69 | I74: 21.59 | J74: 19.27 | K74: 16.95 | L74: 14.64
A75: 1470 | B75: 47.03 | C75: 43.47 | D75: 39.92 | E75: 36.36 | F75: 32.81 | G75: 29.25 | H75: 25.69 | I75: 22.24 | J75: 19.92 | K75: 17.61 | L75: 15.29
A76: 1490 | B76: 48.03 | C76: 44.48 | D76: 40.92 | E76: 37.37 | F76: 33.81 | G76: 30.25 | H76: 26.7 | I76: 23.14 | J76: 20.58 | K76: 18.26 | L76: 15.94
A77: 1510 | B77: 49.04 | C77: 45.48 | D77: 41.92 | E77: 38.37 | F77: 34.81 | G77: 31.26 | H77: 27.7 | I77: 24.15 | J77: 21.23 | K77: 18.91 | L77: 16.6
A78: 1530 | B78: 50.04 | C78: 46.48 | D78: 42.93 | E78: 39.37 | F78: 35.82 | G78: 32.26 | H78: 28.71 | I78: 25.15 | J78: 21.89 | K78: 19.57 | L78: 17.25
A79: 1550 | B79: 51.26 | C79: 47.49 | D79: 43.93 | E79: 40.38 | F79: 36.82 | G79: 33.27 | H79: 29.71 | I79: 26.15 | J79: 22.6 | K79: 20.22 | L79: 17.91
A80: 1570 | B80: 52.5 | C80: 48.49 | D80: 44.94 | E80: 41.38 | F80: 37.83 | G80: 34.27 | H80: 30.71 | I80: 27.16 | J80: 23.6 | K80: 20.88 | L80: 18.56
A81: 1590 | B81: 53.74 | C81: 49.5 | D81: 45.94 | E81: 42.39 | F81: 38.83 | G81: 35.27 | H81: 31.72 | I81: 28.16 | J81: 24.61 | K81: 21.53 | L81: 19.21
A82: 1610 | B82: 54.98 | C82: 50.58 | D82: 46.94 | E82: 43.39 | F82: 39.83 | G82: 36.28 | H82: 32.72 | I82: 29.17 | J82: 25.61 | K82: 22.18 | L82: 19.87
A83: 1630 | B83: 56.22 | C83: 51.82 | D83: 47.95 | E83: 44.39 | F83: 40.84 | G83: 37.28 | H83: 33.73 | I83: 30.17 | J83: 26.61 | K83: 23.06 | L83: 20.52
A84: 1650 | B84: 57.46 | C84: 53.06 | D84: 48.95 | E84: 45.4 | F84: 41.84 | G84: 38.29 | H84: 34.73 | I84: 31.17 | J84: 27.62 | K84: 24.06 | L84: 21.18
A85: 1670 | B85: 58.7 | C85: 54.3 | D85: 49.96 | E85: 46.4 | F85: 42.85 | G85: 39.29 | H85: 35.73 | I85: 32.18 | J85: 28.62 | K85: 25.07 | L85: 21.83
A86: 1690 | B86: 59.94 | C86: 55.54 | D86: 51.15 | E86: 47.41 | F86: 43.85 | G86: 40.29 | H86: 36.74 | I86: 33.18 | J86: 29.63 | K86: 26.07 | L86: 22.52
A87: 1710 | B87: 61.18 | C87: 56.78 | D87: 52.39 | E87: 48.41 | F87: 44.85 | G87: 41.3 | H87: 37.74 | I87: 34.19 | J87: 30.63 | K87: 27.08 | L87: 23.52
A88: 1730 | B88: 62.42 | C88: 58.02 | D88: 53.63 | E88: 49.41 | F88: 45.86 | G88: 42.3 | H88: 38.75 | I88: 35.19 | J88: 31.63 | K88: 28.08 | L88: 24.52
A89: 1750 | B89: 63.66 | C89: 59.26 | D89: 54.87 | E89: 50.48 | F89: 46.86 | G89: 43.31 | H89: 39.75 | I89: 36.19 | J89: 32.64 | K89: 29.08 | L89: 25.53
A90: 1770 | B90: 64.9 | C90: 60.5 | D90: 56.11 | E90: 51.72 | F90: 47.87 | G90: 44.31 | H90: 40.75 | I90: 37.2 | J90: 33.64 | K90: 30.09 | L90: 26.53
A91: 1790 | B91: 66.14 | C91: 61.74 | D91: 57.35 | E91: 52.96 | F91: 48.87 | G91: 45.31 | H91: 41.76 | I91: 38.2 | J91: 34.65 | K91: 31.09 | L91: 27.54
A92: 1810 | B92: 67.38 | C92: 62.98 | D92: 58.59 | E92: 54.2 | F92: 49.87 | G92: 46.32 | H92: 42.76 | I92: 39.21 | J92: 35.65 | K92: 32.1 | L92: 28.54
A93: 1830 | B93: 68.62 | C93: 64.22 | D93: 59.83 | E93: 55.44 | F93: 51.05 | G93: 47.32 | H93: 43.77 | I93: 40.21 | J93: 36.65 | K93: 33.1 | L93: 29.54
A94: 1850 | B94: 69.86 | C94: 65.46 | D94: 61.07 | E94: 56.68 | F94: 52.29 | G94: 48.33 | H94: 44.77 | I94: 41.21 | J94: 37.66 | K94: 34.1 | L94: 30.55
A95: 1870 | B95: 71.1 | C95: 66.7 | D95: 62.31 | E95: 57.92 | F95: 53.53 | G95: 49.33 | H95: 45.77 | I95: 42.22 | J95: 38.66 | K95: 35.11 | L95: 31.55
A96: 1890 | B96: 72.34 | C96: 67.94 | D96: 63.55 | E96: 59.16 | F96: 54.77 | G96: 50.38 | H96: 46.78 | I96: 43.22 | J96: 39.67 | K96: 36.11 | L96: 32.56
A97: 1910 | B97: 73.59 | C97: 69.18 | D97: 64.79 | E97: 60.4 | F97: 56.01 | G97: 51.62 | H97: 47.78 | I97: 44.23 | J97: 40.67 | K97: 37.12 | L97: 33.56
A98: 1930 | B98: 74.91 | C98: 70.42 | D98: 66.03 | E98: 61.64 | F98: 57.25 | G98: 52.86 | H98: 48.79 | I98: 45.23 | J98: 41.67 | K98: 38.12 | L98: 34.56
A99: 1950 | B99: 76.22 | C99: 71.66 | D99: 67.27 | E99: 62.88 | F99: 58.49 | G99: 54.1 | H99: 49.79 | I99: 46.23 | J99: 42.68 | K99: 39.12 | L99: 35.57
A100: 1970 | B100: 77.54 | C100: 72.9 | D100: 68.51 | E100: 64.12 | F100: 59.73 | G100: 55.34 | H100: 50.95 | I100: 47.24 | J100: 43.68 | K100: 40.13 | L100: 36.57
A101: 1990 | B101: 78.86 | C101: 74.19 | D101: 69.75 | E101: 65.36 | F101: 60.97 | G101: 56.58 | H101: 52.19 | I101: 48.24 | J101: 44.69 | K101: 41.13 | L101: 37.58
A102: 2010 | B102: 80.18 | C102: 75.51 | D102: 70.99 | E102: 66.6 | F102: 62.21 | G102: 57.82 | H102: 53.43 | I102: 49.25 | J102: 45.69 | K102: 42.14 | L102: 38.58
A103: 2030 | B103: 81.5 | C103: 76.83 | D103: 72.23 | E103: 67.84 | F103: 63.45 | G103: 59.06 | H103: 54.67 | I103: 50.28 | J103: 46.69 | K103: 43.14 | L103: 39.58
A104: 2050 | B104: 82.81 | C104: 78.15 | D104: 73.48 | E104: 69.08 | F104: 64.69 | G104: 60.3 | H104: 55.91 | I104: 51.52 | J104: 47.7 | K104: 44.14 | L104: 40.59
A105: 2070 | B105: 84.13 | C105: 79.46 | D105: 74.8 | E105: 70.32 | F105: 65.93 | G105: 61.54 | H105: 57.15 | I105: 52.76 | J105: 48.7 | K105: 45.15 | L105: 41.59
A106: 2090 | B106: 85.45 | C106: 80.78 | D106: 76.11 | E106: 71.56 | F106: 67.17 | G106: 62.78 | H106: 58.39 | I106: 54 | J106: 49.71 | K106: 46.15 | L106: 42.6
A107: 2110 | B107: 86.77 | C107: 82.1 | D107: 77.43 | E107: 72.8 | F107: 68.41 | G107: 64.02 | H107: 59.63 | I107: 55.24 | J107: 50.84 | K107: 47.16 | L107: 43.6
A108: 2130 | B108: 88.09 | C108: 83.42 | D108: 78.75 | E108: 74.08 | F108: 69.65 | G108: 65.26 | H108: 60.87 | I108: 56.48 | J108: 52.08 | K108: 48.16 | L108: 44.6
A109: 2150 | B109: 89.4 | C109: 84.74 | D109: 80.07 | E109: 75.4 | F109: 70.89 | G109: 66.5 | H109: 62.11 | I109: 57.72 | J109: 53.32 | K109: 49.16 | L109: 45.61
A110: 2170 | B110: 90.72 | C110: 86.05 | D110: 81.39 | E110: 76.72 | F110: 72.13 | G110: 67.74 | H110: 63.35 | I110: 58.96 | J110: 54.56 | K110: 50.17 | L110: 46.61
A111: 2190 | B111: 92.04 | C111: 87.37 | D111: 82.7 | E111: 78.04 | F111: 73.37 | G111: 68.98 | H111: 64.59 | I111: 60.2 | J111: 55.8 | K111: 51.41 | L111: 47.62
A112: 2210 | B112: 93.36 | C112: 88.69 | D112: 84.02 | E112: 79.35 | F112: 74.69 | G112: 70.22 | H112: 65.83 | I112: 61.44 | J112: 57.04 | K112: 52.65 | L112: 48.62
A113: 2230 | B113: 94.68 | C113: 90.01 | D113: 85.34 | E113: 80.67 | F113: 76 | G113: 71.46 | H113: 67.07 | I113: 62.68 | J113: 58.28 | K113: 53.89 | L113: 49.62
A114: 2250 | B114: 95.99 | C114: 91.33 | D114: 86.66 | E114: 81.99 | F114: 77.32 | G114: 72.7 | H114: 68.31 | I114: 63.92 | J114: 59.52 | K114: 55.13 | L114: 50.74
A115: 2270 | B115: 97.31 | C115: 92.64 | D115: 87.98 | E115: 83.31 | F115: 78.64 | G115: 73.97 | H115: 69.55 | I115: 65.16 | J115: 60.76 | K115: 56.37 | L115: 51.98
A116: 2290 | B116: 98.63 | C116: 93.96 | D116: 89.29 | E116: 84.63 | F116: 79.96 | G116: 75.29 | H116: 70.79 | I116: 66.4 | J116: 62 | K116: 57.61 | L116: 53.22
A117: 2310 | B117: 99.95 | C117: 95.28 | D117: 90.61 | E117: 85.94 | F117: 81.28 | G117: 76.61 | H117: 72.03 | I117: 67.64 | J117: 63.24 | K117: 58.85 | L117: 54.46
A118: 2330 | B118: 101.27 | C118: 96.6 | D118: 91.93 | E118: 87.26 | F118: 82.59 | G118: 77.93 | H118: 73.27 | I118: 68.88 | J118: 64.48 | K118: 60.09 | L118: 55.7
A119: 2350 | B119: 102.58 | C119: 97.92 | D119: 93.25 | E119: 88.58 | F119: 83.91 | G119: 79.25 | H119: 74.58 | I119: 70.12 | J119: 65.72 | K119: 61.33 | L119: 56.94
A120: 2370 | B120: 103.9 | C120: 99.23 | D120: 94.57 | E120: 89.9 | F120: 85.23 | G120: 80.56 | H120: 75.9 | I120: 71.36 | J120: 66.96 | K120: 62.57 | L120: 58.18
A121: 2390 | B121: 105.22 | C121: 100.55 | D121: 95.88 | E121: 91.22 | F121: 86.55 | G121: 81.88 | H121: 77.21 | I121: 72.6 | J121: 68.2 | K121: 63.81 | L121: 59.42
A122: 2410 | B122: 106.54 | C122: 101.87 | D122: 97.2 | E122: 92.53 | F122: 87.87 | G122: 83.2 | H122: 78.53 | I122: 73.86 | J122: 69.44 | K122: 65.05 | L122: 60.66
A123: 2430 | B123: 107.86 | C123: 103.19 | D123: 98.52 | E123: 93.85 | F123: 89.18 | G123: 84.52 | H123: 79.85 | I123: 75.18 | J123: 70.68 | K123: 66.29 | L123: 61.9
A124: 2450 | B124: 109.17 | C124: 104.51 | D124: 99.84 | E124: 95.17 | F124: 90.5 | G124: 85.84 | H124: 81.17 | I124: 76.5 | J124: 71.92 | K124: 67.53 | L124: 63.14
A125: 2470 | B125: 110.49 | C125: 105.82 | D125: 101.16 | E125: 96.49 | F125: 91.82 | G125: 87.15 | H125: 82.49 | I125: 77.82 | J125: 73.16 | K125: 68.77 | L125: 64.38
A126: 2490 | B126: 111.81 | C126: 107.14 | D126: 102.47 | E126: 97.81 | F126: 93.14 | G126: 88.47 | H126: 83.8 | I126: 79.14 | J126: 74.47 | K126: 70.01 | L126: 65.62
A127: 2510 | B127: 113.13 | C127: 108.46 | D127: 103.79 | E127: 99.12 | F127: 94.46 | G127: 89.79 | H127: 85.12 | I127: 80.45 | J127: 75.79 | K127: 71.25 | L127: 66.86
A128: 2530 | B128: 114.45 | C128: 109.78 | D128: 105.11 | E128: 100.44 | F128: 95.77 | G128: 91.11 | H128: 86.44 | I128: 81.77 | J128: 77.1 | K128: 72.49 | L128: 68.1
A129: 2550 | B129: 115.83 | C129: 111.1 | D129: 106.43 | E129: 101.76 | F129: 97.09 | G129: 92.43 | H129: 87.76 | I129: 83.09 | J129: 78.42 | K129: 73.75 | L129: 69.34
A130: 2570 | B130: 117.22 | C130: 112.41 | D130: 107.75 | E130: 103.08 | F130: 98.41 | G130: 93.74 | H130: 89.08 | I130: 84.41 | J130: 79.74 | K130: 75.07 | L130: 70.58
A131: 2590 | B131: 118.61 | C131: 113.73 | D131: 109.06 | E131: 104.4 | F131: 99.73 | G131: 95.06 | H131: 90.39 | I131: 85.73 | J131: 81.06 | K131: 76.39 | L131: 71.82
A132: 2610 | B132: 120 | C132: 115.08 | D132: 110.38 | E132: 105.71 | F132: 101.05 | G132: 96.38 | H132: 91.71 | I132: 87.04 | J132: 82.38 | K132: 77.71 | L132: 73.06
A133: 2630 | B133: 121.39 | C133: 116.47 | D133: 111.7 | E133: 107.03 | F133: 102.36 | G133: 97.7 | H133: 93.03 | I133: 88.36 | J133: 83.69 | K133: 79.03 | L133: 74.36
A134: 2650 | B134: 122.78 | C134: 117.86 | D134: 113.02 | E134: 108.35 | F134: 103.68 | G134: 99.02 | H134: 94.35 | I134: 89.68 | J134: 85.01 | K134: 80.34 | L134: 75.68
A135: 2670 | B135: 124.17 | C135: 119.25 | D135: 114.34 | E135: 109.67 | F135: 105 | G135: 100.33 | H135: 95.67 | I135: 91 | J135: 86.33 | K135: 81.66 | L135: 76.99
A136: 2690 | B136: 125.56 | C136: 120.64 | D136: 115.72 | E136: 110.99 | F136: 106.32 | G136: 101.65 | H136: 96.98 | I136: 92.32 | J136: 87.65 | K136: 82.98 | L136: 78.31
A137: 2710 | B137: 126.95 | C137: 122.03 | D137: 117.11 | E137: 112.3 | F137: 107.64 | G137: 102.97 | H137: 98.3 | I137: 93.63 | J137: 88.97 | K137: 84.3 | L137: 79.63
A138: 2730 | B138: 128.34 | C138: 123.42 | D138: 118.5 | E138: 113.62 | F138: 108.95 | G138: 104.29 | H138: 99.62 | I138: 94.95 | J138: 90.28 | K138: 85.62 | L138: 80.95
A139: 2750 | B139: 129.73 | C139: 124.81 | D139: 119.89 | E139: 114.96 | F139: 110.27 | G139: 105.61 | H139: 100.94 | I139: 96.27 | J139: 91.6 | K139: 86.93 | L139: 82.27
A140: 2770 | B140: 131.12 | C140: 126.2 | D140: 121.28 | E140: 116.35 | F140: 111.59 | G140: 106.92 | H140: 102.26 | I140: 97.59 | J140: 92.92 | K140: 88.25 | L140: 83.58
A141: 2790 | B141: 132.51 | C141: 127.59 | D141: 122.67 | E141: 117.74 | F141: 112.91 | G141: 108.24 | H141: 103.57 | I141: 98.91 | J141: 94.24 | K141: 89.57 | L141: 84.9
A142: 2810 | B142: 133.9 | C142: 128.98 | D142: 124.06 | E142: 119.13 | F142: 114.23 | G142: 109.56 | H142: 104.89 | I142: 100.22 | J142: 95.56 | K142: 90.89 | L142: 86.22
A143: 2830 | B143: 135.29 | C143: 130.37 | D143: 125.45 | E143: 120.52 | F143: 115.6 | G143: 110.88 | H143: 106.21 | I143: 101.54 | J143: 96.87 | K143: 92.21 | L143: 87.54
A144: 2850 | B144: 136.68 | C144: 131.76 | D144: 126.84 | E144: 121.91 | F144: 116.99 | G144: 112.2 | H144: 107.53 | I144: 102.86 | J144: 98.19 | K144: 93.52 | L144: 88.86
A145: 2870 | B145: 138.07 | C145: 133.15 | D145: 128.23 | E145: 123.3 | F145: 118.38 | G145: 113.51 | H145: 108.85 | I145: 104.18 | J145: 99.51 | K145: 94.84 | L145: 90.17
A146: 2890 | B146: 139.46 | C146: 134.54 | D146: 129.62 | E146: 124.69 | F146: 119.77 | G146: 114.85 | H146: 110.16 | I146: 105.5 | J146: 100.83 | K146: 96.16 | L146: 91.49
A147: 2910 | B147: 140.85 | C147: 135.93 | D147: 131.01 | E147: 126.08 | F147: 121.16 | G147: 116.24 | H147: 111.48 | I147: 106.81 | J147: 102.15 | K147: 97.48 | L147: 92.81
A148: 2930 | B148: 142.24 | C148: 137.32 | D148: 132.4 | E148: 127.47 | F148: 122.55 | G148: 117.63 | H148: 112.8 | I148: 108.13 | J148: 103.46 | K148: 98.8 | L148: 94.13
A149: 2950 | B149: 143.63 | C149: 138.71 | D149: 133.79 | E149: 128.86 | F149: 123.94 | G149: 119.02 | H149: 114.12 | I149: 109.45 | J149: 104.78 | K149: 100.11 | L149: 95.45
A150: 2970 | B150: 145.02 | C150: 140.1 | D150: 135.18 | E150: 130.25 | F150: 125.33 | G150: 120.41 | H150: 115.48 | I150: 110.77 | J150: 106.1 | K150: 101.43 | L150: 96.76

Sheet Single NE (hidden)
A1: Nebraska | B1: Income | C1: Tax | D1: Withholding*
A2: (FOR | B2: WAGES | C2: PAID | D2: ON | E2: OR | F2: AFTER | G2: JANUARY | H2: 1, | I2: 2011)
A3: And | B3: the | C3: number | D3: of | E3: withholding | F3: allowances | G3: claimed | H3: is | I3: —
A4: If | B4: the | C4: wages | D4: are | E4: —
A5: At | B5: least
A6: But | B6: less | C6: than
A7: The | B7: amount | C7: of | D7: Nebraska | E7: income | F7: tax | G7: to | H7: be | I7: withheld | J7: shall | K7: be | L7: —
A8: SINGLE | B8: PERSONS | C8: — | D8: SEMIMONTHLY | E8: PAYROLL | F8: PERIOD
B9: 0 | C9: 1 | D9: 2 | E9: 3 | F9: 4 | G9: 5 | H9: 6 | I9: 7 | J9: 8 | K9: 9 | L9: 10
A10: 0 | B10: 0 | C10: 0 | D10: 0 | E10: 0 | F10: 0 | G10: 0 | H10: 0 | I10: 0 | J10: 0 | K10: 0 | L10: 0
A11: 110 | B11: 0.54 | C11: 0 | D11: 0 | E11: 0 | F11: 0 | G11: 0 | H11: 0 | I11: 0 | J11: 0 | K11: 0 | L11: 0
A12: 120 | B12: 0.78 | C12: 0 | D12: 0 | E12: 0 | F12: 0 | G12: 0 | H12: 0 | I12: 0 | J12: 0 | K12: 0 | L12: 0
A13: 130 | B13: 1.01 | C13: 0 | D13: 0 | E13: 0 | F13: 0 | G13: 0 | H13: 0 | I13: 0 | J13: 0 | K13: 0 | L13: 0
A14: 140 | B14: 1.25 | C14: 0 | D14: 0 | E14: 0 | F14: 0 | G14: 0 | H14: 0 | I14: 0 | J14: 0 | K14: 0 | L14: 0
A15: 150 | B15: 1.48 | C15: 0 | D15: 0 | E15: 0 | F15: 0 | G15: 0 | H15: 0 | I15: 0 | J15: 0 | K15: 0 | L15: 0
A16: 160 | B16: 1.72 | C16: 0 | D16: 0 | E16: 0 | F16: 0 | G16: 0 | H16: 0 | I16: 0 | J16: 0 | K16: 0 | L16: 0
A17: 170 | B17: 1.95 | C17: 0 | D17: 0 | E17: 0 | F17: 0 | G17: 0 | H17: 0 | I17: 0 | J17: 0 | K17: 0 | L17: 0
A18: 180 | B18: 2.21 | C18: 0.52 | D18: 0 | E18: 0 | F18: 0 | G18: 0 | H18: 0 | I18: 0 | J18: 0 | K18: 0 | L18: 0
A19: 190 | B19: 2.53 | C19: 0.76 | D19: 0 | E19: 0 | F19: 0 | G19: 0 | H19: 0 | I19: 0 | J19: 0 | K19: 0 | L19: 0
A20: 200 | B20: 2.86 | C20: 0.99 | D20: 0 | E20: 0 | F20: 0 | G20: 0 | H20: 0 | I20: 0 | J20: 0 | K20: 0 | L20: 0
A21: 210 | B21: 3.19 | C21: 1.23 | D21: 0 | E21: 0 | F21: 0 | G21: 0 | H21: 0 | I21: 0 | J21: 0 | K21: 0 | L21: 0
A22: 220 | B22: 3.51 | C22: 1.46 | D22: 0 | E22: 0 | F22: 0 | G22: 0 | H22: 0 | I22: 0 | J22: 0 | K22: 0 | L22: 0
A23: 230 | B23: 3.84 | C23: 1.7 | D23: 0 | E23: 0 | F23: 0 | G23: 0 | H23: 0 | I23: 0 | J23: 0 | K23: 0 | L23: 0
A24: 240 | B24: 4.17 | C24: 1.93 | D24: 0 | E24: 0 | F24: 0 | G24: 0 | H24: 0 | I24: 0 | J24: 0 | K24: 0 | L24: 0
A25: 250 | B25: 4.49 | C25: 2.18 | D25: 0.5 | E25: 0 | F25: 0 | G25: 0 | H25: 0 | I25: 0 | J25: 0 | K25: 0 | L25: 0
A26: 260 | B26: 4.82 | C26: 2.51 | D26: 0.74 | E26: 0 | F26: 0 | G26: 0 | H26: 0 | I26: 0 | J26: 0 | K26: 0 | L26: 0
A27: 270 | B27: 5.15 | C27: 2.83 | D27: 0.97 | E27: 0 | F27: 0 | G27: 0 | H27: 0 | I27: 0 | J27: 0 | K27: 0 | L27: 0
A28: 280 | B28: 5.48 | C28: 3.16 | D28: 1.21 | E28: 0 | F28: 0 | G28: 0 | H28: 0 | I28: 0 | J28: 0 | K28: 0 | L28: 0
A29: 290 | B29: 5.8 | C29: 3.49 | D29: 1.44 | E29: 0 | F29: 0 | G29: 0 | H29: 0 | I29: 0 | J29: 0 | K29: 0 | L29: 0
A30: 300 | B30: 6.13 | C30: 3.81 | D30: 1.68 | E30: 0 | F30: 0 | G30: 0 | H30: 0 | I30: 0 | J30: 0 | K30: 0 | L30: 0
A31: 310 | B31: 6.46 | C31: 4.14 | D31: 1.91 | E31: 0 | F31: 0 | G31: 0 | H31: 0 | I31: 0 | J31: 0 | K31: 0 | L31: 0
A32: 320 | B32: 6.78 | C32: 4.47 | D32: 2.15 | E32: 0 | F32: 0 | G32: 0 | H32: 0 | I32: 0 | J32: 0 | K32: 0 | L32: 0
A33: 330 | B33: 7.11 | C33: 4.79 | D33: 2.48 | E33: 0.72 | F33: 0 | G33: 0 | H33: 0 | I33: 0 | J33: 0 | K33: 0 | L33: 0
A34: 340 | B34: 7.44 | C34: 5.12 | D34: 2.81 | E34: 0.95 | F34: 0 | G34: 0 | H34: 0 | I34: 0 | J34: 0 | K34: 0 | L34: 0
A35: 350 | B35: 7.76 | C35: 5.45 | D35: 3.13 | E35: 1.19 | F35: 0 | G35: 0 | H35: 0 | I35: 0 | J35: 0 | K35: 0 | L35: 0
A36: 360 | B36: 8.09 | C36: 5.78 | D36: 3.46 | E36: 1.42 | F36: 0 | G36: 0 | H36: 0 | I36: 0 | J36: 0 | K36: 0 | L36: 0
A37: 370 | B37: 8.42 | C37: 6.1 | D37: 3.79 | E37: 1.66 | F37: 0 | G37: 0 | H37: 0 | I37: 0 | J37: 0 | K37: 0 | L37: 0
A38: 380 | B38: 8.75 | C38: 6.43 | D38: 4.11 | E38: 1.89 | F38: 0 | G38: 0 | H38: 0 | I38: 0 | J38: 0 | K38: 0 | L38: 0
A39: 390 | B39: 9.07 | C39: 6.76 | D39: 4.44 | E39: 2.13 | F39: 0 | G39: 0 | H39: 0 | I39: 0 | J39: 0 | K39: 0 | L39: 0
A40: 400 | B40: 9.4 | C40: 7.08 | D40: 4.77 | E40: 2.45 | F40: 0.7 | G40: 0 | H40: 0 | I40: 0 | J40: 0 | K40: 0 | L40: 0
A41: 410 | B41: 9.73 | C41: 7.41 | D41: 5.09 | E41: 2.78 | F41: 0.93 | G41: 0 | H41: 0 | I41: 0 | J41: 0 | K41: 0 | L41: 0
A42: 420 | B42: 10.05 | C42: 7.74 | D42: 5.42 | E42: 3.1 | F42: 1.17 | G42: 0 | H42: 0 | I42: 0 | J42: 0 | K42: 0 | L42: 0
A43: 430 | B43: 10.38 | C43: 8.06 | D43: 5.75 | E43: 3.43 | F43: 1.4 | G43: 0 | H43: 0 | I43: 0 | J43: 0 | K43: 0 | L43: 0
A44: 440 | B44: 10.71 | C44: 8.39 | D44: 6.08 | E44: 3.76 | F44: 1.64 | G44: 0 | H44: 0 | I44: 0 | J44: 0 | K44: 0 | L44: 0
A45: 450 | B45: 11.03 | C45: 8.72 | D45: 6.4 | E45: 4.09 | F45: 1.87 | G45: 0 | H45: 0 | I45: 0 | J45: 0 | K45: 0 | L45: 0
A46: 460 | B46: 11.36 | C46: 9.05 | D46: 6.73 | E46: 4.41 | F46: 2.11 | G46: 0 | H46: 0 | I46: 0 | J46: 0 | K46: 0 | L46: 0
A47: 470 | B47: 11.69 | C47: 9.37 | D47: 7.06 | E47: 4.74 | F47: 2.42 | G47: 0.68 | H47: 0 | I47: 0 | J47: 0 | K47: 0 | L47: 0
A48: 480 | B48: 12.02 | C48: 9.7 | D48: 7.38 | E48: 5.07 | F48: 2.75 | G48: 0.91 | H48: 0 | I48: 0 | J48: 0 | K48: 0 | L48: 0
A49: 490 | B49: 12.34 | C49: 10.03 | D49: 7.71 | E49: 5.39 | F49: 3.08 | G49: 1.15 | H49: 0 | I49: 0 | J49: 0 | K49: 0 | L49: 0
A50: 500 | B50: 12.67 | C50: 10.35 | D50: 8.04 | E50: 5.72 | F50: 3.4 | G50: 1.38 | H50: 0 | I50: 0 | J50: 0 | K50: 0 | L50: 0
A51: 510 | B51: 13 | C51: 10.68 | D51: 8.36 | E51: 6.05 | F51: 3.73 | G51: 1.62 | H51: 0 | I51: 0 | J51: 0 | K51: 0 | L51: 0
A52: 520 | B52: 13.32 | C52: 11.01 | D52: 8.69 | E52: 6.37 | F52: 4.06 | G52: 1.85 | H52: 0 | I52: 0 | J52: 0 | K52: 0 | L52: 0
A53: 530 | B53: 13.65 | C53: 11.33 | D53: 9.02 | E53: 6.7 | F53: 4.39 | G53: 2.09 | H53: 0 | I53: 0 | J53: 0 | K53: 0 | L53: 0
A54: 540 | B54: 13.98 | C54: 11.66 | D54: 9.35 | E54: 7.03 | F54: 4.71 | G54: 2.4 | H54: 0.66 | I54: 0 | J54: 0 | K54: 0 | L54: 0
A55: 550 | B55: 14.3 | C55: 11.99 | D55: 9.67 | E55: 7.36 | F55: 5.04 | G55: 2.72 | H55: 0.89 | I55: 0 | J55: 0 | K55: 0 | L55: 0
A56: 560 | B56: 14.63 | C56: 12.32 | D56: 10 | E56: 7.68 | F56: 5.37 | G56: 3.05 | H56: 1.13 | I56: 0 | J56: 0 | K56: 0 | L56: 0
A57: 570 | B57: 14.96 | C57: 12.64 | D57: 10.33 | E57: 8.01 | F57: 5.69 | G57: 3.38 | H57: 1.36 | I57: 0 | J57: 0 | K57: 0 | L57: 0
A58: 580 | B58: 15.29 | C58: 12.97 | D58: 10.65 | E58: 8.34 | F58: 6.02 | G58: 3.7 | H58: 1.6 | I58: 0 | J58: 0 | K58: 0 | L58: 0
A59: 590 | B59: 15.61 | C59: 13.3 | D59: 10.98 | E59: 8.66 | F59: 6.35 | G59: 4.03 | H59: 1.83 | I59: 0 | J59: 0 | K59: 0 | L59: 0
A60: 600 | B60: 15.94 | C60: 13.62 | D60: 11.31 | E60: 8.99 | F60: 6.67 | G60: 4.36 | H60: 2.07 | I60: 0 | J60: 0 | K60: 0 | L60: 0
A61: 610 | B61: 16.27 | C61: 13.95 | D61: 11.63 | E61: 9.32 | F61: 7 | G61: 4.69 | H61: 2.37 | I61: 0.64 | J61: 0 | K61: 0 | L61: 0
A62: 620 | B62: 16.59 | C62: 14.28 | D62: 11.96 | E62: 9.64 | F62: 7.33 | G62: 5.01 | H62: 2.7 | I62: 0.87 | J62: 0 | K62: 0 | L62: 0
A63: 630 | B63: 16.92 | C63: 14.6 | D63: 12.29 | E63: 9.97 | F63: 7.66 | G63: 5.34 | H63: 3.02 | I63: 1.11 | J63: 0 | K63: 0 | L63: 0
A64: 640 | B64: 17.25 | C64: 14.93 | D64: 12.62 | E64: 10.3 | F64: 7.98 | G64: 5.67 | H64: 3.35 | I64: 1.34 | J64: 0 | K64: 0 | L64: 0
A65: 650 | B65: 17.73 | C65: 15.26 | D65: 12.94 | E65: 10.63 | F65: 8.31 | G65: 5.99 | H65: 3.68 | I65: 1.58 | J65: 0 | K65: 0 | L65: 0
A66: 660 | B66: 18.23 | C66: 15.59 | D66: 13.27 | E66: 10.95 | F66: 8.64 | G66: 6.32 | H66: 4 | I66: 1.81 | J66: 0 | K66: 0 | L66: 0
A67: 670 | B67: 18.74 | C67: 15.91 | D67: 13.6 | E67: 11.28 | F67: 8.96 | G67: 6.65 | H67: 4.33 | I67: 2.05 | J67: 0 | K67: 0 | L67: 0
A68: 680 | B68: 19.24 | C68: 16.24 | D68: 13.92 | E68: 11.61 | F68: 9.29 | G68: 6.97 | H68: 4.66 | I68: 2.34 | J68: 0.62 | K68: 0 | L68: 0
A69: 690 | B69: 19.74 | C69: 16.57 | D69: 14.25 | E69: 11.93 | F69: 9.62 | G69: 7.3 | H69: 4.99 | I69: 2.67 | J69: 0.85 | K69: 0 | L69: 0
A70: 700 | B70: 20.24 | C70: 16.89 | D70: 14.58 | E70: 12.26 | F70: 9.94 | G70: 7.63 | H70: 5.31 | I70: 3 | J70: 1.09 | K70: 0 | L70: 0
A71: 710 | B71: 20.74 | C71: 17.22 | D71: 14.9 | E71: 12.59 | F71: 10.27 | G71: 7.96 | H71: 5.64 | I71: 3.32 | J71: 1.32 | K71: 0 | L71: 0
A72: 720 | B72: 21.25 | C72: 17.69 | D72: 15.23 | E72: 12.91 | F72: 10.6 | G72: 8.28 | H72: 5.97 | I72: 3.65 | J72: 1.56 | K72: 0 | L72: 0
A73: 730 | B73: 21.75 | C73: 18.19 | D73: 15.56 | E73: 13.24 | F73: 10.93 | G73: 8.61 | H73: 6.29 | I73: 3.98 | J73: 1.79 | K73: 0 | L73: 0
A74: 740 | B74: 22.25 | C74: 18.69 | D74: 15.89 | E74: 13.57 | F74: 11.25 | G74: 8.94 | H74: 6.62 | I74: 4.3 | J74: 2.03 | K74: 0 | L74: 0
A75: 750 | B75: 22.75 | C75: 19.2 | D75: 16.21 | E75: 13.9 | F75: 11.58 | G75: 9.26 | H75: 6.95 | I75: 4.63 | J75: 2.32 | K75: 0.6 | L75: 0
A76: 760 | B76: 23.25 | C76: 19.7 | D76: 16.54 | E76: 14.22 | F76: 11.91 | G76: 9.59 | H76: 7.27 | I76: 4.96 | J76: 2.64 | K76: 0.83 | L76: 0
A77: 770 | B77: 23.76 | C77: 20.2 | D77: 16.87 | E77: 14.55 | F77: 12.23 | G77: 9.92 | H77: 7.6 | I77: 5.29 | J77: 2.97 | K77: 1.07 | L77: 0
A78: 780 | B78: 24.26 | C78: 20.7 | D78: 17.19 | E78: 14.88 | F78: 12.56 | G78: 10.24 | H78: 7.93 | I78: 5.61 | J78: 3.3 | K78: 1.3 | L78: 0
A79: 790 | B79: 24.76 | C79: 21.2 | D79: 17.65 | E79: 15.2 | F79: 12.89 | G79: 10.57 | H79: 8.26 | I79: 5.94 | J79: 3.62 | K79: 1.54 | L79: 0
A80: 800 | B80: 25.26 | C80: 21.71 | D80: 18.15 | E80: 15.53 | F80: 13.21 | G80: 10.9 | H80: 8.58 | I80: 6.27 | J80: 3.95 | K80: 1.77 | L80: 0
A81: 810 | B81: 25.76 | C81: 22.21 | D81: 18.65 | E81: 15.86 | F81: 13.54 | G81: 11.23 | H81: 8.91 | I81: 6.59 | J81: 4.28 | K81: 2.01 | L81: 0
A82: 820 | B82: 26.27 | C82: 22.71 | D82: 19.15 | E82: 16.18 | F82: 13.87 | G82: 11.55 | H82: 9.24 | I82: 6.92 | J82: 4.6 | K82: 2.29 | L82: 0.58
A83: 830 | B83: 26.77 | C83: 23.21 | D83: 19.66 | E83: 16.51 | F83: 14.2 | G83: 11.88 | H83: 9.56 | I83: 7.25 | J83: 4.93 | K83: 2.62 | L83: 0.82
A84: 840 | B84: 27.27 | C84: 23.71 | D84: 20.16 | E84: 16.84 | F84: 14.52 | G84: 12.21 | H84: 9.89 | I84: 7.57 | J84: 5.26 | K84: 2.94 | L84: 1.05
A85: 850 | B85: 27.77 | C85: 24.22 | D85: 20.66 | E85: 17.17 | F85: 14.85 | G85: 12.53 | H85: 10.22 | I85: 7.9 | J85: 5.59 | K85: 3.27 | L85: 1.29
A86: 860 | B86: 28.27 | C86: 24.72 | D86: 21.16 | E86: 17.61 | F86: 15.18 | G86: 12.86 | H86: 10.54 | I86: 8.23 | J86: 5.91 | K86: 3.6 | L86: 1.52
A87: 870 | B87: 28.78 | C87: 25.22 | D87: 21.66 | E87: 18.11 | F87: 15.5 | G87: 13.19 | H87: 10.87 | I87: 8.56 | J87: 6.24 | K87: 3.92 | L87: 1.76
A88: 880 | B88: 29.28 | C88: 25.72 | D88: 22.17 | E88: 18.61 | F88: 15.83 | G88: 13.51 | H88: 11.2 | I88: 8.88 | J88: 6.57 | K88: 4.25 | L88: 1.99
A89: 890 | B89: 29.78 | C89: 26.22 | D89: 22.67 | E89: 19.11 | F89: 16.16 | G89: 13.84 | H89: 11.53 | I89: 9.21 | J89: 6.89 | K89: 4.58 | L89: 2.26
A90: 900 | B90: 30.28 | C90: 26.73 | D90: 23.17 | E90: 19.61 | F90: 16.48 | G90: 14.17 | H90: 11.85 | I90: 9.54 | J90: 7.22 | K90: 4.9 | L90: 2.59
A91: 910 | B91: 30.78 | C91: 27.23 | D91: 23.67 | E91: 20.12 | F91: 16.81 | G91: 14.5 | H91: 12.18 | I91: 9.86 | J91: 7.55 | K91: 5.23 | L91: 2.91
A92: 920 | B92: 31.29 | C92: 27.73 | D92: 24.17 | E92: 20.62 | F92: 17.14 | G92: 14.82 | H92: 12.51 | I92: 10.19 | J92: 7.87 | K92: 5.56 | L92: 3.24
A93: 930 | B93: 31.79 | C93: 28.23 | D93: 24.68 | E93: 21.12 | F93: 17.57 | G93: 15.15 | H93: 12.83 | I93: 10.52 | J93: 8.2 | K93: 5.89 | L93: 3.57
A94: 940 | B94: 32.29 | C94: 28.73 | D94: 25.18 | E94: 21.62 | F94: 18.07 | G94: 15.48 | H94: 13.16 | I94: 10.84 | J94: 8.53 | K94: 6.21 | L94: 3.9
A95: 950 | B95: 32.87 | C95: 29.24 | D95: 25.68 | E95: 22.12 | F95: 18.57 | G95: 15.8 | H95: 13.49 | I95: 11.17 | J95: 8.86 | K95: 6.54 | L95: 4.22
A96: 960 | B96: 33.49 | C96: 29.74 | D96: 26.18 | E96: 22.63 | F96: 19.07 | G96: 16.13 | H96: 13.81 | I96: 11.5 | J96: 9.18 | K96: 6.87 | L96: 4.55
A97: 970 | B97: 34.11 | C97: 30.24 | D97: 26.68 | E97: 23.13 | F97: 19.57 | G97: 16.46 | H97: 14.14 | I97: 11.83 | J97: 9.51 | K97: 7.19 | L97: 4.88
A98: 980 | B98: 34.73 | C98: 30.74 | D98: 27.19 | E98: 23.63 | F98: 20.08 | G98: 16.78 | H98: 14.47 | I98: 12.15 | J98: 9.84 | K98: 7.52 | L98: 5.2
A99: 990 | B99: 35.35 | C99: 31.24 | D99: 27.69 | E99: 24.13 | F99: 20.58 | G99: 17.11 | H99: 14.8 | I99: 12.48 | J99: 10.16 | K99: 7.85 | L99: 5.53
A100: 1000 | B100: 35.97 | C100: 31.75 | D100: 28.19 | E100: 24.63 | F100: 21.08 | G100: 17.52 | H100: 15.12 | I100: 12.81 | J100: 10.49 | K100: 8.17 | L100: 5.86
A101: 1010 | B101: 36.59 | C101: 32.25 | D101: 28.69 | E101: 25.14 | F101: 21.58 | G101: 18.03 | H101: 15.45 | I101: 13.13 | J101: 10.82 | K101: 8.5 | L101: 6.18
A102: 1020 | B102: 37.21 | C102: 32.82 | D102: 29.19 | E102: 25.64 | F102: 22.08 | G102: 18.53 | H102: 15.78 | I102: 13.46 | J102: 11.14 | K102: 8.83 | L102: 6.51
A103: 1030 | B103: 37.83 | C103: 33.44 | D103: 29.7 | E103: 26.14 | F103: 22.59 | G103: 19.03 | H103: 16.1 | I103: 13.79 | J103: 11.47 | K103: 9.16 | L103: 6.84
A104: 1040 | B104: 38.45 | C104: 34.06 | D104: 30.2 | E104: 26.64 | F104: 23.09 | G104: 19.53 | H104: 16.43 | I104: 14.11 | J104: 11.8 | K104: 9.48 | L104: 7.17
A105: 1050 | B105: 39.07 | C105: 34.68 | D105: 30.7 | E105: 27.14 | F105: 23.59 | G105: 20.03 | H105: 16.76 | I105: 14.44 | J105: 12.13 | K105: 9.81 | L105: 7.49
A106: 1060 | B106: 39.69 | C106: 35.3 | D106: 31.2 | E106: 27.65 | F106: 24.09 | G106: 20.54 | H106: 17.08 | I106: 14.77 | J106: 12.45 | K106: 10.14 | L106: 7.82
A107: 1070 | B107: 40.31 | C107: 35.92 | D107: 31.7 | E107: 28.15 | F107: 24.59 | G107: 21.04 | H107: 17.48 | I107: 15.1 | J107: 12.78 | K107: 10.46 | L107: 8.15
A108: 1080 | B108: 40.93 | C108: 36.54 | D108: 32.21 | E108: 28.65 | F108: 25.1 | G108: 21.54 | H108: 17.98 | I108: 15.42 | J108: 13.11 | K108: 10.79 | L108: 8.47
A109: 1090 | B109: 41.55 | C109: 37.16 | D109: 32.77 | E109: 29.15 | F109: 25.6 | G109: 22.04 | H109: 18.49 | I109: 15.75 | J109: 13.43 | K109: 11.12 | L109: 8.8
A110: 1100 | B110: 42.17 | C110: 37.78 | D110: 33.39 | E110: 29.65 | F110: 26.1 | G110: 22.54 | H110: 18.99 | I110: 16.08 | J110: 13.76 | K110: 11.44 | L110: 9.13
A111: 1110 | B111: 42.79 | C111: 38.4 | D111: 34.01 | E111: 30.16 | F111: 26.6 | G111: 23.05 | H111: 19.49 | I111: 16.4 | J111: 14.09 | K111: 11.77 | L111: 9.45
A112: 1120 | B112: 43.41 | C112: 39.02 | D112: 34.63 | E112: 30.66 | F112: 27.1 | G112: 23.55 | H112: 19.99 | I112: 16.73 | J112: 14.41 | K112: 12.1 | L112: 9.78
A113: 1130 | B113: 44.03 | C113: 39.64 | D113: 35.25 | E113: 31.16 | F113: 27.61 | G113: 24.05 | H113: 20.49 | I113: 17.06 | J113: 14.74 | K113: 12.43 | L113: 10.11
A114: 1140 | B114: 44.65 | C114: 40.26 | D114: 35.87 | E114: 31.66 | F114: 28.11 | G114: 24.55 | H114: 21 | I114: 17.44 | J114: 15.07 | K114: 12.75 | L114: 10.44
A115: 1150 | B115: 45.27 | C115: 40.88 | D115: 36.49 | E115: 32.16 | F115: 28.61 | G115: 25.05 | H115: 21.5 | I115: 17.94 | J115: 15.4 | K115: 13.08 | L115: 10.76
A116: 1160 | B116: 45.89 | C116: 41.5 | D116: 37.11 | E116: 32.72 | F116: 29.11 | G116: 25.56 | H116: 22 | I116: 18.44 | J116: 15.72 | K116: 13.41 | L116: 11.09
A117: 1170 | B117: 46.51 | C117: 42.12 | D117: 37.73 | E117: 33.34 | F117: 29.61 | G117: 26.06 | H117: 22.5 | I117: 18.95 | J117: 16.05 | K117: 13.73 | L117: 11.42
A118: 1180 | B118: 47.13 | C118: 42.74 | D118: 38.35 | E118: 33.96 | F118: 30.12 | G118: 26.56 | H118: 23 | I118: 19.45 | J118: 16.38 | K118: 14.06 | L118: 11.74
A119: 1190 | B119: 47.75 | C119: 43.36 | D119: 38.97 | E119: 34.58 | F119: 30.62 | G119: 27.06 | H119: 23.51 | I119: 19.95 | J119: 16.7 | K119: 14.39 | L119: 12.07
A120: 1200 | B120: 48.37 | C120: 43.98 | D120: 39.59 | E120: 35.2 | F120: 31.12 | G120: 27.56 | H120: 24.01 | I120: 20.45 | J120: 17.03 | K120: 14.71 | L120: 12.4
A121: 1210 | B121: 49.02 | C121: 44.6 | D121: 40.21 | E121: 35.82 | F121: 31.62 | G121: 28.07 | H121: 24.51 | I121: 20.95 | J121: 17.4 | K121: 15.04 | L121: 12.72
A122: 1220 | B122: 49.68 | C122: 45.22 | D122: 40.83 | E122: 36.44 | F122: 32.12 | G122: 28.57 | H122: 25.01 | I122: 21.46 | J122: 17.9 | K122: 15.37 | L122: 13.05
A123: 1230 | B123: 50.34 | C123: 45.84 | D123: 41.45 | E123: 37.06 | F123: 32.67 | G123: 29.07 | H123: 25.51 | I123: 21.96 | J123: 18.4 | K123: 15.7 | L123: 13.38
A124: 1240 | B124: 51 | C124: 46.46 | D124: 42.07 | E124: 37.68 | F124: 33.29 | G124: 29.57 | H124: 26.02 | I124: 22.46 | J124: 18.9 | K124: 16.02 | L124: 13.71
A125: 1250 | B125: 51.66 | C125: 47.08 | D125: 42.69 | E125: 38.3 | F125: 33.91 | G125: 30.07 | H125: 26.52 | I125: 22.96 | J125: 19.41 | K125: 16.35 | L125: 14.03
A126: 1260 | B126: 52.32 | C126: 47.7 | D126: 43.31 | E126: 38.92 | F126: 34.53 | G126: 30.58 | H126: 27.02 | I126: 23.46 | J126: 19.91 | K126: 16.68 | L126: 14.36
A127: 1270 | B127: 52.98 | C127: 48.32 | D127: 43.93 | E127: 39.54 | F127: 35.15 | G127: 31.08 | H127: 27.52 | I127: 23.97 | J127: 20.41 | K127: 17 | L127: 14.69
A128: 1280 | B128: 53.63 | C128: 48.97 | D128: 44.55 | E128: 40.16 | F128: 35.77 | G128: 31.58 | H128: 28.02 | I128: 24.47 | J128: 20.91 | K128: 17.36 | L128: 15.01
A129: 1290 | B129: 54.29 | C129: 49.63 | D129: 45.17 | E129: 40.78 | F129: 36.39 | G129: 32.08 | H129: 28.53 | I129: 24.97 | J129: 21.41 | K129: 17.86 | L129: 15.34
A130: 1300 | B130: 54.95 | C130: 50.28 | D130: 45.79 | E130: 41.4 | F130: 37.01 | G130: 32.62 | H130: 29.03 | I130: 25.47 | J130: 21.92 | K130: 18.36 | L130: 15.67
A131: 1310 | B131: 55.61 | C131: 50.94 | D131: 46.41 | E131: 42.02 | F131: 37.63 | G131: 33.24 | H131: 29.53 | I131: 25.97 | J131: 22.42 | K131: 18.86 | L131: 15.99
A132: 1320 | B132: 56.27 | C132: 51.6 | D132: 47.03 | E132: 42.64 | F132: 38.25 | G132: 33.86 | H132: 30.03 | I132: 26.48 | J132: 22.92 | K132: 19.36 | L132: 16.32
A133: 1330 | B133: 56.93 | C133: 52.26 | D133: 47.65 | E133: 43.26 | F133: 38.87 | G133: 34.48 | H133: 30.53 | I133: 26.98 | J133: 23.42 | K133: 19.87 | L133: 16.65
A134: 1340 | B134: 57.59 | C134: 52.92 | D134: 48.27 | E134: 43.88 | F134: 39.49 | G134: 35.1 | H134: 31.04 | I134: 27.48 | J134: 23.92 | K134: 20.37 | L134: 16.98
A135: 1350 | B135: 58.25 | C135: 53.58 | D135: 48.91 | E135: 44.5 | F135: 40.11 | G135: 35.72 | H135: 31.54 | I135: 27.98 | J135: 24.43 | K135: 20.87 | L135: 17.32
A136: 1360 | B136: 58.91 | C136: 54.24 | D136: 49.57 | E136: 45.12 | F136: 40.73 | G136: 36.34 | H136: 32.04 | I136: 28.48 | J136: 24.93 | K136: 21.37 | L136: 17.82
A137: 1370 | B137: 59.57 | C137: 54.9 | D137: 50.23 | E137: 45.74 | F137: 41.35 | G137: 36.96 | H137: 32.57 | I137: 28.99 | J137: 25.43 | K137: 21.87 | L137: 18.32
A138: 1380 | B138: 60.22 | C138: 55.56 | D138: 50.89 | E138: 46.36 | F138: 41.97 | G138: 37.58 | H138: 33.19 | I138: 29.49 | J138: 25.93 | K138: 22.38 | L138: 18.82
A139: 1390 | B139: 60.88 | C139: 56.22 | D139: 51.55 | E139: 46.98 | F139: 42.59 | G139: 38.2 | H139: 33.81 | I139: 29.99 | J139: 26.43 | K139: 22.88 | L139: 19.32
A140: 1400 | B140: 61.54 | C140: 56.87 | D140: 52.21 | E140: 47.6 | F140: 43.21 | G140: 38.82 | H140: 34.43 | I140: 30.49 | J140: 26.94 | K140: 23.38 | L140: 19.83
A141: 1410 | B141: 62.2 | C141: 57.53 | D141: 52.87 | E141: 48.22 | F141: 43.83 | G141: 39.44 | H141: 35.05 | I141: 30.99 | J141: 27.44 | K141: 23.88 | L141: 20.33
A142: 1420 | B142: 62.86 | C142: 58.19 | D142: 53.52 | E142: 48.86 | F142: 44.45 | G142: 40.06 | H142: 35.67 | I142: 31.5 | J142: 27.94 | K142: 24.38 | L142: 20.83
A143: 1430 | B143: 63.52 | C143: 58.85 | D143: 54.18 | E143: 49.52 | F143: 45.07 | G143: 40.68 | H143: 36.29 | I143: 32 | J143: 28.44 | K143: 24.89 | L143: 21.33
A144: 1440 | B144: 64.18 | C144: 59.51 | D144: 54.84 | E144: 50.18 | F144: 45.69 | G144: 41.3 | H144: 36.91 | I144: 32.51 | J144: 28.94 | K144: 25.39 | L144: 21.83
A145: 1450 | B145: 64.84 | C145: 60.17 | D145: 55.5 | E145: 50.83 | F145: 46.31 | G145: 41.92 | H145: 37.53 | I145: 33.13 | J145: 29.45 | K145: 25.89 | L145: 22.34
A146: 1460 | B146: 65.5 | C146: 60.83 | D146: 56.16 | E146: 51.49 | F146: 46.93 | G146: 42.54 | H146: 38.15 | I146: 33.75 | J146: 29.95 | K146: 26.39 | L146: 22.84
A147: 1470 | B147: 66.16 | C147: 61.49 | D147: 56.82 | E147: 52.15 | F147: 47.55 | G147: 43.16 | H147: 38.77 | I147: 34.37 | J147: 30.45 | K147: 26.89 | L147: 23.34
A148: 1480 | B148: 66.81 | C148: 62.15 | D148: 57.48 | E148: 52.81 | F148: 48.17 | G148: 43.78 | H148: 39.39 | I148: 34.99 | J148: 30.95 | K148: 27.4 | L148: 23.84
A149: 1490 | D149: =D148+0.66 -> 58.14
A150: 1500 | D150: =D149+0.66 -> 58.8
A151: 1510 | D151: =D150+0.66 -> 59.46
A152: 1520 | D152: =D151+0.66 -> 60.12 | E152: =D148-D147 -> 0.66
A153: 1530 | D153: =D152+0.66 -> 60.78
A154: 1540 | D154: =D153+0.66 -> 61.44
A155: 1550 | D155: =D154+0.66 -> 62.1
A156: 1560 | D156: =D155+0.66 -> 62.76
A157: 1570 | D157: =D156+0.66 -> 63.42
A158: 1580 | D158: =D157+0.66 -> 64.08
A159: 1590 | D159: =D158+0.66 -> 64.74
A160: 1600 | D160: =D159+0.66 -> 65.4
A161: 1610 | D161: =D160+0.66 -> 66.06
A162: 1620 | D162: =D161+0.66 -> 66.72
A163: 1630 | D163: =D162+0.66 -> 67.38
A164: 1640 | D164: =D163+0.66 -> 68.04
A165: 1650 | D165: =D164+0.66 -> 68.7
A166: 1660 | D166: =D165+0.66 -> 69.36
A167: 1670 | D167: =D166+0.66 -> 70.02
A168: 1680 | D168: =D167+0.66 -> 70.68
A169: 1690 | D169: =D168+0.66 -> 71.34
A170: 1700 | D170: =D169+0.66 -> 72
A171: 1710 | D171: =D170+0.66 -> 72.66
A172: 1720 | D172: =D171+0.66 -> 73.32
A173: 1730 | D173: =D172+0.66 -> 73.98
A174: 1740 | D174: =D173+0.66 -> 74.64
A175: 1750 | D175: =D174+0.66 -> 75.3
A176: 1760 | D176: =D175+0.66 -> 75.96
A177: 1770 | D177: =D176+0.66 -> 76.62
A178: 1780 | D178: =D177+0.66 -> 77.28
A179: 1790 | D179: =D178+0.66 -> 77.94
A180: 1800 | D180: =D179+0.66 -> 78.6
A181: 1810 | D181: =D180+0.66 -> 79.26
A182: 1820 | D182: =D181+0.66 -> 79.92
A183: 1830 | D183: =D182+0.66 -> 80.58
A184: 1840 | D184: =D183+0.66 -> 81.24
A185: 1850 | D185: =D184+0.66 -> 81.9
A186: 1860 | D186: =D185+0.66 -> 82.56
A187: 1870 | D187: =D186+0.66 -> 83.22
A188: 1880 | D188: =D187+0.66 -> 83.88
A189: 1890 | D189: =D188+0.66 -> 84.54
A190: 1900 | D190: =D189+0.66 -> 85.2
A191: 1910 | D191: =D190+0.66 -> 85.86
A192: 1920 | D192: =D191+0.66 -> 86.52
A193: 1930 | D193: =D192+0.66 -> 87.18
A194: 1940 | D194: =D193+0.66 -> 87.84
A195: 1950 | D195: =D194+0.66 -> 88.5
A196: 1960 | D196: =D195+0.66 -> 89.16
A197: 1970 | D197: =D196+0.66 -> 89.82
A198: 1980 | D198: =D197+0.66 -> 90.48
A199: 1990 | D199: =D198+0.66 -> 91.14
A200: 2000 | D200: =D199+0.66 -> 91.8
... 31 more rows

Sheet Hourlog
A1: Weekly Time Sheet
B2: Mon | D2: Tues | F2: Wends. | H2: Thurs | J2: Fri | L2: Sat
A3: Employee | B3: Time In | C3: Time Out | D3: Time In | E3: Time Out | F3: Time In | G3: Time Out | H3: Time In | I3: Time Out | J3: Time In | K3: Time Out | L3: Time In | M3: Time Out | N3: TOTAL==
A4: 0 | B4: 07:15:00 | C4: 23:00:00
B5: 0
B7: 0
A20: Weekly Time Sheet
B21: Mon | D21: Tues | F21: Wends. | H21: Thurs | J21: Fri | L21: Sat
A22: Employee | B22: Time In | C22: Time Out | D22: Time In | E22: Time Out | F22: Time In | G22: Time Out | H22: Time In | I22: Time Out | J22: Time In | K22: Time Out | L22: Time In | M22: Time Out | N22: TOTAL==
